BIOGUIDE_ID,OFFICE,QUARTER,PROGRAM,CATEGORY,SORT SEQUENCE,DATE,TRANSCODE,RECORDID,PAYEE,START DATE,END DATE,PURPOSE,AMOUNT,YEAR
,2020 OFFICE OF THE SPEAKER,4,GENERAL EXPENDITURES,FRANKED MAIL,DETAIL,2020-10-27,AP,1347818,UNITED STATES POSTAL SERVICE,2020-09-01,2020-09-30,FRANKED MAIL,1,2020
,2020 OFFICE OF THE SPEAKER,4,GENERAL EXPENDITURES,FRANKED MAIL,SUBTOTAL,   ,   ,   ,   ,   ,   ,FRANKED MAIL TOTALS:,1,2020
,2020 OFFICE OF THE SPEAKER,4,GENERAL EXPENDITURES,PERSONNEL COMPENSATION,DETAIL,   ,   ,   ,BERRET EMILY C,2020-10-01,2020-12-31,DIR OF OPERATIONS & ADVISOR,39175.01,2020
,2020 OFFICE OF THE SPEAKER,4,GENERAL EXPENDITURES,PERSONNEL COMPENSATION,DETAIL,   ,   ,   ,BUSH JACQUELINE D,2020-10-01,2020-12-31,DIGITAL ASSISTANT,6048.6,2020
,2020 OFFICE OF THE SPEAKER,4,GENERAL EXPENDITURES,PERSONNEL COMPENSATION,DETAIL,   ,   ,   ,CAPRON MARGARET W.,2020-10-01,2020-12-31,SENIOR ADV FOR POLICY & COMM,41074.01,2020
,2020 OFFICE OF THE SPEAKER,4,GENERAL EXPENDITURES,PERSONNEL COMPENSATION,DETAIL,   ,   ,   ,CHERRY STEPHANIE,2020-10-01,2020-12-31,DIRECTOR OF MEDIA AFFAIRS,26500,2020
,2020 OFFICE OF THE SPEAKER,4,GENERAL EXPENDITURES,PERSONNEL COMPENSATION,DETAIL,   ,   ,   ,CONNELLY HENRY V,2020-08-01,2020-10-31,DEPUTY COMMUNICATIONS DIRECTOR,16020,2020
,2020 OFFICE OF THE SPEAKER,4,GENERAL EXPENDITURES,PERSONNEL COMPENSATION,DETAIL,   ,   ,   ,CONNELLY HENRY V,2020-10-01,2020-12-31,COMMUNICATIONS DIRECTOR,28196.67,2020
,2020 OFFICE OF THE SPEAKER,4,GENERAL EXPENDITURES,PERSONNEL COMPENSATION,DETAIL,   ,   ,   ,COSTELLO JOSEPH M,2020-10-01,2020-12-31,PRESS ASSISTANT,12541.66,2020
,2020 OFFICE OF THE SPEAKER,4,GENERAL EXPENDITURES,PERSONNEL COMPENSATION,DETAIL,   ,   ,   ,COSTELLO JOSEPH M,2020-09-01,2020-11-30,PRESS ASSISTANT (OVERTIME),9035.5,2020
,2020 OFFICE OF THE SPEAKER,4,GENERAL EXPENDITURES,PERSONNEL COMPENSATION,DETAIL,   ,   ,   ,DEGRAFF KENNETH B.,2020-10-01,2020-12-31,SENIOR POLICY ADVISOR,35250.01,2020
,2020 OFFICE OF THE SPEAKER,4,GENERAL EXPENDITURES,PERSONNEL COMPENSATION,DETAIL,   ,   ,   ,DEWHIRST DIANE,2020-10-01,2020-12-31,DEPUTY CHIEF OF STAFF,43475.01,2020
,2020 OFFICE OF THE SPEAKER,4,GENERAL EXPENDITURES,PERSONNEL COMPENSATION,DETAIL,   ,   ,   ,DILLON KRISTEN G,2020-10-01,2020-12-31,POLICY ADVISOR,300,2020
,2020 OFFICE OF THE SPEAKER,4,GENERAL EXPENDITURES,PERSONNEL COMPENSATION,DETAIL,   ,   ,   ,DONOHUE JENNIFER A,2020-10-01,2020-12-31,EXECUTIVE DIRECTOR,41250,2020
,2020 OFFICE OF THE SPEAKER,4,GENERAL EXPENDITURES,PERSONNEL COMPENSATION,DETAIL,   ,   ,   ,EDMONSON ROBERT D,2020-03-01,2020-12-31,POLICY ADVISOR,42025,2020
,2020 OFFICE OF THE SPEAKER,4,GENERAL EXPENDITURES,PERSONNEL COMPENSATION,DETAIL,   ,   ,   ,EHRENBERG MIA R,2020-11-01,2020-11-30,PRESS ADVISOR,1458.33,2020
,2020 OFFICE OF THE SPEAKER,4,GENERAL EXPENDITURES,PERSONNEL COMPENSATION,DETAIL,   ,   ,   ,EHRENBERG MIA R,2020-11-01,2020-12-31,DEPUTY PRESS SECRETARY,8884.72,2020
,2020 OFFICE OF THE SPEAKER,4,GENERAL EXPENDITURES,PERSONNEL COMPENSATION,DETAIL,   ,   ,   ,FINNEY FELICIA V,2020-10-01,2020-12-31,STAFF ASSISTANT,13624.99,2020
,2020 OFFICE OF THE SPEAKER,4,GENERAL EXPENDITURES,PERSONNEL COMPENSATION,DETAIL,   ,   ,   ,FINNEY FELICIA V,2020-09-01,2020-11-30,STAFF ASSISTANT (OVERTIME),3769.43,2020
,2020 OFFICE OF THE SPEAKER,4,GENERAL EXPENDITURES,PERSONNEL COMPENSATION,DETAIL,   ,   ,   ,FISCHER JR ROBERT V.,2020-10-01,2020-12-31,ASST FLOOR CHIEF,43475.01,2020
,2020 OFFICE OF THE SPEAKER,4,GENERAL EXPENDITURES,PERSONNEL COMPENSATION,DETAIL,   ,   ,   ,FLEET II JAMES P,2020-10-01,2020-12-31,SENIOR ADVISOR,300,2020
,2020 OFFICE OF THE SPEAKER,4,GENERAL EXPENDITURES,PERSONNEL COMPENSATION,DETAIL,   ,   ,   ,GARCIA MONICA,2020-10-01,2020-12-31,COMMUNICATIONS DIRECTOR,17000.01,2020
,2020 OFFICE OF THE SPEAKER,4,GENERAL EXPENDITURES,PERSONNEL COMPENSATION,DETAIL,   ,   ,   ,GIBSON DYLAN B,2020-10-01,2020-12-31,DIGITAL DIRECTOR,20250.01,2020
,2020 OFFICE OF THE SPEAKER,4,GENERAL EXPENDITURES,PERSONNEL COMPENSATION,DETAIL,   ,   ,   ,GREENER APRIL L.,2020-10-01,2020-12-31,RESEARCH DIRECTOR,32250.01,2020
,2020 OFFICE OF THE SPEAKER,4,GENERAL EXPENDITURES,PERSONNEL COMPENSATION,DETAIL,   ,   ,   ,HAMMILL ANDREW T.,2020-10-01,2020-12-31,DEPUTY CHIEF OF STAFF,43475.01,2020
,2020 OFFICE OF THE SPEAKER,4,GENERAL EXPENDITURES,PERSONNEL COMPENSATION,DETAIL,   ,   ,   ,HAN LEAH J.,2020-10-01,2020-12-31,STAFF ASSISTANT,12124.99,2020
,2020 OFFICE OF THE SPEAKER,4,GENERAL EXPENDITURES,PERSONNEL COMPENSATION,DETAIL,   ,   ,   ,HAN LEAH J.,2020-09-01,2020-11-30,STAFF ASSISTANT (OVERTIME),3186.38,2020
,2020 OFFICE OF THE SPEAKER,4,GENERAL EXPENDITURES,PERSONNEL COMPENSATION,DETAIL,   ,   ,   ,HAYNES JR WILFRED J.,2020-10-01,2020-12-31,IT DIRECTOR,32280.49,2020
,2020 OFFICE OF THE SPEAKER,4,GENERAL EXPENDITURES,PERSONNEL COMPENSATION,DETAIL,   ,   ,   ,HIDALGO ADRIANA N,2020-10-01,2020-12-31,DISTRICT SCHED/SPECIAL ASSIST,24000.01,2020
,2020 OFFICE OF THE SPEAKER,4,GENERAL EXPENDITURES,PERSONNEL COMPENSATION,DETAIL,   ,   ,   ,HOLMES NATHANIEL J,2020-10-01,2020-12-31,DEP DIR/SCHEDULING & ADVANCE,22249.99,2020
,2020 OFFICE OF THE SPEAKER,4,GENERAL EXPENDITURES,PERSONNEL COMPENSATION,DETAIL,   ,   ,   ,HURWITZ ROSS B,2020-10-01,2020-12-31,DEPUTY DIR. OF SPEECHWRITING,20250.01,2020
,2020 OFFICE OF THE SPEAKER,4,GENERAL EXPENDITURES,PERSONNEL COMPENSATION,DETAIL,   ,   ,   ,IACOBELLIS SAMUEL C,2020-10-01,2020-12-31,MBR SVC & INTERGOV AFFAIRS ADV,16624.99,2020
,2020 OFFICE OF THE SPEAKER,4,GENERAL EXPENDITURES,PERSONNEL COMPENSATION,DETAIL,   ,   ,   ,JACKSON AUDRA L,2020-10-01,2020-12-31,ASST MGR FOR THE DEM CLOAKROOM,21499.99,2020
,2020 OFFICE OF THE SPEAKER,4,GENERAL EXPENDITURES,PERSONNEL COMPENSATION,DETAIL,   ,   ,   ,JETER KRISTINA B,2020-10-01,2020-12-31,DPTY DIR/SPEC EVENT & PROTOCOL,13999.99,2020
,2020 OFFICE OF THE SPEAKER,4,GENERAL EXPENDITURES,PERSONNEL COMPENSATION,DETAIL,   ,   ,   ,JONES MEREDITH A,2020-10-01,2020-12-31,SENIOR ADVISOR,41250,2020
,2020 OFFICE OF THE SPEAKER,4,GENERAL EXPENDITURES,PERSONNEL COMPENSATION,DETAIL,   ,   ,   ,KAPLAN EMMA L,2020-10-01,2020-12-31,FLOOR ADVISOR,24000.01,2020
,2020 OFFICE OF THE SPEAKER,4,GENERAL EXPENDITURES,PERSONNEL COMPENSATION,DETAIL,   ,   ,   ,KEATING ROSE M,2020-10-01,2020-12-31,ASST FLOOR MANAGER,36841.65,2020
,2020 OFFICE OF THE SPEAKER,4,GENERAL EXPENDITURES,PERSONNEL COMPENSATION,DETAIL,   ,   ,   ,KEITA KAMILAH Z,2020-10-01,2020-12-31,DEPUTY INFOMATION TECH. DIRECT,28783,2020
,2020 OFFICE OF THE SPEAKER,4,GENERAL EXPENDITURES,PERSONNEL COMPENSATION,DETAIL,   ,   ,   ,KUNDANIS GEORGE,2020-10-01,2020-12-31,DEPUTY CHIEF OF STAFF,43475.01,2020
,2020 OFFICE OF THE SPEAKER,4,GENERAL EXPENDITURES,PERSONNEL COMPENSATION,DETAIL,   ,   ,   ,LA ALISA M,2020-10-01,2020-12-31,SPECIAL ASST TO THE SPEAKER,26500,2020
,2020 OFFICE OF THE SPEAKER,4,GENERAL EXPENDITURES,PERSONNEL COMPENSATION,DETAIL,   ,   ,   ,LEE SERYEUNG,2020-10-01,2020-12-31,PRESS SECRETARY,24000.01,2020
,2020 OFFICE OF THE SPEAKER,4,GENERAL EXPENDITURES,PERSONNEL COMPENSATION,DETAIL,   ,   ,   ,LIZARRAGA JAIME E.,2020-10-01,2020-12-31,SENIOR ADVISOR,43475.01,2020
,2020 OFFICE OF THE SPEAKER,4,GENERAL EXPENDITURES,PERSONNEL COMPENSATION,DETAIL,   ,   ,   ,LONG MICHAEL G,2020-10-01,2020-12-31,SR ADV & DIR OF MBR SERV,36841.65,2020
,2020 OFFICE OF THE SPEAKER,4,GENERAL EXPENDITURES,PERSONNEL COMPENSATION,DETAIL,   ,   ,   ,MANGRUM PEARL J.,2020-10-01,2020-12-31,FINANCIAL ADMINISTRATOR,37224.96,2020
,2020 OFFICE OF THE SPEAKER,4,GENERAL EXPENDITURES,PERSONNEL COMPENSATION,DETAIL,   ,   ,   ,MANSBACH SHANA G,2020-10-01,2020-12-31,DIRECTOR OF SPEECHWRITING,28999.99,2020
,2020 OFFICE OF THE SPEAKER,4,GENERAL EXPENDITURES,PERSONNEL COMPENSATION,DETAIL,   ,   ,   ,MARRON BRENNA K,2020-10-01,2020-12-31,DEPUTY EXEC DIRECTOR,28749.99,2020
,2020 OFFICE OF THE SPEAKER,4,GENERAL EXPENDITURES,PERSONNEL COMPENSATION,DETAIL,   ,   ,   ,MASON GRAHAM H,2020-10-01,2020-12-31,SENIOR ADVISOR,32250,2020
,2020 OFFICE OF THE SPEAKER,4,GENERAL EXPENDITURES,PERSONNEL COMPENSATION,DETAIL,   ,   ,   ,MCCULLOUGH MARY T,2020-10-01,2020-12-31,CHIEF OF STAFF,43475.01,2020
,2020 OFFICE OF THE SPEAKER,4,GENERAL EXPENDITURES,PERSONNEL COMPENSATION,DETAIL,   ,   ,   ,MCCULLOUGH WILLIAM J,2020-10-01,2020-12-31,PRESS ASSISTANT,12541.66,2020
,2020 OFFICE OF THE SPEAKER,4,GENERAL EXPENDITURES,PERSONNEL COMPENSATION,DETAIL,   ,   ,   ,MCCULLOUGH WILLIAM J,2020-09-01,2020-11-30,PRESS ASSISTANT (OVERTIME),9558.15,2020
,2020 OFFICE OF THE SPEAKER,4,GENERAL EXPENDITURES,PERSONNEL COMPENSATION,DETAIL,   ,   ,   ,MELTZER RICHARD,2020-10-01,2020-12-31,POLICY DIRECTOR,43475.01,2020
,2020 OFFICE OF THE SPEAKER,4,GENERAL EXPENDITURES,PERSONNEL COMPENSATION,DETAIL,   ,   ,   ,MILLER MONTANA R,2020-10-01,2020-12-31,DEPUTY DIRECTOR OF SCHEDULING,19999.99,2020
,2020 OFFICE OF THE SPEAKER,4,GENERAL EXPENDITURES,PERSONNEL COMPENSATION,DETAIL,   ,   ,   ,MONGE KATHERINE S,2020-10-01,2020-12-31,SENIOR COUNSEL,43475.01,2020
,2020 OFFICE OF THE SPEAKER,4,GENERAL EXPENDITURES,PERSONNEL COMPENSATION,DETAIL,   ,   ,   ,PARKER WYNDEE R.,2020-10-01,2020-12-31,NATIONAL SECURITY ADVISOR,43475.01,2020
,2020 OFFICE OF THE SPEAKER,4,GENERAL EXPENDITURES,PERSONNEL COMPENSATION,DETAIL,   ,   ,   ,POWELL LATRICE S,2020-10-01,2020-12-31,DEPUTY FLOOR DIRECTOR,40175.01,2020
,2020 OFFICE OF THE SPEAKER,4,GENERAL EXPENDITURES,PERSONNEL COMPENSATION,DETAIL,   ,   ,   ,PRICE REVA B.,2020-10-01,2020-12-31,OUTREACH DIR & SENIOR ADVISOR,41741.01,2020
,2020 OFFICE OF THE SPEAKER,4,GENERAL EXPENDITURES,PERSONNEL COMPENSATION,DETAIL,   ,   ,   ,PRIMUS WENDELL E.,2020-10-01,2020-12-31,SR HLTH/BUDGET POLICY ADV,43475.01,2020
,2020 OFFICE OF THE SPEAKER,4,GENERAL EXPENDITURES,PERSONNEL COMPENSATION,DETAIL,   ,   ,   ,RAMIREZ MATTHEW M,2020-10-01,2020-12-31,OUTREACH ADVISOR,17125,2020
,2020 OFFICE OF THE SPEAKER,4,GENERAL EXPENDITURES,PERSONNEL COMPENSATION,DETAIL,   ,   ,   ,ROBLES CLARISSA V,2020-10-01,2020-12-31,MEMBER SERVICES COORDINATOR,12500.01,2020
,2020 OFFICE OF THE SPEAKER,4,GENERAL EXPENDITURES,PERSONNEL COMPENSATION,DETAIL,   ,   ,   ,ROSS PATRICIA L,2020-10-01,2020-12-31,SENIOR POLICY ADVISOR,28249.99,2020
,2020 OFFICE OF THE SPEAKER,4,GENERAL EXPENDITURES,PERSONNEL COMPENSATION,DETAIL,   ,   ,   ,RUSSELL MAYA A,2020-10-01,2020-12-31,DIGITAL DIRECTOR,13749.99,2020
,2020 OFFICE OF THE SPEAKER,4,GENERAL EXPENDITURES,PERSONNEL COMPENSATION,DETAIL,   ,   ,   ,SANCHEZ CARLOS S.,2020-10-01,2020-12-31,SENIOR ADVISOR,42750,2020
,2020 OFFICE OF THE SPEAKER,4,GENERAL EXPENDITURES,PERSONNEL COMPENSATION,DETAIL,   ,   ,   ,SMITH KELSEY L,2020-10-01,2020-12-31,DIR. OF SCHEDULING & ADVANCE,36841.65,2020
,2020 OFFICE OF THE SPEAKER,4,GENERAL EXPENDITURES,PERSONNEL COMPENSATION,DETAIL,   ,   ,   ,SMITH SHANE T,2020-10-01,2020-12-31,SENIOR ADVISOR/MEMBER SERVICES,23222.23,2020
,2020 OFFICE OF THE SPEAKER,4,GENERAL EXPENDITURES,PERSONNEL COMPENSATION,DETAIL,   ,   ,   ,STERN KEITH L.,2020-10-01,2020-12-31,DIRECTOR OF FLOOR OPERATIONS,43475.01,2020
,2020 OFFICE OF THE SPEAKER,4,GENERAL EXPENDITURES,PERSONNEL COMPENSATION,DETAIL,   ,   ,   ,SWIG SARAH B,2020-10-01,2020-12-31,POLICY ASSOCIATE,17125,2020
,2020 OFFICE OF THE SPEAKER,4,GENERAL EXPENDITURES,PERSONNEL COMPENSATION,DETAIL,   ,   ,   ,TECKLENBURG MICHAEL H.,2020-10-01,2020-12-31,COUNSEL,40841.65,2020
,2020 OFFICE OF THE SPEAKER,4,GENERAL EXPENDITURES,PERSONNEL COMPENSATION,DETAIL,   ,   ,   ,URRY ALEXANDER M,2020-10-01,2020-12-31,POLICY ADVISOR,17749.99,2020
,2020 OFFICE OF THE SPEAKER,4,GENERAL EXPENDITURES,PERSONNEL COMPENSATION,DETAIL,   ,   ,   ,WOLFF CELINE K.,2020-10-01,2020-12-31,DEPUTY DIGITAL DIRECTOR,14458.33,2020
,2020 OFFICE OF THE SPEAKER,4,GENERAL EXPENDITURES,PERSONNEL COMPENSATION,DETAIL,   ,   ,   ,WOLFF CELINE K.,2020-09-01,2020-11-30,DEPUTY DIGITAL DIRECTOR (OVERTIME),4662.21,2020
,2020 OFFICE OF THE SPEAKER,4,GENERAL EXPENDITURES,PERSONNEL COMPENSATION,DETAIL,   ,   ,   ,WOLTERS KATE,2020-10-01,2020-12-31,DIRECTOR OF SPECIAL EVENTS,2499.99,2020
,2020 OFFICE OF THE SPEAKER,4,GENERAL EXPENDITURES,PERSONNEL COMPENSATION,SUBTOTAL,   ,   ,   ,   ,   ,   ,PERSONNEL COMPENSATION TOTALS:,1780629.03,2020
,2020 OFFICE OF THE SPEAKER,4,GENERAL EXPENDITURES,TRAVEL,DETAIL,2020-12-04,AP,1360345,HIDALGO ADRIANA N.,2020-09-03,2020-09-03,MEALS,6.75,2020
,2020 OFFICE OF THE SPEAKER,4,GENERAL EXPENDITURES,TRAVEL,SUBTOTAL,   ,   ,   ,   ,   ,   ,TRAVEL TOTALS:,6.75,2020
,2020 OFFICE OF THE SPEAKER,4,GENERAL EXPENDITURES,RENT  COMMUNICATION  UTILITIES,DETAIL,2020-10-08,AP,1340701,FEDEX,2020-09-11,2020-09-11,POSTAGE / COURIER / BOX RENTAL,13.45,2020
,2020 OFFICE OF THE SPEAKER,4,GENERAL EXPENDITURES,RENT  COMMUNICATION  UTILITIES,DETAIL,2020-10-27,GL,EMS0101782, ,2020-09-01,2020-09-30,DC TELECOM EQUIP (TRANSFER),228,2020
,2020 OFFICE OF THE SPEAKER,4,GENERAL EXPENDITURES,RENT  COMMUNICATION  UTILITIES,DETAIL,2020-10-27,GL,EMS0101782, ,2020-09-01,2020-09-30,DC TELECOM SERV (TRANSFER),1224.75,2020
,2020 OFFICE OF THE SPEAKER,4,GENERAL EXPENDITURES,RENT  COMMUNICATION  UTILITIES,DETAIL,2020-10-27,GL,EMS0101782, ,2020-09-01,2020-09-30,DC TELECOM TOLLS (TRANSFER),9535.51,2020
,2020 OFFICE OF THE SPEAKER,4,GENERAL EXPENDITURES,RENT  COMMUNICATION  UTILITIES,DETAIL,2020-10-28,GL,MED0101823, ,2020-09-24,2020-09-24,HIR GRAPHICS (TRANSFER),100,2020
,2020 OFFICE OF THE SPEAKER,4,GENERAL EXPENDITURES,RENT  COMMUNICATION  UTILITIES,DETAIL,2020-11-17,AP,1354356,FEDEX,2020-09-25,2020-09-25,POSTAGE / COURIER / BOX RENTAL,195.64,2020
,2020 OFFICE OF THE SPEAKER,4,GENERAL EXPENDITURES,RENT  COMMUNICATION  UTILITIES,DETAIL,2020-11-20,AP,1356847,FEDEX,2020-10-27,2020-10-27,POSTAGE / COURIER / BOX RENTAL,10.55,2020
,2020 OFFICE OF THE SPEAKER,4,GENERAL EXPENDITURES,RENT  COMMUNICATION  UTILITIES,DETAIL,2020-11-20,GL,EMS0102354, ,2020-10-01,2020-10-31,DC TELECOM EQUIP (TRANSFER),224,2020
,2020 OFFICE OF THE SPEAKER,4,GENERAL EXPENDITURES,RENT  COMMUNICATION  UTILITIES,DETAIL,2020-11-20,GL,EMS0102354, ,2020-10-01,2020-10-31,DC TELECOM SERV (TRANSFER),1204.25,2020
,2020 OFFICE OF THE SPEAKER,4,GENERAL EXPENDITURES,RENT  COMMUNICATION  UTILITIES,DETAIL,2020-11-20,GL,EMS0102354, ,2020-10-01,2020-10-31,DC TELECOM TOLLS (TRANSFER),8706.88,2020
,2020 OFFICE OF THE SPEAKER,4,GENERAL EXPENDITURES,RENT  COMMUNICATION  UTILITIES,DETAIL,2020-11-24,GL,MED0102426, ,2020-11-11,2020-11-20,HIR GRAPHICS (TRANSFER),500,2020
,2020 OFFICE OF THE SPEAKER,4,GENERAL EXPENDITURES,RENT  COMMUNICATION  UTILITIES,DETAIL,2020-12-07,AP,1360365,WOLTERS KATE,2020-11-23,2020-11-23,POSTAGE / COURIER / BOX RENTAL,136.24,2020
,2020 OFFICE OF THE SPEAKER,4,GENERAL EXPENDITURES,RENT  COMMUNICATION  UTILITIES,DETAIL,2020-12-22,AP,1367381,FEDEX,2020-11-20,2020-11-20,POSTAGE / COURIER / BOX RENTAL,20.55,2020
,2020 OFFICE OF THE SPEAKER,4,GENERAL EXPENDITURES,RENT  COMMUNICATION  UTILITIES,DETAIL,2020-12-28,GL,EMS0103149, ,2020-11-01,2020-11-30,DC TELECOM EQUIP (TRANSFER),224,2020
,2020 OFFICE OF THE SPEAKER,4,GENERAL EXPENDITURES,RENT  COMMUNICATION  UTILITIES,DETAIL,2020-12-28,GL,EMS0103149, ,2020-11-01,2020-11-30,DC TELECOM SERV (TRANSFER),1204.25,2020
,2020 OFFICE OF THE SPEAKER,4,GENERAL EXPENDITURES,RENT  COMMUNICATION  UTILITIES,DETAIL,2020-12-28,GL,EMS0103149, ,2020-11-01,2020-11-30,DC TELECOM TOLLS (TRANSFER),7175.7,2020
,2020 OFFICE OF THE SPEAKER,4,GENERAL EXPENDITURES,RENT  COMMUNICATION  UTILITIES,DETAIL,2020-12-30,GL,MED0103249, ,2020-12-10,2020-12-16,HIR GRAPHICS (TRANSFER),100,2020
,2020 OFFICE OF THE SPEAKER,4,GENERAL EXPENDITURES,RENT  COMMUNICATION  UTILITIES,SUBTOTAL,   ,   ,   ,   ,   ,   ,RENT  COMMUNICATION  UTILITIES TOTALS:,30803.77,2020
,2020 OFFICE OF THE SPEAKER,4,GENERAL EXPENDITURES,PRINTING AND REPRODUCTION,DETAIL,2020-10-28,GL,MED0101823, ,2020-09-28,2020-10-02,PHOTOGRAPHIC (TRANSFER),120,2020
,2020 OFFICE OF THE SPEAKER,4,GENERAL EXPENDITURES,PRINTING AND REPRODUCTION,DETAIL,2020-11-24,GL,MED0102426, ,2020-10-30,2020-11-19,PHOTOGRAPHIC (TRANSFER),210,2020
,2020 OFFICE OF THE SPEAKER,4,GENERAL EXPENDITURES,PRINTING AND REPRODUCTION,DETAIL,2020-12-30,GL,MED0103249, ,2020-12-11,2020-12-11,PHOTOGRAPHIC (TRANSFER),40,2020
,2020 OFFICE OF THE SPEAKER,4,GENERAL EXPENDITURES,PRINTING AND REPRODUCTION,SUBTOTAL,   ,   ,   ,   ,   ,   ,PRINTING AND REPRODUCTION TOTALS:,370,2020
,2020 OFFICE OF THE SPEAKER,4,GENERAL EXPENDITURES,OTHER SERVICES,DETAIL,2020-10-07,AR,AC-16285,FEDERAL EXPRESS CORP          ,2020-08-01,2020-08-31,WEB DEV HST EMAIL & RLTD SERV,-350,2020
,2020 OFFICE OF THE SPEAKER,4,GENERAL EXPENDITURES,OTHER SERVICES,DETAIL,2020-10-15,AP,1343012,FIRESIDE21,2020-08-01,2020-08-31,WEB DEV HST EMAIL & RLTD SERV,350,2020
,2020 OFFICE OF THE SPEAKER,4,GENERAL EXPENDITURES,OTHER SERVICES,DETAIL,2020-10-16,AP,1343709,LEIDOS DIGITAL SOLUTIONS INC,2020-10-01,2020-10-31,TECHNOLOGY SERVICE CONTRACTS,1895,2020
,2020 OFFICE OF THE SPEAKER,4,GENERAL EXPENDITURES,OTHER SERVICES,DETAIL,2020-10-21,AP,1347274,FIRESIDE21,2020-09-01,2020-09-30,WEB DEV HST EMAIL & RLTD SERV,350,2020
,2020 OFFICE OF THE SPEAKER,4,GENERAL EXPENDITURES,OTHER SERVICES,DETAIL,2020-11-16,AP,1353434,LEIDOS DIGITAL SOLUTIONS INC,2020-11-01,2020-11-30,TECHNOLOGY SERVICE CONTRACTS,1895,2020
,2020 OFFICE OF THE SPEAKER,4,GENERAL EXPENDITURES,OTHER SERVICES,DETAIL,2020-11-19,AP,1356940,FIRESIDE21,2020-10-01,2020-10-31,WEB DEV HST EMAIL & RLTD SERV,350,2020
,2020 OFFICE OF THE SPEAKER,4,GENERAL EXPENDITURES,OTHER SERVICES,DETAIL,2020-12-16,AP,1364349,LEIDOS DIGITAL SOLUTIONS INC,2020-12-01,2020-12-31,TECHNOLOGY SERVICE CONTRACTS,1895,2020
,2020 OFFICE OF THE SPEAKER,4,GENERAL EXPENDITURES,OTHER SERVICES,DETAIL,2020-12-17,AP,1367280,FIRESIDE21,2020-11-01,2020-11-30,WEB DEV HST EMAIL & RLTD SERV,350,2020
,2020 OFFICE OF THE SPEAKER,4,GENERAL EXPENDITURES,OTHER SERVICES,SUBTOTAL,   ,   ,   ,   ,   ,   ,OTHER SERVICES TOTALS:,6735,2020
,2020 OFFICE OF THE SPEAKER,4,GENERAL EXPENDITURES,SUPPLIES AND MATERIALS,DETAIL,2020-10-02,AP,1332661,TOULIES EN FLEUR,2020-09-08,2020-09-28,HABITATION EXPENSE,800,2020
,2020 OFFICE OF THE SPEAKER,4,GENERAL EXPENDITURES,SUPPLIES AND MATERIALS,DETAIL,2020-10-08,AP,1340697,OCCASIONS CATERERS,2020-09-25,2020-09-25,FOOD & BEVERAGE,3220,2020
,2020 OFFICE OF THE SPEAKER,4,GENERAL EXPENDITURES,SUPPLIES AND MATERIALS,DETAIL,2020-10-08,AP,1340702,TOULIES EN FLEUR,2020-10-05,2020-10-05,HABITATION EXPENSE,200,2020
,2020 OFFICE OF THE SPEAKER,4,GENERAL EXPENDITURES,SUPPLIES AND MATERIALS,DETAIL,2020-10-08,AP,1340709,CONNECTION,2020-09-11,2020-09-11,OFFICE SUPPLIES (OUTSIDE),513.49,2020
,2020 OFFICE OF THE SPEAKER,4,GENERAL EXPENDITURES,SUPPLIES AND MATERIALS,DETAIL,2020-10-08,AP,1340710,CONNECTION,2020-09-22,2020-09-22,OFFICE SUPPLIES (OUTSIDE),1372,2020
,2020 OFFICE OF THE SPEAKER,4,GENERAL EXPENDITURES,SUPPLIES AND MATERIALS,DETAIL,2020-10-08,AP,1340712,CONNECTION,2020-09-08,2020-09-08,OFFICE SUPPLIES (OUTSIDE),505.68,2020
,2020 OFFICE OF THE SPEAKER,4,GENERAL EXPENDITURES,SUPPLIES AND MATERIALS,DETAIL,2020-10-08,AP,1340713,CONNECTION,2020-09-25,2020-09-25,OFFICE SUPPLIES (OUTSIDE),169.98,2020
,2020 OFFICE OF THE SPEAKER,4,GENERAL EXPENDITURES,SUPPLIES AND MATERIALS,DETAIL,2020-10-08,AP,1340715,CONNECTION,2020-09-23,2020-09-23,OFFICE SUPPLIES (OUTSIDE),169.04,2020
,2020 OFFICE OF THE SPEAKER,4,GENERAL EXPENDITURES,SUPPLIES AND MATERIALS,DETAIL,2020-10-08,AP,1340716,CONNECTION,2020-09-09,2020-09-09,OFFICE SUPPLIES (OUTSIDE),259,2020
,2020 OFFICE OF THE SPEAKER,4,GENERAL EXPENDITURES,SUPPLIES AND MATERIALS,DETAIL,2020-10-09,AP,1340699,OCCASIONS CATERERS,2020-09-25,2020-09-25,FOOD & BEVERAGE,6800,2020
,2020 OFFICE OF THE SPEAKER,4,GENERAL EXPENDITURES,SUPPLIES AND MATERIALS,DETAIL,2020-10-09,AP,1340706,CONNECTION,2020-08-21,2020-08-21,OFFICE SUPPLIES (OUTSIDE),433,2020
,2020 OFFICE OF THE SPEAKER,4,GENERAL EXPENDITURES,SUPPLIES AND MATERIALS,DETAIL,2020-10-19,AP,1341609,CITI PCARD-WE THE PIZZA,2020-09-09,2020-09-09,FOOD & BEVERAGE,151.11,2020
,2020 OFFICE OF THE SPEAKER,4,GENERAL EXPENDITURES,SUPPLIES AND MATERIALS,DETAIL,2020-10-19,AP,1341609,CITI PCARD-WE THE PIZZA,2020-09-22,2020-09-22,FOOD & BEVERAGE,189.75,2020
,2020 OFFICE OF THE SPEAKER,4,GENERAL EXPENDITURES,SUPPLIES AND MATERIALS,DETAIL,2020-10-21,AP,1347029,SUBURBAN FLORIST INC,2020-09-21,2020-09-21,HABITATION EXPENSE,500,2020
,2020 OFFICE OF THE SPEAKER,4,GENERAL EXPENDITURES,SUPPLIES AND MATERIALS,DETAIL,2020-10-30,GL,RMS0101913, ,2020-10-01,2020-10-31,OFFICE SUPPLY (TRANSFER),280,2020
,2020 OFFICE OF THE SPEAKER,4,GENERAL EXPENDITURES,SUPPLIES AND MATERIALS,DETAIL,2020-11-17,AP,1354335,CITI PCARD-AVERY PRODUCTS CORPORATIO,2020-10-08,2020-10-08,OFFICE SUPPLIES (OUTSIDE),59.28,2020
,2020 OFFICE OF THE SPEAKER,4,GENERAL EXPENDITURES,SUPPLIES AND MATERIALS,DETAIL,2020-11-17,AP,1354335,CITI PCARD-WE THE PIZZA,2020-10-01,2020-10-01,FOOD & BEVERAGE,119.42,2020
,2020 OFFICE OF THE SPEAKER,4,GENERAL EXPENDITURES,SUPPLIES AND MATERIALS,DETAIL,2020-11-17,AP,1354335,CITI PCARD-WWW COSTCO COM,2020-09-28,2020-09-28,FOOD & BEVERAGE,159.95,2020
,2020 OFFICE OF THE SPEAKER,4,GENERAL EXPENDITURES,SUPPLIES AND MATERIALS,DETAIL,2020-11-17,AP,1354335,CITI PCARD-WWW COSTCO COM,2020-09-28,2020-09-28,OFFICE SUPPLIES (OUTSIDE),24.98,2020
,2020 OFFICE OF THE SPEAKER,4,GENERAL EXPENDITURES,SUPPLIES AND MATERIALS,DETAIL,2020-11-20,AP,1356844,CONNECTION,2020-10-20,2020-10-20,OFFICE SUPPLIES (OUTSIDE),611,2020
,2020 OFFICE OF THE SPEAKER,4,GENERAL EXPENDITURES,SUPPLIES AND MATERIALS,DETAIL,2020-11-30,GL,RMS0102573, ,2020-11-01,2020-11-30,OFFICE SUPPLY (TRANSFER),309.27,2020
,2020 OFFICE OF THE SPEAKER,4,GENERAL EXPENDITURES,SUPPLIES AND MATERIALS,DETAIL,2020-12-04,AP,1357955,OCCASIONS CATERERS,2020-11-16,2020-11-16,FOOD & BEVERAGE,7060.13,2020
,2020 OFFICE OF THE SPEAKER,4,GENERAL EXPENDITURES,SUPPLIES AND MATERIALS,DETAIL,2020-12-04,AP,1360347,TOULIES EN FLEUR,2020-10-23,2020-10-23,HABITATION EXPENSE,200,2020
,2020 OFFICE OF THE SPEAKER,4,GENERAL EXPENDITURES,SUPPLIES AND MATERIALS,DETAIL,2020-12-04,AP,1360350,TOULIES EN FLEUR,2020-11-02,2020-11-30,HABITATION EXPENSE,1100,2020
,2020 OFFICE OF THE SPEAKER,4,GENERAL EXPENDITURES,SUPPLIES AND MATERIALS,DETAIL,2020-12-04,AP,1360467,CONNECTION,2020-11-18,2020-11-18,OFFICE SUPPLIES (OUTSIDE),117,2020
,2020 OFFICE OF THE SPEAKER,4,GENERAL EXPENDITURES,SUPPLIES AND MATERIALS,DETAIL,2020-12-08,AP,1360356,TOULIES EN FLEUR,2020-12-07,2020-12-07,HABITATION EXPENSE,200,2020
,2020 OFFICE OF THE SPEAKER,4,GENERAL EXPENDITURES,SUPPLIES AND MATERIALS,DETAIL,2020-12-15,AP,1362365,CITI PCARD-WE THE PIZZA,2020-10-30,2020-10-30,FOOD & BEVERAGE,113.67,2020
,2020 OFFICE OF THE SPEAKER,4,GENERAL EXPENDITURES,SUPPLIES AND MATERIALS,DETAIL,2020-12-15,AP,1362365,CITI PCARD-WE THE PIZZA,2020-11-02,2020-11-02,FOOD & BEVERAGE,114.65,2020
,2020 OFFICE OF THE SPEAKER,4,GENERAL EXPENDITURES,SUPPLIES AND MATERIALS,DETAIL,2020-12-15,AP,1362365,CITI PCARD-WE THE PIZZA,2020-11-05,2020-11-05,FOOD & BEVERAGE,138.8,2020
,2020 OFFICE OF THE SPEAKER,4,GENERAL EXPENDITURES,SUPPLIES AND MATERIALS,DETAIL,2020-12-17,AP,1362427,CITI PCARD-SKYPE.COM/GO/BILL,2020-09-24,2020-10-23,SOFTWARE  LESS THAN  $500,2.99,2020
,2020 OFFICE OF THE SPEAKER,4,GENERAL EXPENDITURES,SUPPLIES AND MATERIALS,DETAIL,2020-12-17,AP,1362427,CITI PCARD-SKYPE.COM/GO/BILL,2020-10-24,2020-11-23,SOFTWARE  LESS THAN  $500,2.99,2020
,2020 OFFICE OF THE SPEAKER,4,GENERAL EXPENDITURES,SUPPLIES AND MATERIALS,DETAIL,2020-12-17,AP,1362427,CITI PCARD-SKYPE.COM/GO/BILL,2020-11-24,2020-12-23,SOFTWARE  LESS THAN  $500,2.99,2020
,2020 OFFICE OF THE SPEAKER,4,GENERAL EXPENDITURES,SUPPLIES AND MATERIALS,DETAIL,2020-12-17,AP,1363116,BGOV LLC,2021-01-01,2022-12-31,PUBLICATIONS/REFERENCE MAT'L,11880,2020
,2020 OFFICE OF THE SPEAKER,4,GENERAL EXPENDITURES,SUPPLIES AND MATERIALS,DETAIL,2020-12-17,AP,1363121,NATIONAL NEWS AGENCY INC,2021-01-01,2021-12-31,PUBLICATIONS/REFERENCE MAT'L,2654.37,2020
,2020 OFFICE OF THE SPEAKER,4,GENERAL EXPENDITURES,SUPPLIES AND MATERIALS,DETAIL,2020-12-17,AP,1363126,POLITICO LLC,2020-12-17,2021-12-16,PUBLICATIONS/REFERENCE MAT'L,7950,2020
,2020 OFFICE OF THE SPEAKER,4,GENERAL EXPENDITURES,SUPPLIES AND MATERIALS,DETAIL,2020-12-17,AP,1363129,TVEYES INC,2021-01-01,2022-12-31,PUBLICATIONS/REFERENCE MAT'L,2400,2020
,2020 OFFICE OF THE SPEAKER,4,GENERAL EXPENDITURES,SUPPLIES AND MATERIALS,DETAIL,2020-12-18,AP,1363119,LEXISNEXIS,2021-01-01,2021-12-31,PUBLICATIONS/REFERENCE MAT'L,22308,2020
,2020 OFFICE OF THE SPEAKER,4,GENERAL EXPENDITURES,SUPPLIES AND MATERIALS,DETAIL,2020-12-22,AP,1367421,CAPITAL GIFTS AND AWARDS INC,2020-11-20,2020-11-20,OFFICE SUPPLIES (OUTSIDE),21151.55,2020
,2020 OFFICE OF THE SPEAKER,4,GENERAL EXPENDITURES,SUPPLIES AND MATERIALS,DETAIL,2020-12-31,GL,RMS0103333, ,2020-12-01,2020-12-31,OFFICE SUPPLY (TRANSFER),10953.15,2020
,2020 OFFICE OF THE SPEAKER,4,GENERAL EXPENDITURES,SUPPLIES AND MATERIALS,SUBTOTAL,   ,   ,   ,   ,   ,   ,SUPPLIES AND MATERIALS TOTALS:,105197.24,2020
,2020 OFFICE OF THE SPEAKER,4,GENERAL EXPENDITURES,EQUIPMENT,DETAIL,2020-10-30,GL,MNT0101914, ,2020-10-01,2020-10-31,MAINTENANCE / REPAIRS,916,2020
,2020 OFFICE OF THE SPEAKER,4,GENERAL EXPENDITURES,EQUIPMENT,DETAIL,2020-11-02,AP,1349586,CONNECTION,2020-08-17,2020-08-17,COMPUTER HARDW PURCH  LESS THAN $25 000,1284,2020
,2020 OFFICE OF THE SPEAKER,4,GENERAL EXPENDITURES,EQUIPMENT,DETAIL,2020-11-10,AP,1349879,CONNECTION,2020-10-06,2020-10-06,COMPUTER SOFTW PURCH  LESS THAN $10 000 QTY - 5,5195,2020
,2020 OFFICE OF THE SPEAKER,4,GENERAL EXPENDITURES,EQUIPMENT,DETAIL,2020-11-20,AP,1356845,CONNECTION,2020-10-26,2020-10-26,COMPUTER HARDW PURCH  LESS THAN $25 000,378.26,2020
,2020 OFFICE OF THE SPEAKER,4,GENERAL EXPENDITURES,EQUIPMENT,DETAIL,2020-11-23,AP,1354470,MILLER MONTANA R.,2020-10-17,2020-10-17,MAINTENANCE / REPAIRS,157.94,2020
,2020 OFFICE OF THE SPEAKER,4,GENERAL EXPENDITURES,EQUIPMENT,DETAIL,2020-11-30,GL,MNT0102510, ,2020-11-01,2020-11-30,MAINTENANCE / REPAIRS,916,2020
,2020 OFFICE OF THE SPEAKER,4,GENERAL EXPENDITURES,EQUIPMENT,DETAIL,2020-12-22,AP,1368808,BERMAN DATABASE SYSTEMS,2021-01-01,2022-12-31,MAINTENANCE / REPAIRS,12000,2020
,2020 OFFICE OF THE SPEAKER,4,GENERAL EXPENDITURES,EQUIPMENT,DETAIL,2020-12-31,GL,MNT0103285, ,2020-12-01,2020-12-31,MAINTENANCE / REPAIRS,916,2020
,2020 OFFICE OF THE SPEAKER,4,GENERAL EXPENDITURES,EQUIPMENT,SUBTOTAL,   ,   ,   ,   ,   ,   ,EQUIPMENT TOTALS:,21763.2,2020
,2020 OFFICE OF THE SPEAKER,4,GENERAL EXPENDITURES,EQUIPMENT,SUBTOTAL,   ,   ,   ,   ,   ,   ,GENERAL EXPENDITURES TOTALS:,1945505.99,2020
,2020 OFFICE OF THE SPEAKER,4,GENERAL EXPENDITURES,EQUIPMENT,GRAND TOTAL FOR ORGANIZATION,   ,   ,   ,   ,   ,   ,OFFICE TOTALS: ,1945505.99,2020
,2020 OFFICE OF THE SPEAKER,4,INTERN ALLOWANCES,PERSONNEL COMPENSATION,DETAIL,   ,   ,   ,LAM JASON D.,2020-09-28,2020-12-11,SPEAKER PAID INTERN - HOUSE PR,4440,2020
,2020 OFFICE OF THE SPEAKER,4,INTERN ALLOWANCES,PERSONNEL COMPENSATION,DETAIL,   ,   ,   ,MARTINO RHETT M.,2020-09-28,2020-12-11,SPEAKER PAID INTERN - HOUSE PR,4440,2020
,2020 OFFICE OF THE SPEAKER,4,INTERN ALLOWANCES,PERSONNEL COMPENSATION,DETAIL,   ,   ,   ,SHAFFER CARLY M.,2020-09-28,2020-12-11,SPEAKER PAID INTERN - HOUSE PR,4440,2020
,2020 OFFICE OF THE SPEAKER,4,INTERN ALLOWANCES,PERSONNEL COMPENSATION,SUBTOTAL,   ,   ,   ,   ,   ,   ,PERSONNEL COMPENSATION TOTALS:,13320,2020
,2020 OFFICE OF THE SPEAKER,4,INTERN ALLOWANCES,PERSONNEL COMPENSATION,SUBTOTAL,   ,   ,   ,   ,   ,   ,INTERN ALLOWANCES TOTALS:,13320,2020
,2020 OFFICE OF THE SPEAKER,4,INTERN ALLOWANCES,PERSONNEL COMPENSATION,GRAND TOTAL FOR ORGANIZATION,   ,   ,   ,   ,   ,   ,OFFICE TOTALS: ,13320,2020
,2020 OFFICE OF THE MAJORITY LEADER,4,GENERAL EXPENDITURES,PERSONNEL COMPENSATION,DETAIL,   ,   ,   ,ABOUCHAR KEITH S.,2020-10-01,2020-12-31,SENIOR POLICY ADVISOR,43475.01,2020
,2020 OFFICE OF THE MAJORITY LEADER,4,GENERAL EXPENDITURES,PERSONNEL COMPENSATION,DETAIL,   ,   ,   ,BAUSERMAN TRENTON D,2020-10-01,2020-12-31,SENIOR POLICY ADVISOR,43475.01,2020
,2020 OFFICE OF THE MAJORITY LEADER,4,GENERAL EXPENDITURES,PERSONNEL COMPENSATION,DETAIL,   ,   ,   ,BAYER JOHN S,2020-10-01,2020-12-31,OFFICE MANAGER/EXEC ASST,31250.01,2020
,2020 OFFICE OF THE MAJORITY LEADER,4,GENERAL EXPENDITURES,PERSONNEL COMPENSATION,DETAIL,   ,   ,   ,BEAN HARLEIGH J,2020-10-01,2020-12-31,STAFF ASSISTANT,17500,2020
,2020 OFFICE OF THE MAJORITY LEADER,4,GENERAL EXPENDITURES,PERSONNEL COMPENSATION,DETAIL,   ,   ,   ,BEAN HARLEIGH J,2020-09-01,2020-11-30,STAFF ASSISTANT (OVERTIME),5581.67,2020
,2020 OFFICE OF THE MAJORITY LEADER,4,GENERAL EXPENDITURES,PERSONNEL COMPENSATION,DETAIL,   ,   ,   ,BRENNAN BRIDGET E,2020-10-01,2020-12-31,DIRECTOR OF SCHEDULING,35000.01,2020
,2020 OFFICE OF THE MAJORITY LEADER,4,GENERAL EXPENDITURES,PERSONNEL COMPENSATION,DETAIL,   ,   ,   ,COVEY-BRANDT ALEXIS,2020-10-01,2020-12-31,CHIEF OF STAFF,43475.01,2020
,2020 OFFICE OF THE MAJORITY LEADER,4,GENERAL EXPENDITURES,PERSONNEL COMPENSATION,DETAIL,   ,   ,   ,DAVIS ANNALIESE E,2020-10-01,2020-12-31,MARYLAND PRESS SECRETARY,17000.01,2020
,2020 OFFICE OF THE MAJORITY LEADER,4,GENERAL EXPENDITURES,PERSONNEL COMPENSATION,DETAIL,   ,   ,   ,DREW KATHRYN L,2020-10-01,2020-12-31,COMM DIR AND SR ADVISOR,43475.01,2020
,2020 OFFICE OF THE MAJORITY LEADER,4,GENERAL EXPENDITURES,PERSONNEL COMPENSATION,DETAIL,   ,   ,   ,DWYER STEPHEN,2020-10-01,2020-12-31,DIGITAL DIR & POLICY ADV,25725,2020
,2020 OFFICE OF THE MAJORITY LEADER,4,GENERAL EXPENDITURES,PERSONNEL COMPENSATION,DETAIL,   ,   ,   ,FRY COURTNEY,2020-10-01,2020-12-31,MEMBER SERVICES DIRECTOR,43475.01,2020
,2020 OFFICE OF THE MAJORITY LEADER,4,GENERAL EXPENDITURES,PERSONNEL COMPENSATION,DETAIL,   ,   ,   ,GOFF SHUWANZA R,2020-01-03,2020-12-31,FLOOR DIRECTOR,47875.59,2020
,2020 OFFICE OF THE MAJORITY LEADER,4,GENERAL EXPENDITURES,PERSONNEL COMPENSATION,DETAIL,   ,   ,   ,LEUSCHEN JAMES P.,2020-10-01,2020-12-31,SENIOR POLICY ADVISOR,43475.01,2020
,2020 OFFICE OF THE MAJORITY LEADER,4,GENERAL EXPENDITURES,PERSONNEL COMPENSATION,DETAIL,   ,   ,   ,MAHR THOMAS,2020-10-01,2020-12-31,POLICY DIRECTOR,43475.01,2020
,2020 OFFICE OF THE MAJORITY LEADER,4,GENERAL EXPENDITURES,PERSONNEL COMPENSATION,DETAIL,   ,   ,   ,MEHRAN NICOLETTE,2020-09-01,2020-12-31,STAFF ASSISTANT,17249.99,2020
,2020 OFFICE OF THE MAJORITY LEADER,4,GENERAL EXPENDITURES,PERSONNEL COMPENSATION,DETAIL,   ,   ,   ,MEHRAN NICOLETTE,2020-09-01,2020-11-30,STAFF ASSISTANT (OVERTIME),2564.39,2020
,2020 OFFICE OF THE MAJORITY LEADER,4,GENERAL EXPENDITURES,PERSONNEL COMPENSATION,DETAIL,   ,   ,   ,MERZ JULIE E,2020-10-01,2020-12-31,SENIOR ADVISOR,39249.99,2020
,2020 OFFICE OF THE MAJORITY LEADER,4,GENERAL EXPENDITURES,PERSONNEL COMPENSATION,DETAIL,   ,   ,   ,ROMICK BRIAN,2020-10-01,2020-12-31,DEPUTY CHIEF OF STAFF,43475.01,2020
,2020 OFFICE OF THE MAJORITY LEADER,4,GENERAL EXPENDITURES,PERSONNEL COMPENSATION,DETAIL,   ,   ,   ,ROWE DEBORAH M,2020-08-01,2020-12-31,FLOOR ASSISTANT,43750,2020
,2020 OFFICE OF THE MAJORITY LEADER,4,GENERAL EXPENDITURES,PERSONNEL COMPENSATION,DETAIL,   ,   ,   ,SAEZ MARIEL S,2020-07-01,2020-12-31,DEPUTY COMMUNICATIONS DIRECTOR,11992.77,2020
,2020 OFFICE OF THE MAJORITY LEADER,4,GENERAL EXPENDITURES,PERSONNEL COMPENSATION,DETAIL,   ,   ,   ,SALAZAR HANNAH L.,2020-11-01,2020-12-31,STAFF ASSISTANT,13111.11,2020
,2020 OFFICE OF THE MAJORITY LEADER,4,GENERAL EXPENDITURES,PERSONNEL COMPENSATION,DETAIL,   ,   ,   ,SALAZAR HANNAH L.,2020-11-01,2020-11-30,STAFF ASSISTANT (OVERTIME),100.96,2020
,2020 OFFICE OF THE MAJORITY LEADER,4,GENERAL EXPENDITURES,PERSONNEL COMPENSATION,DETAIL,   ,   ,   ,SALAZAR RAYMOND J.,2020-08-01,2020-12-31,DEPUTY FLOOR DIRECTOR,45000.01,2020
,2020 OFFICE OF THE MAJORITY LEADER,4,GENERAL EXPENDITURES,PERSONNEL COMPENSATION,DETAIL,   ,   ,   ,SILVERBERG DANIEL I,2020-10-01,2020-12-31,SENIOR POLICY ADVISOR,24725.01,2020
,2020 OFFICE OF THE MAJORITY LEADER,4,GENERAL EXPENDITURES,PERSONNEL COMPENSATION,DETAIL,   ,   ,   ,SNYDER RACHEL N,2020-10-01,2020-12-31,SENIOR POLICY ADVISOR,38567.01,2020
,2020 OFFICE OF THE MAJORITY LEADER,4,GENERAL EXPENDITURES,PERSONNEL COMPENSATION,DETAIL,   ,   ,   ,SPAK MICHAEL J,2020-10-01,2020-12-31,STAFF ASSISTANT,17500,2020
,2020 OFFICE OF THE MAJORITY LEADER,4,GENERAL EXPENDITURES,PERSONNEL COMPENSATION,DETAIL,   ,   ,   ,SPAK MICHAEL J,2020-09-01,2020-11-30,STAFF ASSISTANT (OVERTIME),4802.84,2020
,2020 OFFICE OF THE MAJORITY LEADER,4,GENERAL EXPENDITURES,PERSONNEL COMPENSATION,DETAIL,   ,   ,   ,TRAUBERMAN JACOB M,2020-10-01,2020-12-31,SPECIAL ASSISTANT,25000,2020
,2020 OFFICE OF THE MAJORITY LEADER,4,GENERAL EXPENDITURES,PERSONNEL COMPENSATION,DETAIL,   ,   ,   ,URRABAZO CLAUDIA,2020-08-01,2020-12-31,DEP. DIR OF MBR SER & OUTR ADV,53291.69,2020
,2020 OFFICE OF THE MAJORITY LEADER,4,GENERAL EXPENDITURES,PERSONNEL COMPENSATION,DETAIL,   ,   ,   ,VALENTINE MAYA I,2020-10-01,2020-12-31,PRESS ASSISTANT & RESEARCHER,22749.99,2020
,2020 OFFICE OF THE MAJORITY LEADER,4,GENERAL EXPENDITURES,PERSONNEL COMPENSATION,DETAIL,   ,   ,   ,WEISSMANN ADAM,2020-10-01,2020-12-31,SPEECHWRITER,35833.34,2020
,2020 OFFICE OF THE MAJORITY LEADER,4,GENERAL EXPENDITURES,PERSONNEL COMPENSATION,SUBTOTAL,   ,   ,   ,   ,   ,   ,PERSONNEL COMPENSATION TOTALS:,923221.47,2020
,2020 OFFICE OF THE MAJORITY LEADER,4,GENERAL EXPENDITURES,TRAVEL,DETAIL,2020-11-13,AP,1351794,SALAZAR RAYMOND J.,2020-05-15,2020-05-28,TAXI/PARKING/TOLLS,87.92,2020
,2020 OFFICE OF THE MAJORITY LEADER,4,GENERAL EXPENDITURES,TRAVEL,DETAIL,2020-11-13,AP,1351794,SALAZAR RAYMOND J.,2020-06-25,2020-06-30,TAXI/PARKING/TOLLS,167.82,2020
,2020 OFFICE OF THE MAJORITY LEADER,4,GENERAL EXPENDITURES,TRAVEL,DETAIL,2020-11-13,AP,1351794,SALAZAR RAYMOND J.,2020-07-01,2020-07-31,TAXI/PARKING/TOLLS,325.83,2020
,2020 OFFICE OF THE MAJORITY LEADER,4,GENERAL EXPENDITURES,TRAVEL,DETAIL,2020-12-09,AP,1362217,VALENTINE MAYA I.,2020-11-03,2020-11-20,TAXI/PARKING/TOLLS,141.99,2020
,2020 OFFICE OF THE MAJORITY LEADER,4,GENERAL EXPENDITURES,TRAVEL,DETAIL,2020-12-17,AP,1367262,SALAZAR HANNAH L.,2020-12-07,2020-12-16,TAXI/PARKING/TOLLS,91.28,2020
,2020 OFFICE OF THE MAJORITY LEADER,4,GENERAL EXPENDITURES,TRAVEL,DETAIL,2020-12-17,AP,1367270,VALENTINE MAYA I.,2020-12-03,2020-12-10,TAXI/PARKING/TOLLS,95.35,2020
,2020 OFFICE OF THE MAJORITY LEADER,4,GENERAL EXPENDITURES,TRAVEL,DETAIL,2020-12-21,AP,1367236,BEAN HARLEIGH J.,2020-08-07,2020-08-07,TAXI/PARKING/TOLLS,19.82,2020
,2020 OFFICE OF THE MAJORITY LEADER,4,GENERAL EXPENDITURES,TRAVEL,DETAIL,2020-12-21,AP,1367236,BEAN HARLEIGH J.,2020-10-01,2020-10-01,TAXI/PARKING/TOLLS,8.31,2020
,2020 OFFICE OF THE MAJORITY LEADER,4,GENERAL EXPENDITURES,TRAVEL,DETAIL,2020-12-21,AP,1367236,BEAN HARLEIGH J.,2020-11-03,2020-11-20,TAXI/PARKING/TOLLS,94.33,2020
,2020 OFFICE OF THE MAJORITY LEADER,4,GENERAL EXPENDITURES,TRAVEL,DETAIL,2020-12-21,AP,1367236,BEAN HARLEIGH J.,2020-12-02,2020-12-09,TAXI/PARKING/TOLLS,71.56,2020
,2020 OFFICE OF THE MAJORITY LEADER,4,GENERAL EXPENDITURES,TRAVEL,DETAIL,2020-12-22,AP,1368177,SALAZAR RAYMOND J.,2020-09-14,2020-10-01,TAXI/PARKING/TOLLS,301.12,2020
,2020 OFFICE OF THE MAJORITY LEADER,4,GENERAL EXPENDITURES,TRAVEL,DETAIL,2020-12-22,AP,1368177,SALAZAR RAYMOND J.,2020-10-02,2020-10-02,TAXI/PARKING/TOLLS,37.08,2020
,2020 OFFICE OF THE MAJORITY LEADER,4,GENERAL EXPENDITURES,TRAVEL,DETAIL,2020-12-22,AP,1368177,SALAZAR RAYMOND J.,2020-11-16,2020-12-10,TAXI/PARKING/TOLLS,249.85,2020
,2020 OFFICE OF THE MAJORITY LEADER,4,GENERAL EXPENDITURES,TRAVEL,SUBTOTAL,   ,   ,   ,   ,   ,   ,TRAVEL TOTALS:,1692.26,2020
,2020 OFFICE OF THE MAJORITY LEADER,4,GENERAL EXPENDITURES,RENT  COMMUNICATION  UTILITIES,DETAIL,2020-10-16,AP,1340012,CITI PCARD-USPS PO 1050091422,2020-09-16,2020-09-16,POSTAGE / COURIER / BOX RENTAL,109.3,2020
,2020 OFFICE OF THE MAJORITY LEADER,4,GENERAL EXPENDITURES,RENT  COMMUNICATION  UTILITIES,SUBTOTAL,   ,   ,   ,   ,   ,   ,RENT  COMMUNICATION  UTILITIES TOTALS:,109.3,2020
,2020 OFFICE OF THE MAJORITY LEADER,4,GENERAL EXPENDITURES,PRINTING AND REPRODUCTION,DETAIL,2020-12-30,GL,MED0103249, ,2020-12-08,2020-12-08,PHOTOGRAPHIC (TRANSFER),9,2020
,2020 OFFICE OF THE MAJORITY LEADER,4,GENERAL EXPENDITURES,PRINTING AND REPRODUCTION,SUBTOTAL,   ,   ,   ,   ,   ,   ,PRINTING AND REPRODUCTION TOTALS:,9,2020
,2020 OFFICE OF THE MAJORITY LEADER,4,GENERAL EXPENDITURES,OTHER SERVICES,DETAIL,2020-12-24,AP,1368100,CITI PCARD-MAILCHIMP    MONTHLY,2020-10-31,2020-11-30,WEB DEV HST EMAIL & RLTD SERV,285.14,2020
,2020 OFFICE OF THE MAJORITY LEADER,4,GENERAL EXPENDITURES,OTHER SERVICES,SUBTOTAL,   ,   ,   ,   ,   ,   ,OTHER SERVICES TOTALS:,285.14,2020
,2020 OFFICE OF THE MAJORITY LEADER,4,GENERAL EXPENDITURES,SUPPLIES AND MATERIALS,DETAIL,2020-10-16,AP,1340012,CITI PCARD-POTBELLY #256,2020-09-24,2020-09-24,FOOD & BEVERAGE,2390.85,2020
,2020 OFFICE OF THE MAJORITY LEADER,4,GENERAL EXPENDITURES,SUPPLIES AND MATERIALS,DETAIL,2020-10-30,AP,1348838,READYREFRESH BY NESTLE,2020-09-30,2020-09-30,WATER,125.28,2020
,2020 OFFICE OF THE MAJORITY LEADER,4,GENERAL EXPENDITURES,SUPPLIES AND MATERIALS,DETAIL,2020-11-25,AP,1357933,READYREFRESH BY NESTLE,2020-10-31,2020-10-31,WATER,157.73,2020
,2020 OFFICE OF THE MAJORITY LEADER,4,GENERAL EXPENDITURES,SUPPLIES AND MATERIALS,DETAIL,2020-12-24,AP,1368100,CITI PCARD-AMZN Mktp US 286Y87H30,2020-11-04,2020-11-04,OFFICE SUPPLIES (OUTSIDE),45.9,2020
,2020 OFFICE OF THE MAJORITY LEADER,4,GENERAL EXPENDITURES,SUPPLIES AND MATERIALS,DETAIL,2020-12-24,AP,1368100,CITI PCARD-AMZN Mktp US 287EL4SP2,2020-11-10,2020-11-10,OFFICE SUPPLIES (OUTSIDE),26.99,2020
,2020 OFFICE OF THE MAJORITY LEADER,4,GENERAL EXPENDITURES,SUPPLIES AND MATERIALS,DETAIL,2020-12-24,AP,1368100,CITI PCARD-AMZN Mktp US 4V7B13CM3,2020-11-18,2020-11-18,OFFICE SUPPLIES (OUTSIDE),33.98,2020
,2020 OFFICE OF THE MAJORITY LEADER,4,GENERAL EXPENDITURES,SUPPLIES AND MATERIALS,DETAIL,2020-12-24,AP,1368100,CITI PCARD-Amazon web services,2020-10-01,2020-10-31,SOFTWARE  LESS THAN  $500,382.79,2020
,2020 OFFICE OF THE MAJORITY LEADER,4,GENERAL EXPENDITURES,SUPPLIES AND MATERIALS,DETAIL,2020-12-24,AP,1368100,CITI PCARD-GOOGLE  CLOUD_00ED7D-A,2020-10-01,2020-10-31,SOFTWARE  LESS THAN  $500,476.91,2020
,2020 OFFICE OF THE MAJORITY LEADER,4,GENERAL EXPENDITURES,SUPPLIES AND MATERIALS,DETAIL,2020-12-24,AP,1368100,CITI PCARD-Twilio 39SQA516K9P,2020-11-09,2020-11-09,SOFTWARE  LESS THAN  $500,10.42,2020
,2020 OFFICE OF THE MAJORITY LEADER,4,GENERAL EXPENDITURES,SUPPLIES AND MATERIALS,DETAIL,2020-12-29,AP,1369400,READYREFRESH BY NESTLE,2020-11-30,2020-11-30,WATER,118.79,2020
,2020 OFFICE OF THE MAJORITY LEADER,4,GENERAL EXPENDITURES,SUPPLIES AND MATERIALS,SUBTOTAL,   ,   ,   ,   ,   ,   ,SUPPLIES AND MATERIALS TOTALS:,3769.64,2020
,2020 OFFICE OF THE MAJORITY LEADER,4,GENERAL EXPENDITURES,EQUIPMENT,DETAIL,2020-10-30,GL,MNT0101914, ,2020-10-01,2020-10-31,MAINTENANCE / REPAIRS,222.47,2020
,2020 OFFICE OF THE MAJORITY LEADER,4,GENERAL EXPENDITURES,EQUIPMENT,DETAIL,2020-10-31,GL,GLA0102004, ,2020-09-01,2020-09-30,MAINTENANCE / REPAIRS,-222.47,2020
,2020 OFFICE OF THE MAJORITY LEADER,4,GENERAL EXPENDITURES,EQUIPMENT,DETAIL,2020-12-24,AP,1368100,CITI PCARD-APPLE.COM/US,2020-11-10,2020-11-10,COMPUTER HARDW PURCH  LESS THAN $25 000,633.83,2020
,2020 OFFICE OF THE MAJORITY LEADER,4,GENERAL EXPENDITURES,EQUIPMENT,SUBTOTAL,   ,   ,   ,   ,   ,   ,EQUIPMENT TOTALS:,633.83,2020
,2020 OFFICE OF THE MAJORITY LEADER,4,GENERAL EXPENDITURES,EQUIPMENT,SUBTOTAL,   ,   ,   ,   ,   ,   ,GENERAL EXPENDITURES TOTALS:,929720.64,2020
,2020 OFFICE OF THE MAJORITY LEADER,4,GENERAL EXPENDITURES,EQUIPMENT,GRAND TOTAL FOR ORGANIZATION,   ,   ,   ,   ,   ,   ,OFFICE TOTALS: ,929720.64,2020
,2020 OFFICE OF THE MAJORITY LEADER,4,INTERN ALLOWANCES,PERSONNEL COMPENSATION,DETAIL,   ,   ,   ,DUTTON ZOE P.,2020-10-01,2020-12-21,MAJ LEADER PAID INTERN - HOUSE,4860,2020
,2020 OFFICE OF THE MAJORITY LEADER,4,INTERN ALLOWANCES,PERSONNEL COMPENSATION,DETAIL,   ,   ,   ,RIVERA JOSHUA A.,2020-10-01,2020-12-21,MAJ LEADER PAID INTERN - HOUSE,4860,2020
,2020 OFFICE OF THE MAJORITY LEADER,4,INTERN ALLOWANCES,PERSONNEL COMPENSATION,DETAIL,   ,   ,   ,RODRIGUEZ BENJAMIN E.,2020-10-01,2020-12-21,MAJ LEADER PAID INTERN - HOUSE,4860,2020
,2020 OFFICE OF THE MAJORITY LEADER,4,INTERN ALLOWANCES,PERSONNEL COMPENSATION,DETAIL,   ,   ,   ,SALAZAR HANNAH L.,2020-10-01,2020-11-30,MAJ LEADER PAID INTERN - HOUSE,3000,2020
,2020 OFFICE OF THE MAJORITY LEADER,4,INTERN ALLOWANCES,PERSONNEL COMPENSATION,SUBTOTAL,   ,   ,   ,   ,   ,   ,PERSONNEL COMPENSATION TOTALS:,17580,2020
,2020 OFFICE OF THE MAJORITY LEADER,4,INTERN ALLOWANCES,PERSONNEL COMPENSATION,SUBTOTAL,   ,   ,   ,   ,   ,   ,INTERN ALLOWANCES TOTALS:,17580,2020
,2020 OFFICE OF THE MAJORITY LEADER,4,INTERN ALLOWANCES,PERSONNEL COMPENSATION,GRAND TOTAL FOR ORGANIZATION,   ,   ,   ,   ,   ,   ,OFFICE TOTALS: ,17580,2020
,2020 OFFICE OF THE MINORITY LEADER,4,GENERAL EXPENDITURES,PERSONNEL COMPENSATION,DETAIL,   ,   ,   ,BEDNAR MARK M,2020-10-01,2020-12-31,DIR OF STRATEGIC COMMUNICATION,38250,2020
,2020 OFFICE OF THE MINORITY LEADER,4,GENERAL EXPENDITURES,PERSONNEL COMPENSATION,DETAIL,   ,   ,   ,BERTOLINI STEVEN R.,2020-10-01,2020-12-31,TEMPORARY EMPLOYEE,3000,2020
,2020 OFFICE OF THE MINORITY LEADER,4,GENERAL EXPENDITURES,PERSONNEL COMPENSATION,DETAIL,   ,   ,   ,BIEN CHRISTOPHER A,2020-10-01,2020-12-31,DEPUTY DIR OF FLOOR OPERATIONS,32000,2020
,2020 OFFICE OF THE MINORITY LEADER,4,GENERAL EXPENDITURES,PERSONNEL COMPENSATION,DETAIL,   ,   ,   ,BOGOROWSKI HANNA C,2020-10-01,2020-12-31,COMMUNICATIONS AIDE,20000,2020
,2020 OFFICE OF THE MINORITY LEADER,4,GENERAL EXPENDITURES,PERSONNEL COMPENSATION,DETAIL,   ,   ,   ,BONNER JENNIFER L,2020-10-01,2020-12-31,SCHEDULER,21500,2020
,2020 OFFICE OF THE MINORITY LEADER,4,GENERAL EXPENDITURES,PERSONNEL COMPENSATION,DETAIL,   ,   ,   ,BUCHANAN NATALIE L,2020-10-01,2020-12-31,DIR OF MEMBER SERVICES,42500,2020
,2020 OFFICE OF THE MINORITY LEADER,4,GENERAL EXPENDITURES,PERSONNEL COMPENSATION,DETAIL,   ,   ,   ,CAMERON CHRISTINA E,2020-10-01,2020-12-31,DEPUTY PRESS SECRETARY,23000,2020
,2020 OFFICE OF THE MINORITY LEADER,4,GENERAL EXPENDITURES,PERSONNEL COMPENSATION,DETAIL,   ,   ,   ,CARR MACHALAGH,2020-10-01,2020-12-31,GENERAL COUNSEL,42500,2020
,2020 OFFICE OF THE MINORITY LEADER,4,GENERAL EXPENDITURES,PERSONNEL COMPENSATION,DETAIL,   ,   ,   ,CHAFFEE SAVANNAH M,2020-10-01,2020-12-31,STAFF ASSISTANT,15500,2020
,2020 OFFICE OF THE MINORITY LEADER,4,GENERAL EXPENDITURES,PERSONNEL COMPENSATION,DETAIL,   ,   ,   ,CORRELL CHARLES C,2020-10-01,2020-12-31,DEPUTY SPEECHWRITER,21500,2020
,2020 OFFICE OF THE MINORITY LEADER,4,GENERAL EXPENDITURES,PERSONNEL COMPENSATION,DETAIL,   ,   ,   ,COYLE SARAH M,2020-10-01,2020-12-31,CLOAKROOM FLOOR ASSISTANT,20000,2020
,2020 OFFICE OF THE MINORITY LEADER,4,GENERAL EXPENDITURES,PERSONNEL COMPENSATION,DETAIL,   ,   ,   ,DAYER KATHERINE J,2020-10-01,2020-12-31,STAFF ASSISTANT,14000,2020
,2020 OFFICE OF THE MINORITY LEADER,4,GENERAL EXPENDITURES,PERSONNEL COMPENSATION,DETAIL,   ,   ,   ,DOMENECH EMILY H,2020-10-01,2020-12-31,SENIOR POLICY ADVISOR,41000,2020
,2020 OFFICE OF THE MINORITY LEADER,4,GENERAL EXPENDITURES,PERSONNEL COMPENSATION,DETAIL,   ,   ,   ,DUNHAM WILL,2020-10-01,2020-12-31,DEP CHIEF OF STAFF FOR POLICY,42500,2020
,2020 OFFICE OF THE MINORITY LEADER,4,GENERAL EXPENDITURES,PERSONNEL COMPENSATION,DETAIL,   ,   ,   ,ENGLING MAXIMILIAN T,2020-10-01,2020-12-31,DEP DIR OF MEMBER SERVICES,38750,2020
,2020 OFFICE OF THE MINORITY LEADER,4,GENERAL EXPENDITURES,PERSONNEL COMPENSATION,DETAIL,   ,   ,   ,EXNER MICHELE P,2020-10-01,2020-12-31,COMMUNICATIONS DIRECTOR,40250,2020
,2020 OFFICE OF THE MINORITY LEADER,4,GENERAL EXPENDITURES,PERSONNEL COMPENSATION,DETAIL,   ,   ,   ,FOSTER JORDYN D.,2020-10-16,2020-12-31,TEMPORARY EMPLOYEE,2500,2020
,2020 OFFICE OF THE MINORITY LEADER,4,GENERAL EXPENDITURES,PERSONNEL COMPENSATION,DETAIL,   ,   ,   ,GIAIER STEVEN S,2020-10-01,2020-12-31,SENIOR POLICY ADVISOR & COUNSE,41000,2020
,2020 OFFICE OF THE MINORITY LEADER,4,GENERAL EXPENDITURES,PERSONNEL COMPENSATION,DETAIL,   ,   ,   ,GOURDIKIAN ALEXANDRA G.,2020-10-01,2020-12-31,DIRECTOR OF OPERATIONS & SCHED,38750,2020
,2020 OFFICE OF THE MINORITY LEADER,4,GENERAL EXPENDITURES,PERSONNEL COMPENSATION,DETAIL,   ,   ,   ,GRIBBIN WILLIAM J.,2020-10-01,2020-12-31,SHARED EMPLOYEE,9750,2020
,2020 OFFICE OF THE MINORITY LEADER,4,GENERAL EXPENDITURES,PERSONNEL COMPENSATION,DETAIL,   ,   ,   ,GUNN ELLA L.,2020-12-07,2020-12-31,TEMPORARY EMPLOYEE,800,2020
,2020 OFFICE OF THE MINORITY LEADER,4,GENERAL EXPENDITURES,PERSONNEL COMPENSATION,DETAIL,   ,   ,   ,HILL PRESTON W,2020-10-01,2020-12-31,POLICY ADVISOR,30500,2020
,2020 OFFICE OF THE MINORITY LEADER,4,GENERAL EXPENDITURES,PERSONNEL COMPENSATION,DETAIL,   ,   ,   ,HOCHSCHILD KEENAN N.,2020-10-01,2020-12-31,DIGITAL COMMUNICATIONS AIDE,20000,2020
,2020 OFFICE OF THE MINORITY LEADER,4,GENERAL EXPENDITURES,PERSONNEL COMPENSATION,DETAIL,   ,   ,   ,HOUSTON ZACHARY G,2020-10-01,2020-12-31,COMMUNICATIONS AIDE,17000,2020
,2020 OFFICE OF THE MINORITY LEADER,4,GENERAL EXPENDITURES,PERSONNEL COMPENSATION,DETAIL,   ,   ,   ,HUMES ALEXANDRA W,2020-10-01,2020-12-31,MEMBER SERVICES COORDINATOR,20750,2020
,2020 OFFICE OF THE MINORITY LEADER,4,GENERAL EXPENDITURES,PERSONNEL COMPENSATION,DETAIL,   ,   ,   ,HUNT SARAH,2020-10-01,2020-12-31,TEMPORARY EMPLOYEE,3000,2020
,2020 OFFICE OF THE MINORITY LEADER,4,GENERAL EXPENDITURES,PERSONNEL COMPENSATION,DETAIL,   ,   ,   ,KELLY CARI R,2020-10-01,2020-12-31,EXECUTIVE DIRECTOR,36750,2020
,2020 OFFICE OF THE MINORITY LEADER,4,GENERAL EXPENDITURES,PERSONNEL COMPENSATION,DETAIL,   ,   ,   ,LEGANSKI JOHN G,2020-10-01,2020-12-31,DIRECTOR OF FLOOR OPERATIONS,42000,2020
,2020 OFFICE OF THE MINORITY LEADER,4,GENERAL EXPENDITURES,PERSONNEL COMPENSATION,DETAIL,   ,   ,   ,LOMBARDI KYLE,2020-10-01,2020-12-31,SHARED EMPLOYEE,30500,2020
,2020 OFFICE OF THE MINORITY LEADER,4,GENERAL EXPENDITURES,PERSONNEL COMPENSATION,DETAIL,   ,   ,   ,MADDOX GABRIELLE A.,2020-10-01,2020-12-31,TEMPORARY EMPLOYEE,3000,2020
,2020 OFFICE OF THE MINORITY LEADER,4,GENERAL EXPENDITURES,PERSONNEL COMPENSATION,DETAIL,   ,   ,   ,MARTINEZ BRITTANY N,2020-10-01,2020-12-31,CALIFORNIA PRESS SECRETARY,24500,2020
,2020 OFFICE OF THE MINORITY LEADER,4,GENERAL EXPENDITURES,PERSONNEL COMPENSATION,DETAIL,   ,   ,   ,MEYER DANIEL P,2020-10-01,2020-12-31,CHIEF OF STAFF,43475.01,2020
,2020 OFFICE OF THE MINORITY LEADER,4,GENERAL EXPENDITURES,PERSONNEL COMPENSATION,DETAIL,   ,   ,   ,MEYER KATHERINE R,2020-10-01,2020-12-31,SENIOR POLICY ADVISOR,42000,2020
,2020 OFFICE OF THE MINORITY LEADER,4,GENERAL EXPENDITURES,PERSONNEL COMPENSATION,DETAIL,   ,   ,   ,MIN JAMES B.,2020-10-01,2020-12-31,DEPUTY CHIEF OF STAFF/COUNSEL,39750,2020
,2020 OFFICE OF THE MINORITY LEADER,4,GENERAL EXPENDITURES,PERSONNEL COMPENSATION,DETAIL,   ,   ,   ,MINOR JACK M,2020-10-01,2020-12-31,SHARED EMPLOYEE,25500,2020
,2020 OFFICE OF THE MINORITY LEADER,4,GENERAL EXPENDITURES,PERSONNEL COMPENSATION,DETAIL,   ,   ,   ,MURPHY CULLEN D,2020-10-01,2020-12-31,FLOOR ASSISTANT,17750,2020
,2020 OFFICE OF THE MINORITY LEADER,4,GENERAL EXPENDITURES,PERSONNEL COMPENSATION,DETAIL,   ,   ,   ,MURRY LUKE A,2020-10-01,2020-12-31,NATIONAL SECURITY ADVISOR,42000,2020
,2020 OFFICE OF THE MINORITY LEADER,4,GENERAL EXPENDITURES,PERSONNEL COMPENSATION,DETAIL,   ,   ,   ,O'TOOLE RYAN T,2020-10-01,2020-12-31,CLOAKROOM FLOOR DIRECTOR,27500,2020
,2020 OFFICE OF THE MINORITY LEADER,4,GENERAL EXPENDITURES,PERSONNEL COMPENSATION,DETAIL,   ,   ,   ,PHILIP MECHELLE R.,2020-10-01,2020-12-31,TEMPORARY EMPLOYEE,3000,2020
,2020 OFFICE OF THE MINORITY LEADER,4,GENERAL EXPENDITURES,PERSONNEL COMPENSATION,DETAIL,   ,   ,   ,PRETZMAN ELIZABETH A.,2020-10-01,2020-12-31,TEMPORARY EMPLOYEE,3000,2020
,2020 OFFICE OF THE MINORITY LEADER,4,GENERAL EXPENDITURES,PERSONNEL COMPENSATION,DETAIL,   ,   ,   ,ROSE SHANE C.,2020-12-23,2020-12-31,TEMPORARY EMPLOYEE,266.67,2020
,2020 OFFICE OF THE MINORITY LEADER,4,GENERAL EXPENDITURES,PERSONNEL COMPENSATION,DETAIL,   ,   ,   ,ROSEMOND JOHN M,2020-10-01,2020-12-31,SPECIAL ASSISTANT,20066.66,2020
,2020 OFFICE OF THE MINORITY LEADER,4,GENERAL EXPENDITURES,PERSONNEL COMPENSATION,DETAIL,   ,   ,   ,SMITH CALEB J,2020-10-01,2020-12-31,DIGITAL COMMUNICATIONS DIRECTO,42500,2020
,2020 OFFICE OF THE MINORITY LEADER,4,GENERAL EXPENDITURES,PERSONNEL COMPENSATION,DETAIL,   ,   ,   ,SMITH TREVOR H,2020-10-01,2020-12-31,SHARED EMPLOYEE,26000,2020
,2020 OFFICE OF THE MINORITY LEADER,4,GENERAL EXPENDITURES,PERSONNEL COMPENSATION,DETAIL,   ,   ,   ,SPARKS MATTHEW E,2020-10-01,2020-12-31,DIRECTOR OF COMMUNICATIONS,42500,2020
,2020 OFFICE OF THE MINORITY LEADER,4,GENERAL EXPENDITURES,PERSONNEL COMPENSATION,DETAIL,   ,   ,   ,SPECHT BRITTAN G,2020-10-01,2020-12-31,SENIOR POLICY ADVISOR,42000,2020
,2020 OFFICE OF THE MINORITY LEADER,4,GENERAL EXPENDITURES,PERSONNEL COMPENSATION,DETAIL,   ,   ,   ,TUNG MANSON,2020-10-01,2020-12-31,TEMPORARY EMPLOYEE,3000,2020
,2020 OFFICE OF THE MINORITY LEADER,4,GENERAL EXPENDITURES,PERSONNEL COMPENSATION,DETAIL,   ,   ,   ,WARREN JACOB A.,2020-10-01,2020-12-31,TEMPORARY EMPLOYEE,3000,2020
,2020 OFFICE OF THE MINORITY LEADER,4,GENERAL EXPENDITURES,PERSONNEL COMPENSATION,SUBTOTAL,   ,   ,   ,   ,   ,   ,PERSONNEL COMPENSATION TOTALS:,1200358.34,2020
,2020 OFFICE OF THE MINORITY LEADER,4,GENERAL EXPENDITURES,RENT  COMMUNICATION  UTILITIES,DETAIL,2020-10-26,AP,1340865,CITI PCARD-GOOGLE  YouTube TV,2020-09-29,2020-10-28,UTILITIES,68.89,2020
,2020 OFFICE OF THE MINORITY LEADER,4,GENERAL EXPENDITURES,RENT  COMMUNICATION  UTILITIES,DETAIL,2020-10-26,AP,1340865,CITI PCARD-US SENATE     95202602,2020-09-14,2020-09-14,EQUIP RENTAL (EFF 1/3/03),200,2020
,2020 OFFICE OF THE MINORITY LEADER,4,GENERAL EXPENDITURES,RENT  COMMUNICATION  UTILITIES,DETAIL,2020-10-26,AP,1340865,CITI PCARD-US SENATE     95202602,2020-09-23,2020-09-23,EQUIP RENTAL (EFF 1/3/03),200,2020
,2020 OFFICE OF THE MINORITY LEADER,4,GENERAL EXPENDITURES,RENT  COMMUNICATION  UTILITIES,DETAIL,2020-10-26,AP,1340865,CITI PCARD-USPS PO 1050091422,2020-09-24,2020-09-24,POSTAGE / COURIER / BOX RENTAL,7.75,2020
,2020 OFFICE OF THE MINORITY LEADER,4,GENERAL EXPENDITURES,RENT  COMMUNICATION  UTILITIES,DETAIL,2020-10-27,GL,EMS0101782, ,2020-09-01,2020-09-30,DC TELECOM EQUIP (TRANSFER),36,2020
,2020 OFFICE OF THE MINORITY LEADER,4,GENERAL EXPENDITURES,RENT  COMMUNICATION  UTILITIES,DETAIL,2020-10-27,GL,EMS0101782, ,2020-09-01,2020-09-30,DC TELECOM SERV (TRANSFER),547.5,2020
,2020 OFFICE OF THE MINORITY LEADER,4,GENERAL EXPENDITURES,RENT  COMMUNICATION  UTILITIES,DETAIL,2020-10-27,GL,EMS0101782, ,2020-09-01,2020-09-30,DC TELECOM TOLLS (TRANSFER),6774.26,2020
,2020 OFFICE OF THE MINORITY LEADER,4,GENERAL EXPENDITURES,RENT  COMMUNICATION  UTILITIES,DETAIL,2020-11-12,AP,1349546,CITI PCARD-GOOGLE  YouTube TV,2020-09-29,2020-09-29,UTILITIES,68.89,2020
,2020 OFFICE OF THE MINORITY LEADER,4,GENERAL EXPENDITURES,RENT  COMMUNICATION  UTILITIES,DETAIL,2020-11-12,AP,1349546,CITI PCARD-PACKLANE INC.,2020-10-02,2020-10-02,POSTAGE / COURIER / BOX RENTAL,482.89,2020
,2020 OFFICE OF THE MINORITY LEADER,4,GENERAL EXPENDITURES,RENT  COMMUNICATION  UTILITIES,DETAIL,2020-11-20,GL,EMS0102354, ,2020-10-01,2020-10-31,DC TELECOM EQUIP (TRANSFER),36,2020
,2020 OFFICE OF THE MINORITY LEADER,4,GENERAL EXPENDITURES,RENT  COMMUNICATION  UTILITIES,DETAIL,2020-11-20,GL,EMS0102354, ,2020-10-01,2020-10-31,DC TELECOM SERV (TRANSFER),547.5,2020
,2020 OFFICE OF THE MINORITY LEADER,4,GENERAL EXPENDITURES,RENT  COMMUNICATION  UTILITIES,DETAIL,2020-11-20,GL,EMS0102354, ,2020-10-01,2020-10-31,DC TELECOM TOLLS (TRANSFER),4343.71,2020
,2020 OFFICE OF THE MINORITY LEADER,4,GENERAL EXPENDITURES,RENT  COMMUNICATION  UTILITIES,DETAIL,2020-12-11,AP,1361023,CITI PCARD-GOOGLE  YouTube TV,2020-10-29,2020-11-29,UTILITIES,68.89,2020
,2020 OFFICE OF THE MINORITY LEADER,4,GENERAL EXPENDITURES,RENT  COMMUNICATION  UTILITIES,DETAIL,2020-12-11,AP,1361023,CITI PCARD-USPS PO 1050091422,2020-11-04,2020-11-04,POSTAGE / COURIER / BOX RENTAL,1731.4,2020
,2020 OFFICE OF THE MINORITY LEADER,4,GENERAL EXPENDITURES,RENT  COMMUNICATION  UTILITIES,DETAIL,2020-12-11,AP,1361023,CITI PCARD-USPS PO 1050091422,2020-11-05,2020-11-05,POSTAGE / COURIER / BOX RENTAL,83.15,2020
,2020 OFFICE OF THE MINORITY LEADER,4,GENERAL EXPENDITURES,RENT  COMMUNICATION  UTILITIES,DETAIL,2020-12-28,GL,EMS0103149, ,2020-11-01,2020-11-30,DC TELECOM EQUIP (TRANSFER),36,2020
,2020 OFFICE OF THE MINORITY LEADER,4,GENERAL EXPENDITURES,RENT  COMMUNICATION  UTILITIES,DETAIL,2020-12-28,GL,EMS0103149, ,2020-11-01,2020-11-30,DC TELECOM SERV (TRANSFER),547.5,2020
,2020 OFFICE OF THE MINORITY LEADER,4,GENERAL EXPENDITURES,RENT  COMMUNICATION  UTILITIES,DETAIL,2020-12-28,GL,EMS0103149, ,2020-11-01,2020-11-30,DC TELECOM TOLLS (TRANSFER),3552.74,2020
,2020 OFFICE OF THE MINORITY LEADER,4,GENERAL EXPENDITURES,RENT  COMMUNICATION  UTILITIES,SUBTOTAL,   ,   ,   ,   ,   ,   ,RENT  COMMUNICATION  UTILITIES TOTALS:,19333.07,2020
,2020 OFFICE OF THE MINORITY LEADER,4,GENERAL EXPENDITURES,PRINTING AND REPRODUCTION,DETAIL,2020-10-07,AP,1336309,SMITH CALEB,2020-09-10,2020-09-10,PRINTING & REPRODUCTION,751.16,2020
,2020 OFFICE OF THE MINORITY LEADER,4,GENERAL EXPENDITURES,PRINTING AND REPRODUCTION,DETAIL,2020-10-26,AP,1340865,CITI PCARD-DRI 48HOURPRINT,2020-09-17,2020-09-17,PRINTING & REPRODUCTION,908.64,2020
,2020 OFFICE OF THE MINORITY LEADER,4,GENERAL EXPENDITURES,PRINTING AND REPRODUCTION,DETAIL,2020-10-26,AP,1340865,CITI PCARD-FACEBK 2VFJJVN5K2,2020-08-29,2020-09-01,ADVERTISEMENTS,900,2020
,2020 OFFICE OF THE MINORITY LEADER,4,GENERAL EXPENDITURES,PRINTING AND REPRODUCTION,DETAIL,2020-10-26,AP,1340865,CITI PCARD-FACEBK 933HZV66K2,2020-08-27,2020-08-30,ADVERTISEMENTS,900,2020
,2020 OFFICE OF THE MINORITY LEADER,4,GENERAL EXPENDITURES,PRINTING AND REPRODUCTION,DETAIL,2020-10-26,AP,1340865,CITI PCARD-FACEBK 9AJ5EVJ6K2,2020-08-29,2020-09-01,ADVERTISEMENTS,900,2020
,2020 OFFICE OF THE MINORITY LEADER,4,GENERAL EXPENDITURES,PRINTING AND REPRODUCTION,DETAIL,2020-10-26,AP,1340865,CITI PCARD-FACEBK BDVG4XA6K2,2020-09-27,2020-09-29,ADVERTISEMENTS,900,2020
,2020 OFFICE OF THE MINORITY LEADER,4,GENERAL EXPENDITURES,PRINTING AND REPRODUCTION,DETAIL,2020-10-26,AP,1340865,CITI PCARD-FACEBK KB7R6WN6K2,2020-09-01,2020-09-01,ADVERTISEMENTS,365.77,2020
,2020 OFFICE OF THE MINORITY LEADER,4,GENERAL EXPENDITURES,PRINTING AND REPRODUCTION,DETAIL,2020-10-26,AP,1340865,CITI PCARD-FACEBK VNCRBWN5K2,2020-09-24,2020-09-26,ADVERTISEMENTS,900,2020
,2020 OFFICE OF THE MINORITY LEADER,4,GENERAL EXPENDITURES,PRINTING AND REPRODUCTION,DETAIL,2020-11-12,AP,1349546,CITI PCARD-FACEBK 69L5PXE6K2,2020-10-22,2020-10-25,ADVERTISEMENTS,900,2020
,2020 OFFICE OF THE MINORITY LEADER,4,GENERAL EXPENDITURES,PRINTING AND REPRODUCTION,DETAIL,2020-11-12,AP,1349546,CITI PCARD-FACEBK 6YWJUWW5K2,2020-10-21,2020-10-23,ADVERTISEMENTS,900,2020
,2020 OFFICE OF THE MINORITY LEADER,4,GENERAL EXPENDITURES,PRINTING AND REPRODUCTION,DETAIL,2020-11-12,AP,1349546,CITI PCARD-FACEBK 7MPV9YS6K2,2020-09-28,2020-09-30,ADVERTISEMENTS,900,2020
,2020 OFFICE OF THE MINORITY LEADER,4,GENERAL EXPENDITURES,PRINTING AND REPRODUCTION,DETAIL,2020-11-12,AP,1349546,CITI PCARD-FACEBK PX658YS6K2,2020-09-27,2020-09-29,ADVERTISEMENTS,900,2020
,2020 OFFICE OF THE MINORITY LEADER,4,GENERAL EXPENDITURES,PRINTING AND REPRODUCTION,DETAIL,2020-11-12,AP,1349546,CITI PCARD-FACEBK UJAA6XN5K2,2020-10-24,2020-10-27,ADVERTISEMENTS,900,2020
,2020 OFFICE OF THE MINORITY LEADER,4,GENERAL EXPENDITURES,PRINTING AND REPRODUCTION,DETAIL,2020-11-19,AP,1356883,COMPOSITION SYSTEMS INC,2020-11-11,2020-11-11,PRINTING & REPRODUCTION,3934.33,2020
,2020 OFFICE OF THE MINORITY LEADER,4,GENERAL EXPENDITURES,PRINTING AND REPRODUCTION,DETAIL,2020-11-19,AP,1356901,COMPOSITION SYSTEMS INC,2020-10-29,2020-10-29,PRINTING & REPRODUCTION,3117.61,2020
,2020 OFFICE OF THE MINORITY LEADER,4,GENERAL EXPENDITURES,PRINTING AND REPRODUCTION,DETAIL,2020-11-19,AP,1356910,COMPOSITION SYSTEMS INC,2020-10-29,2020-10-29,PRINTING & REPRODUCTION,1020.34,2020
,2020 OFFICE OF THE MINORITY LEADER,4,GENERAL EXPENDITURES,PRINTING AND REPRODUCTION,DETAIL,2020-12-11,AP,1361023,CITI PCARD-FACEBK 9LR65ZS6K2,2020-10-30,2020-11-01,ADVERTISEMENTS,900,2020
,2020 OFFICE OF THE MINORITY LEADER,4,GENERAL EXPENDITURES,PRINTING AND REPRODUCTION,DETAIL,2020-12-11,AP,1361023,CITI PCARD-FACEBK GWXXQXN6K2,2020-11-01,2020-11-03,ADVERTISEMENTS,600,2020
,2020 OFFICE OF THE MINORITY LEADER,4,GENERAL EXPENDITURES,PRINTING AND REPRODUCTION,DETAIL,2020-12-11,AP,1361023,CITI PCARD-FACEBK LWSD8Y26K2,2020-10-28,2020-10-31,ADVERTISEMENTS,900,2020
,2020 OFFICE OF THE MINORITY LEADER,4,GENERAL EXPENDITURES,PRINTING AND REPRODUCTION,DETAIL,2020-12-11,AP,1361023,CITI PCARD-FACEBK SUW22ZS6K2,2020-10-26,2020-10-29,ADVERTISEMENTS,900,2020
,2020 OFFICE OF THE MINORITY LEADER,4,GENERAL EXPENDITURES,PRINTING AND REPRODUCTION,DETAIL,2020-12-11,AP,1361023,CITI PCARD-SP   LULU PRESS,2020-11-06,2020-11-06,PRINTING & REPRODUCTION,3304.41,2020
,2020 OFFICE OF THE MINORITY LEADER,4,GENERAL EXPENDITURES,PRINTING AND REPRODUCTION,DETAIL,2020-12-30,GL,MED0103249, ,2020-11-20,2020-11-20,PHOTOGRAPHIC (TRANSFER),50,2020
,2020 OFFICE OF THE MINORITY LEADER,4,GENERAL EXPENDITURES,PRINTING AND REPRODUCTION,SUBTOTAL,   ,   ,   ,   ,   ,   ,PRINTING AND REPRODUCTION TOTALS:,25752.26,2020
,2020 OFFICE OF THE MINORITY LEADER,4,GENERAL EXPENDITURES,OTHER SERVICES,DETAIL,2020-10-06,AP,1337268,ENGAGE LLC,2020-02-03,2020-09-30,WEB DEV HST EMAIL & RLTD SERV,14380,2020
,2020 OFFICE OF THE MINORITY LEADER,4,GENERAL EXPENDITURES,OTHER SERVICES,DETAIL,2020-10-26,AP,1340865,CITI PCARD-MAILCHIMP    MONTHLY,2020-09-12,2020-09-12,WEB DEV HST EMAIL & RLTD SERV,528.94,2020
,2020 OFFICE OF THE MINORITY LEADER,4,GENERAL EXPENDITURES,OTHER SERVICES,DETAIL,2020-11-12,AP,1349546,CITI PCARD-MAILCHIMP    MONTHLY,2020-10-12,2020-10-12,WEB DEV HST EMAIL & RLTD SERV,608.44,2020
,2020 OFFICE OF THE MINORITY LEADER,4,GENERAL EXPENDITURES,OTHER SERVICES,DETAIL,2020-11-12,AP,1349546,CITI PCARD-SPROUT SOCIAL INC,2020-08-18,2020-08-18,WEB DEV HST EMAIL & RLTD SERV,-1516.22,2020
,2020 OFFICE OF THE MINORITY LEADER,4,GENERAL EXPENDITURES,OTHER SERVICES,DETAIL,2020-12-01,AP,1359175,HOUSECALL LLC,2020-10-01,2020-10-31,TECHNOLOGY SERVICE CONTRACTS,5125,2020
,2020 OFFICE OF THE MINORITY LEADER,4,GENERAL EXPENDITURES,OTHER SERVICES,DETAIL,2020-12-01,AP,1359176,HOUSECALL LLC,2020-11-01,2020-11-30,TECHNOLOGY SERVICE CONTRACTS,5125,2020
,2020 OFFICE OF THE MINORITY LEADER,4,GENERAL EXPENDITURES,OTHER SERVICES,DETAIL,2020-12-11,AP,1361023,CITI PCARD-MAILCHIMP    MONTHLY,2020-11-12,2020-12-11,WEB DEV HST EMAIL & RLTD SERV,646.6,2020
,2020 OFFICE OF THE MINORITY LEADER,4,GENERAL EXPENDITURES,OTHER SERVICES,DETAIL,2020-12-16,AP,1364316,HOUSECALL LLC,2020-12-01,2020-12-31,TECHNOLOGY SERVICE CONTRACTS,5125,2020
,2020 OFFICE OF THE MINORITY LEADER,4,GENERAL EXPENDITURES,OTHER SERVICES,SUBTOTAL,   ,   ,   ,   ,   ,   ,OTHER SERVICES TOTALS:,30022.76,2020
,2020 OFFICE OF THE MINORITY LEADER,4,GENERAL EXPENDITURES,SUPPLIES AND MATERIALS,DETAIL,2020-10-02,AP,1339317,MIN JAMES B.,2020-09-30,2020-09-30,FOOD & BEVERAGE,396.41,2020
,2020 OFFICE OF THE MINORITY LEADER,4,GENERAL EXPENDITURES,SUPPLIES AND MATERIALS,DETAIL,2020-10-05,AP,1339307,MIN JAMES B.,2020-09-30,2020-09-30,OFFICE SUPPLIES (OUTSIDE),159.97,2020
,2020 OFFICE OF THE MINORITY LEADER,4,GENERAL EXPENDITURES,SUPPLIES AND MATERIALS,DETAIL,2020-10-13,AP,1339036,MIN JAMES B.,2020-09-30,2020-09-30,FOOD & BEVERAGE,81.37,2020
,2020 OFFICE OF THE MINORITY LEADER,4,GENERAL EXPENDITURES,SUPPLIES AND MATERIALS,DETAIL,2020-10-19,AP,1341152,MIN JAMES B.,2020-10-03,2020-10-03,OFFICE SUPPLIES (OUTSIDE),93.66,2020
,2020 OFFICE OF THE MINORITY LEADER,4,GENERAL EXPENDITURES,SUPPLIES AND MATERIALS,DETAIL,2020-10-26,AP,1340865,CITI PCARD-AMZN MKTP US MU3K15A02 AM,2020-09-02,2020-09-02,OFFICE SUPPLIES (OUTSIDE),22.49,2020
,2020 OFFICE OF THE MINORITY LEADER,4,GENERAL EXPENDITURES,SUPPLIES AND MATERIALS,DETAIL,2020-10-26,AP,1340865,CITI PCARD-AMZN Mktp US M46LX7LI2,2020-09-15,2020-09-15,OFFICE SUPPLIES (OUTSIDE),86,2020
,2020 OFFICE OF THE MINORITY LEADER,4,GENERAL EXPENDITURES,SUPPLIES AND MATERIALS,DETAIL,2020-10-26,AP,1340865,CITI PCARD-AMZN Mktp US MU9HH3UN2,2020-09-11,2020-09-11,OFFICE SUPPLIES (OUTSIDE),11.99,2020
,2020 OFFICE OF THE MINORITY LEADER,4,GENERAL EXPENDITURES,SUPPLIES AND MATERIALS,DETAIL,2020-10-26,AP,1340865,CITI PCARD-Amazon.com M40FE5N42,2020-09-15,2020-09-15,OFFICE SUPPLIES (OUTSIDE),48,2020
,2020 OFFICE OF THE MINORITY LEADER,4,GENERAL EXPENDITURES,SUPPLIES AND MATERIALS,DETAIL,2020-10-26,AP,1340865,CITI PCARD-CHICK-FIL-A #02673,2020-09-15,2020-09-15,FOOD & BEVERAGE,266.81,2020
,2020 OFFICE OF THE MINORITY LEADER,4,GENERAL EXPENDITURES,SUPPLIES AND MATERIALS,DETAIL,2020-10-26,AP,1340865,CITI PCARD-CORNER BAKERY 0096,2020-09-14,2020-09-14,FOOD & BEVERAGE,125.5,2020
,2020 OFFICE OF THE MINORITY LEADER,4,GENERAL EXPENDITURES,SUPPLIES AND MATERIALS,DETAIL,2020-10-26,AP,1340865,CITI PCARD-D J WALL-ST-JOURNAL,2020-09-21,2020-10-20,PUBLICATIONS/REFERENCE MAT'L,41.33,2020
,2020 OFFICE OF THE MINORITY LEADER,4,GENERAL EXPENDITURES,SUPPLIES AND MATERIALS,DETAIL,2020-10-26,AP,1340865,CITI PCARD-DT #0656,2020-09-22,2020-09-22,FOOD & BEVERAGE,242.12,2020
,2020 OFFICE OF THE MINORITY LEADER,4,GENERAL EXPENDITURES,SUPPLIES AND MATERIALS,DETAIL,2020-10-26,AP,1340865,CITI PCARD-DT #0656,2020-09-24,2020-09-24,FOOD & BEVERAGE,230.04,2020
,2020 OFFICE OF THE MINORITY LEADER,4,GENERAL EXPENDITURES,SUPPLIES AND MATERIALS,DETAIL,2020-10-26,AP,1340865,CITI PCARD-DT #0656 ONLINE ORDERING,2020-09-24,2020-09-24,FOOD & BEVERAGE,95.05,2020
,2020 OFFICE OF THE MINORITY LEADER,4,GENERAL EXPENDITURES,SUPPLIES AND MATERIALS,DETAIL,2020-10-26,AP,1340865,CITI PCARD-FILMPAC,2020-08-01,2020-12-31,SOFTWARE  LESS THAN  $500,416.25,2020
,2020 OFFICE OF THE MINORITY LEADER,4,GENERAL EXPENDITURES,SUPPLIES AND MATERIALS,DETAIL,2020-10-26,AP,1340865,CITI PCARD-FTP FINANCIAL TIMES,2020-08-29,2020-09-28,PUBLICATIONS/REFERENCE MAT'L,59.5,2020
,2020 OFFICE OF THE MINORITY LEADER,4,GENERAL EXPENDITURES,SUPPLIES AND MATERIALS,DETAIL,2020-10-26,AP,1340865,CITI PCARD-LA TIMES SUBSCRIPTION,2020-09-08,2020-10-05,PUBLICATIONS/REFERENCE MAT'L,27.72,2020
,2020 OFFICE OF THE MINORITY LEADER,4,GENERAL EXPENDITURES,SUPPLIES AND MATERIALS,DETAIL,2020-10-26,AP,1340865,CITI PCARD-NYTIMES,2020-09-07,2020-10-07,PUBLICATIONS/REFERENCE MAT'L,16.95,2020
,2020 OFFICE OF THE MINORITY LEADER,4,GENERAL EXPENDITURES,SUPPLIES AND MATERIALS,DETAIL,2020-10-26,AP,1340865,CITI PCARD-REI PAYMENT CENTER,2020-06-01,2020-06-30,PUBLICATIONS/REFERENCE MAT'L,56,2020
,2020 OFFICE OF THE MINORITY LEADER,4,GENERAL EXPENDITURES,SUPPLIES AND MATERIALS,DETAIL,2020-10-26,AP,1340865,CITI PCARD-REI PAYMENT CENTER,2020-07-01,2020-07-31,PUBLICATIONS/REFERENCE MAT'L,56,2020
,2020 OFFICE OF THE MINORITY LEADER,4,GENERAL EXPENDITURES,SUPPLIES AND MATERIALS,DETAIL,2020-10-26,AP,1340865,CITI PCARD-ZOOM.US,2020-09-04,2020-10-03,SOFTWARE  LESS THAN  $500,15.74,2020
,2020 OFFICE OF THE MINORITY LEADER,4,GENERAL EXPENDITURES,SUPPLIES AND MATERIALS,DETAIL,2020-10-26,AP,1340865,CITI PCARD-ZOOM.US 888-799-9666,2020-09-23,2020-10-22,SOFTWARE  LESS THAN  $500,42.4,2020
,2020 OFFICE OF THE MINORITY LEADER,4,GENERAL EXPENDITURES,SUPPLIES AND MATERIALS,DETAIL,2020-10-26,AP,1342710,MIN JAMES B.,2020-10-13,2020-10-13,OFFICE SUPPLIES (OUTSIDE),71.9,2020
,2020 OFFICE OF THE MINORITY LEADER,4,GENERAL EXPENDITURES,SUPPLIES AND MATERIALS,DETAIL,2020-10-30,GL,RMS0101913, ,2020-10-01,2020-10-31,OFFICE SUPPLY (TRANSFER),841.11,2020
,2020 OFFICE OF THE MINORITY LEADER,4,GENERAL EXPENDITURES,SUPPLIES AND MATERIALS,DETAIL,2020-11-03,AP,1349564,SMITH CALEB,2020-09-21,2020-09-21,SOFTWARE  LESS THAN  $500,36.75,2020
,2020 OFFICE OF THE MINORITY LEADER,4,GENERAL EXPENDITURES,SUPPLIES AND MATERIALS,DETAIL,2020-11-12,AP,1349546,CITI PCARD-AMZN MKTP US MK6ID75F1 AM,2020-10-05,2020-10-05,OFFICE SUPPLIES (OUTSIDE),37.99,2020
,2020 OFFICE OF THE MINORITY LEADER,4,GENERAL EXPENDITURES,SUPPLIES AND MATERIALS,DETAIL,2020-11-12,AP,1349546,CITI PCARD-AMZN Mktp US M474R9W02,2020-09-29,2020-09-29,OFFICE SUPPLIES (OUTSIDE),18.99,2020
,2020 OFFICE OF THE MINORITY LEADER,4,GENERAL EXPENDITURES,SUPPLIES AND MATERIALS,DETAIL,2020-11-12,AP,1349546,CITI PCARD-AMZN Mktp US MK3C81OS0,2020-09-29,2020-09-29,OFFICE SUPPLIES (OUTSIDE),129.99,2020
,2020 OFFICE OF THE MINORITY LEADER,4,GENERAL EXPENDITURES,SUPPLIES AND MATERIALS,DETAIL,2020-11-12,AP,1349546,CITI PCARD-AMZN Mktp US MK76745X0,2020-10-09,2020-10-09,OFFICE SUPPLIES (OUTSIDE),13.8,2020
,2020 OFFICE OF THE MINORITY LEADER,4,GENERAL EXPENDITURES,SUPPLIES AND MATERIALS,DETAIL,2020-11-12,AP,1349546,CITI PCARD-AMZN Mktp US MK9HS3291,2020-10-08,2020-10-08,OFFICE SUPPLIES (OUTSIDE),103.18,2020
,2020 OFFICE OF THE MINORITY LEADER,4,GENERAL EXPENDITURES,SUPPLIES AND MATERIALS,DETAIL,2020-11-12,AP,1349546,CITI PCARD-Amazon.com 2T07A1XK1,2020-10-19,2020-10-19,FOOD & BEVERAGE,55.2,2020
,2020 OFFICE OF THE MINORITY LEADER,4,GENERAL EXPENDITURES,SUPPLIES AND MATERIALS,DETAIL,2020-11-12,AP,1349546,CITI PCARD-Amazon.com 2T3V81AL2,2020-10-19,2020-10-19,FOOD & BEVERAGE,79.96,2020
,2020 OFFICE OF THE MINORITY LEADER,4,GENERAL EXPENDITURES,SUPPLIES AND MATERIALS,DETAIL,2020-11-12,AP,1349546,CITI PCARD-CHICK-FIL-A #02673,2020-09-30,2020-09-30,FOOD & BEVERAGE,258.72,2020
,2020 OFFICE OF THE MINORITY LEADER,4,GENERAL EXPENDITURES,SUPPLIES AND MATERIALS,DETAIL,2020-11-12,AP,1349546,CITI PCARD-CHICK-FIL-A #03882,2020-09-30,2020-09-30,FOOD & BEVERAGE,346.94,2020
,2020 OFFICE OF THE MINORITY LEADER,4,GENERAL EXPENDITURES,SUPPLIES AND MATERIALS,DETAIL,2020-11-12,AP,1349546,CITI PCARD-D J WALL-ST-JOURNAL,2020-10-21,2020-11-19,PUBLICATIONS/REFERENCE MAT'L,41.33,2020
,2020 OFFICE OF THE MINORITY LEADER,4,GENERAL EXPENDITURES,SUPPLIES AND MATERIALS,DETAIL,2020-11-12,AP,1349546,CITI PCARD-DT #0656 ONLINE ORDERING,2020-10-01,2020-10-01,FOOD & BEVERAGE,318.21,2020
,2020 OFFICE OF THE MINORITY LEADER,4,GENERAL EXPENDITURES,SUPPLIES AND MATERIALS,DETAIL,2020-11-12,AP,1349546,CITI PCARD-FIRST CHOICE COFFEE SERVI,2020-09-10,2020-09-10,FOOD & BEVERAGE,337.64,2020
,2020 OFFICE OF THE MINORITY LEADER,4,GENERAL EXPENDITURES,SUPPLIES AND MATERIALS,DETAIL,2020-11-12,AP,1349546,CITI PCARD-FIRST CHOICE COFFEE SERVI,2020-09-17,2020-09-17,FOOD & BEVERAGE,389.78,2020
,2020 OFFICE OF THE MINORITY LEADER,4,GENERAL EXPENDITURES,SUPPLIES AND MATERIALS,DETAIL,2020-11-12,AP,1349546,CITI PCARD-FTP FINANCIAL TIMES,2020-09-29,2020-10-28,PUBLICATIONS/REFERENCE MAT'L,59.5,2020
,2020 OFFICE OF THE MINORITY LEADER,4,GENERAL EXPENDITURES,SUPPLIES AND MATERIALS,DETAIL,2020-11-12,AP,1349546,CITI PCARD-LA TIMES SUBSCRIPTION,2020-10-06,2020-11-02,PUBLICATIONS/REFERENCE MAT'L,27.72,2020
,2020 OFFICE OF THE MINORITY LEADER,4,GENERAL EXPENDITURES,SUPPLIES AND MATERIALS,DETAIL,2020-11-12,AP,1349546,CITI PCARD-NYTIMES,2020-10-07,2020-11-06,PUBLICATIONS/REFERENCE MAT'L,16.95,2020
,2020 OFFICE OF THE MINORITY LEADER,4,GENERAL EXPENDITURES,SUPPLIES AND MATERIALS,DETAIL,2020-11-12,AP,1349546,CITI PCARD-ZOOM.US,2020-10-04,2020-11-03,SOFTWARE  LESS THAN  $500,15.74,2020
,2020 OFFICE OF THE MINORITY LEADER,4,GENERAL EXPENDITURES,SUPPLIES AND MATERIALS,DETAIL,2020-11-12,AP,1349546,CITI PCARD-ZOOM.US 888-799-9666,2020-10-23,2020-11-22,SOFTWARE  LESS THAN  $500,42.4,2020
,2020 OFFICE OF THE MINORITY LEADER,4,GENERAL EXPENDITURES,SUPPLIES AND MATERIALS,DETAIL,2020-11-30,GL,RMS0102573, ,2020-11-01,2020-11-30,OFFICE SUPPLY (TRANSFER),645.52,2020
,2020 OFFICE OF THE MINORITY LEADER,4,GENERAL EXPENDITURES,SUPPLIES AND MATERIALS,DETAIL,2020-12-02,AP,1359400,MIN JAMES B.,2020-11-22,2020-11-22,OFFICE SUPPLIES (OUTSIDE),52.85,2020
,2020 OFFICE OF THE MINORITY LEADER,4,GENERAL EXPENDITURES,SUPPLIES AND MATERIALS,DETAIL,2020-12-02,AP,1359403,MIN JAMES B.,2020-11-30,2020-11-30,FOOD & BEVERAGE,420.54,2020
,2020 OFFICE OF THE MINORITY LEADER,4,GENERAL EXPENDITURES,SUPPLIES AND MATERIALS,DETAIL,2020-12-03,AP,1359477,POLITICO LLC,2021-01-01,2021-12-31,PUBLICATIONS/REFERENCE MAT'L,8455,2020
,2020 OFFICE OF THE MINORITY LEADER,4,GENERAL EXPENDITURES,SUPPLIES AND MATERIALS,DETAIL,2020-12-11,AP,1361023,CITI PCARD-AMAZON.COM EX6888903 AMZN,2020-11-19,2020-11-19,OFFICE SUPPLIES (OUTSIDE),49.99,2020
,2020 OFFICE OF THE MINORITY LEADER,4,GENERAL EXPENDITURES,SUPPLIES AND MATERIALS,DETAIL,2020-12-11,AP,1361023,CITI PCARD-AMZN Mktp US 2831F8UU2,2020-11-12,2020-11-12,OFFICE SUPPLIES (OUTSIDE),25.99,2020
,2020 OFFICE OF THE MINORITY LEADER,4,GENERAL EXPENDITURES,SUPPLIES AND MATERIALS,DETAIL,2020-12-11,AP,1361023,CITI PCARD-AMZN Mktp US PL0UK0D13,2020-11-20,2020-11-20,OFFICE SUPPLIES (OUTSIDE),17.99,2020
,2020 OFFICE OF THE MINORITY LEADER,4,GENERAL EXPENDITURES,SUPPLIES AND MATERIALS,DETAIL,2020-12-11,AP,1361023,CITI PCARD-Amazon.com N094Q1AQ3,2020-11-17,2020-11-17,FOOD & BEVERAGE,55.2,2020
,2020 OFFICE OF THE MINORITY LEADER,4,GENERAL EXPENDITURES,SUPPLIES AND MATERIALS,DETAIL,2020-12-11,AP,1361023,CITI PCARD-CHICK-FIL-A #02673,2020-11-17,2020-11-17,FOOD & BEVERAGE,305.47,2020
,2020 OFFICE OF THE MINORITY LEADER,4,GENERAL EXPENDITURES,SUPPLIES AND MATERIALS,DETAIL,2020-12-11,AP,1361023,CITI PCARD-D J WALL-ST-JOURNAL,2020-11-17,2020-11-17,PUBLICATIONS/REFERENCE MAT'L,-4,2020
,2020 OFFICE OF THE MINORITY LEADER,4,GENERAL EXPENDITURES,SUPPLIES AND MATERIALS,DETAIL,2020-12-11,AP,1361023,CITI PCARD-D J WALL-ST-JOURNAL,2020-11-20,2020-12-19,PUBLICATIONS/REFERENCE MAT'L,47.69,2020
,2020 OFFICE OF THE MINORITY LEADER,4,GENERAL EXPENDITURES,SUPPLIES AND MATERIALS,DETAIL,2020-12-11,AP,1361023,CITI PCARD-FIRST CHOICE COFFEE SERVI,2020-10-23,2020-10-23,FOOD & BEVERAGE,373.28,2020
,2020 OFFICE OF THE MINORITY LEADER,4,GENERAL EXPENDITURES,SUPPLIES AND MATERIALS,DETAIL,2020-12-11,AP,1361023,CITI PCARD-FTP FINANCIAL TIMES,2020-10-29,2020-11-29,PUBLICATIONS/REFERENCE MAT'L,59.5,2020
,2020 OFFICE OF THE MINORITY LEADER,4,GENERAL EXPENDITURES,SUPPLIES AND MATERIALS,DETAIL,2020-12-11,AP,1361023,CITI PCARD-NYTIMES,2020-11-06,2020-12-04,PUBLICATIONS/REFERENCE MAT'L,18.02,2020
,2020 OFFICE OF THE MINORITY LEADER,4,GENERAL EXPENDITURES,SUPPLIES AND MATERIALS,DETAIL,2020-12-11,AP,1361023,CITI PCARD-READYREFRESH BY NESTLE,2020-08-27,2020-10-26,WATER,92.3,2020
,2020 OFFICE OF THE MINORITY LEADER,4,GENERAL EXPENDITURES,SUPPLIES AND MATERIALS,DETAIL,2020-12-11,AP,1361023,CITI PCARD-ZOOM.US,2020-11-04,2020-12-03,SOFTWARE  LESS THAN  $500,15.74,2020
,2020 OFFICE OF THE MINORITY LEADER,4,GENERAL EXPENDITURES,SUPPLIES AND MATERIALS,DETAIL,2020-12-11,AP,1361023,CITI PCARD-ZOOM.US 888-799-9666,2020-10-23,2020-11-22,SOFTWARE  LESS THAN  $500,42.4,2020
,2020 OFFICE OF THE MINORITY LEADER,4,GENERAL EXPENDITURES,SUPPLIES AND MATERIALS,DETAIL,2020-12-11,GL,FRM0102895, ,2020-11-18,2020-11-18,FRAMING (TRANSFER),31,2020
,2020 OFFICE OF THE MINORITY LEADER,4,GENERAL EXPENDITURES,SUPPLIES AND MATERIALS,DETAIL,2020-12-15,AP,1362835,BONNER JENNIFER L.,2020-12-01,2020-12-01,FOOD & BEVERAGE,70,2020
,2020 OFFICE OF THE MINORITY LEADER,4,GENERAL EXPENDITURES,SUPPLIES AND MATERIALS,DETAIL,2020-12-15,AP,1363262,CAPITAL GIFTS AND AWARDS INC,2020-10-29,2020-10-29,OFFICE SUPPLIES (OUTSIDE),2908,2020
,2020 OFFICE OF THE MINORITY LEADER,4,GENERAL EXPENDITURES,SUPPLIES AND MATERIALS,DETAIL,2020-12-16,AP,1363270,BGOV LLC,2021-01-01,2021-12-31,PUBLICATIONS/REFERENCE MAT'L,5940,2020
,2020 OFFICE OF THE MINORITY LEADER,4,GENERAL EXPENDITURES,SUPPLIES AND MATERIALS,DETAIL,2020-12-31,GL,RMS0103333, ,2020-12-01,2020-12-31,OFFICE SUPPLY (TRANSFER),49.5,2020
,2020 OFFICE OF THE MINORITY LEADER,4,GENERAL EXPENDITURES,SUPPLIES AND MATERIALS,SUBTOTAL,   ,   ,   ,   ,   ,   ,SUPPLIES AND MATERIALS TOTALS:,25507.08,2020
,2020 OFFICE OF THE MINORITY LEADER,4,GENERAL EXPENDITURES,EQUIPMENT,DETAIL,2020-10-06,AP,1339805,GULF PARTYLINE CORPORATION,2020-09-01,2020-09-30,COMPUTER SOFTW PURCH  LESS THAN $10 000,4000,2020
,2020 OFFICE OF THE MINORITY LEADER,4,GENERAL EXPENDITURES,EQUIPMENT,DETAIL,2020-10-30,GL,MNT0101914, ,2020-10-01,2020-10-31,MAINTENANCE / REPAIRS,124,2020
,2020 OFFICE OF THE MINORITY LEADER,4,GENERAL EXPENDITURES,EQUIPMENT,DETAIL,2020-11-30,GL,MNT0102510, ,2020-11-01,2020-11-30,MAINTENANCE / REPAIRS,124,2020
,2020 OFFICE OF THE MINORITY LEADER,4,GENERAL EXPENDITURES,EQUIPMENT,DETAIL,2020-12-03,AP,1359404,GULF PARTYLINE CORPORATION,2020-11-01,2020-11-30,COMPUTER SOFTW PURCH  LESS THAN $10 000,8000,2020
,2020 OFFICE OF THE MINORITY LEADER,4,GENERAL EXPENDITURES,EQUIPMENT,DETAIL,2020-12-31,GL,MNT0103285, ,2020-12-01,2020-12-31,MAINTENANCE / REPAIRS,124,2020
,2020 OFFICE OF THE MINORITY LEADER,4,GENERAL EXPENDITURES,EQUIPMENT,SUBTOTAL,   ,   ,   ,   ,   ,   ,EQUIPMENT TOTALS:,12372,2020
,2020 OFFICE OF THE MINORITY LEADER,4,GENERAL EXPENDITURES,EQUIPMENT,SUBTOTAL,   ,   ,   ,   ,   ,   ,GENERAL EXPENDITURES TOTALS:,1313345.51,2020
,2020 OFFICE OF THE MINORITY LEADER,4,CONFERENCE SECRETARY,PERSONNEL COMPENSATION,DETAIL,   ,   ,   ,ROMAN MARK J.,2020-10-01,2020-12-31,SHARED EMPLOYEE,25500,2020
,2020 OFFICE OF THE MINORITY LEADER,4,CONFERENCE SECRETARY,PERSONNEL COMPENSATION,SUBTOTAL,   ,   ,   ,   ,   ,   ,PERSONNEL COMPENSATION TOTALS:,25500,2020
,2020 OFFICE OF THE MINORITY LEADER,4,CONFERENCE SECRETARY,PERSONNEL COMPENSATION,SUBTOTAL,   ,   ,   ,   ,   ,   ,CONFERENCE SECRETARY TOTALS:,25500,2020
,2020 OFFICE OF THE MINORITY LEADER,4,REPUBLICAN POLICY COMMITTEE,PERSONNEL COMPENSATION,DETAIL,   ,   ,   ,WALL KELSEY V,2020-10-01,2020-12-31,SHARED EMPLOYEE,14250,2020
,2020 OFFICE OF THE MINORITY LEADER,4,REPUBLICAN POLICY COMMITTEE,PERSONNEL COMPENSATION,SUBTOTAL,   ,   ,   ,   ,   ,   ,PERSONNEL COMPENSATION TOTALS:,14250,2020
,2020 OFFICE OF THE MINORITY LEADER,4,REPUBLICAN POLICY COMMITTEE,PERSONNEL COMPENSATION,SUBTOTAL,   ,   ,   ,   ,   ,   ,REPUBLICAN POLICY COMMITTEE TOTALS:,14250,2020
,2020 OFFICE OF THE MINORITY LEADER,4,REPUBLICAN POLICY COMMITTEE,PERSONNEL COMPENSATION,GRAND TOTAL FOR ORGANIZATION,   ,   ,   ,   ,   ,   ,OFFICE TOTALS: ,1353095.51,2020
,2020 OFFICE OF THE MAJORITY WHIP,4,GENERAL EXPENDITURES,PERSONNEL COMPENSATION,DETAIL,   ,   ,   ,BUTLER MORGAN E,2020-10-01,2020-12-31,DIGITAL DIRECTOR,21999.99,2020
,2020 OFFICE OF THE MAJORITY WHIP,4,GENERAL EXPENDITURES,PERSONNEL COMPENSATION,DETAIL,   ,   ,   ,CONRAD WILLIAM A,2020-10-01,2020-12-31,STAFF ASSISTANT,8499.99,2020
,2020 OFFICE OF THE MAJORITY WHIP,4,GENERAL EXPENDITURES,PERSONNEL COMPENSATION,DETAIL,   ,   ,   ,DERRICK HOPE E,2020-10-01,2020-12-31,COMMUNICATIONS DIRECTOR,38750.01,2020
,2020 OFFICE OF THE MAJORITY WHIP,4,GENERAL EXPENDITURES,PERSONNEL COMPENSATION,DETAIL,   ,   ,   ,ELLISON MATTHEW B.,2020-10-01,2020-12-31,DEPUTY POLICY DIRECTOR,27500.01,2020
,2020 OFFICE OF THE MAJORITY WHIP,4,GENERAL EXPENDITURES,PERSONNEL COMPENSATION,DETAIL,   ,   ,   ,GARRETT EMERALD P,2020-10-01,2020-12-31,FLOOR ASSISTANT,12999.99,2020
,2020 OFFICE OF THE MAJORITY WHIP,4,GENERAL EXPENDITURES,PERSONNEL COMPENSATION,DETAIL,   ,   ,   ,HUDSON KEEGAN P.,2020-10-01,2020-12-31,STAFF ASSISTANT,8750.01,2020
,2020 OFFICE OF THE MAJORITY WHIP,4,GENERAL EXPENDITURES,PERSONNEL COMPENSATION,DETAIL,   ,   ,   ,KELLY SARAH,2020-10-01,2020-12-31,SENIOR ADVISOR,34250.01,2020
,2020 OFFICE OF THE MAJORITY WHIP,4,GENERAL EXPENDITURES,PERSONNEL COMPENSATION,DETAIL,   ,   ,   ,LINK CRAIG C,2020-10-01,2020-12-31,FLOOR DIRECTOR AND GENERAL COU,40875,2020
,2020 OFFICE OF THE MAJORITY WHIP,4,GENERAL EXPENDITURES,PERSONNEL COMPENSATION,DETAIL,   ,   ,   ,LOEWE ERICA P,2020-10-01,2020-12-31,DEPUTY COMMUNICATIONS DIRECTOR,26250,2020
,2020 OFFICE OF THE MAJORITY WHIP,4,GENERAL EXPENDITURES,PERSONNEL COMPENSATION,DETAIL,   ,   ,   ,MASON TAMIKA K,2020-10-01,2020-12-31,DIRECTOR OF TECHNOLOGY FOR FLO,23750.01,2020
,2020 OFFICE OF THE MAJORITY WHIP,4,GENERAL EXPENDITURES,PERSONNEL COMPENSATION,DETAIL,   ,   ,   ,MICHALAK TIMOTHY J,2020-10-01,2020-12-31,LEGISLATIVE ASSISTANT,12500.01,2020
,2020 OFFICE OF THE MAJORITY WHIP,4,GENERAL EXPENDITURES,PERSONNEL COMPENSATION,DETAIL,   ,   ,   ,MONEIB AHMED,2020-10-01,2020-12-31,STAFF ASSISTANT,9500.01,2020
,2020 OFFICE OF THE MAJORITY WHIP,4,GENERAL EXPENDITURES,PERSONNEL COMPENSATION,DETAIL,   ,   ,   ,SAUNDERS NIA G.,2020-10-01,2020-12-31,PRESS ASSISTANT,8750.01,2020
,2020 OFFICE OF THE MAJORITY WHIP,4,GENERAL EXPENDITURES,PERSONNEL COMPENSATION,DETAIL,   ,   ,   ,UBEZONU NNEMDILIM I,2020-10-01,2020-12-31,DEPUTY FLOOR LEADER,18333.33,2020
,2020 OFFICE OF THE MAJORITY WHIP,4,GENERAL EXPENDITURES,PERSONNEL COMPENSATION,DETAIL,   ,   ,   ,WATKINS YELBERTON R.,2020-10-01,2020-12-31,CHIEF OF STAFF,42000,2020
,2020 OFFICE OF THE MAJORITY WHIP,4,GENERAL EXPENDITURES,PERSONNEL COMPENSATION,DETAIL,   ,   ,   ,WHITEHOUSE LIN,2020-10-01,2020-12-31,MEMBER SERVICES ASSISTANT,14250.01,2020
,2020 OFFICE OF THE MAJORITY WHIP,4,GENERAL EXPENDITURES,PERSONNEL COMPENSATION,DETAIL,   ,   ,   ,WILSON ASHLEIGH R,2020-10-01,2020-12-31,LEGISLATIVE DIRECTOR,6249.99,2020
,2020 OFFICE OF THE MAJORITY WHIP,4,GENERAL EXPENDITURES,PERSONNEL COMPENSATION,DETAIL,   ,   ,   ,WMARIAM WINTTA M,2020-10-01,2020-12-31,POLICY DIRECTOR,42125.01,2020
,2020 OFFICE OF THE MAJORITY WHIP,4,GENERAL EXPENDITURES,PERSONNEL COMPENSATION,SUBTOTAL,   ,   ,   ,   ,   ,   ,PERSONNEL COMPENSATION TOTALS:,397333.39,2020
,2020 OFFICE OF THE MAJORITY WHIP,4,GENERAL EXPENDITURES,RENT  COMMUNICATION  UTILITIES,DETAIL,2020-10-14,AP,1341693,LEIDOS DIGITAL SOLUTIONS INC,2020-09-17,2020-09-17,TELECOMSRV/EQ/TOLL CHARGE,1305.84,2020
,2020 OFFICE OF THE MAJORITY WHIP,4,GENERAL EXPENDITURES,RENT  COMMUNICATION  UTILITIES,DETAIL,2020-10-14,AP,1341699,LEIDOS DIGITAL SOLUTIONS INC,2020-07-01,2020-07-01,TELECOMSRV/EQ/TOLL CHARGE,1331.6,2020
,2020 OFFICE OF THE MAJORITY WHIP,4,GENERAL EXPENDITURES,RENT  COMMUNICATION  UTILITIES,DETAIL,2020-10-16,AP,1341689,LEIDOS DIGITAL SOLUTIONS INC,2020-07-21,2020-07-21,TELECOMSRV/EQ/TOLL CHARGE,1135.18,2020
,2020 OFFICE OF THE MAJORITY WHIP,4,GENERAL EXPENDITURES,RENT  COMMUNICATION  UTILITIES,DETAIL,2020-10-27,GL,EMS0101782, ,2020-09-01,2020-09-30,DC TELECOM EQUIP (TRANSFER),72,2020
,2020 OFFICE OF THE MAJORITY WHIP,4,GENERAL EXPENDITURES,RENT  COMMUNICATION  UTILITIES,DETAIL,2020-10-27,GL,EMS0101782, ,2020-09-01,2020-09-30,DC TELECOM SERV (TRANSFER),285.75,2020
,2020 OFFICE OF THE MAJORITY WHIP,4,GENERAL EXPENDITURES,RENT  COMMUNICATION  UTILITIES,DETAIL,2020-10-27,GL,EMS0101782, ,2020-09-01,2020-09-30,DC TELECOM TOLLS (TRANSFER),1682.89,2020
,2020 OFFICE OF THE MAJORITY WHIP,4,GENERAL EXPENDITURES,RENT  COMMUNICATION  UTILITIES,DETAIL,2020-11-20,GL,EMS0102354, ,2020-10-01,2020-10-31,DC TELECOM EQUIP (TRANSFER),76,2020
,2020 OFFICE OF THE MAJORITY WHIP,4,GENERAL EXPENDITURES,RENT  COMMUNICATION  UTILITIES,DETAIL,2020-11-20,GL,EMS0102354, ,2020-10-01,2020-10-31,DC TELECOM SERV (TRANSFER),293.5,2020
,2020 OFFICE OF THE MAJORITY WHIP,4,GENERAL EXPENDITURES,RENT  COMMUNICATION  UTILITIES,DETAIL,2020-11-20,GL,EMS0102354, ,2020-10-01,2020-10-31,DC TELECOM TOLLS (TRANSFER),1361.71,2020
,2020 OFFICE OF THE MAJORITY WHIP,4,GENERAL EXPENDITURES,RENT  COMMUNICATION  UTILITIES,DETAIL,2020-12-28,GL,EMS0103149, ,2020-11-01,2020-11-30,DC TELECOM EQUIP (TRANSFER),76,2020
,2020 OFFICE OF THE MAJORITY WHIP,4,GENERAL EXPENDITURES,RENT  COMMUNICATION  UTILITIES,DETAIL,2020-12-28,GL,EMS0103149, ,2020-11-01,2020-11-30,DC TELECOM SERV (TRANSFER),293.5,2020
,2020 OFFICE OF THE MAJORITY WHIP,4,GENERAL EXPENDITURES,RENT  COMMUNICATION  UTILITIES,DETAIL,2020-12-28,GL,EMS0103149, ,2020-11-01,2020-11-30,DC TELECOM TOLLS (TRANSFER),1099.21,2020
,2020 OFFICE OF THE MAJORITY WHIP,4,GENERAL EXPENDITURES,RENT  COMMUNICATION  UTILITIES,SUBTOTAL,   ,   ,   ,   ,   ,   ,RENT  COMMUNICATION  UTILITIES TOTALS:,9013.18,2020
,2020 OFFICE OF THE MAJORITY WHIP,4,GENERAL EXPENDITURES,PRINTING AND REPRODUCTION,DETAIL,2020-12-30,GL,MED0103249, ,2020-12-10,2020-12-10,PHOTOGRAPHIC (TRANSFER),7.6,2020
,2020 OFFICE OF THE MAJORITY WHIP,4,GENERAL EXPENDITURES,PRINTING AND REPRODUCTION,SUBTOTAL,   ,   ,   ,   ,   ,   ,PRINTING AND REPRODUCTION TOTALS:,7.6,2020
,2020 OFFICE OF THE MAJORITY WHIP,4,GENERAL EXPENDITURES,OTHER SERVICES,DETAIL,2020-10-15,AP,1341684,VERACITY LLC,2020-09-01,2020-09-30,WEB DEV HST EMAIL & RLTD SERV,1100,2020
,2020 OFFICE OF THE MAJORITY WHIP,4,GENERAL EXPENDITURES,OTHER SERVICES,DETAIL,2020-10-16,AP,1344367,FIRESIDE21,2020-10-01,2020-10-31,TECHNOLOGY SERVICE CONTRACTS,1835,2020
,2020 OFFICE OF THE MAJORITY WHIP,4,GENERAL EXPENDITURES,OTHER SERVICES,DETAIL,2020-11-16,AP,1354094,FIRESIDE21,2020-11-01,2020-11-30,TECHNOLOGY SERVICE CONTRACTS,1835,2020
,2020 OFFICE OF THE MAJORITY WHIP,4,GENERAL EXPENDITURES,OTHER SERVICES,DETAIL,2020-12-16,AP,1365025,FIRESIDE21,2020-12-01,2020-12-31,TECHNOLOGY SERVICE CONTRACTS,1835,2020
,2020 OFFICE OF THE MAJORITY WHIP,4,GENERAL EXPENDITURES,OTHER SERVICES,SUBTOTAL,   ,   ,   ,   ,   ,   ,OTHER SERVICES TOTALS:,6605,2020
,2020 OFFICE OF THE MAJORITY WHIP,4,GENERAL EXPENDITURES,SUPPLIES AND MATERIALS,DETAIL,2020-10-19,AP,1343147,CITI PCARD-AMZN Mktp US M415798S2,2020-09-23,2020-09-23,OFFICE SUPPLIES (OUTSIDE),208.96,2020
,2020 OFFICE OF THE MAJORITY WHIP,4,GENERAL EXPENDITURES,SUPPLIES AND MATERIALS,DETAIL,2020-10-19,AP,1343147,CITI PCARD-AMZN Mktp US M438D3761,2020-09-24,2020-09-24,OFFICE SUPPLIES (OUTSIDE),245.98,2020
,2020 OFFICE OF THE MAJORITY WHIP,4,GENERAL EXPENDITURES,SUPPLIES AND MATERIALS,DETAIL,2020-10-19,AP,1343147,CITI PCARD-AMZN Mktp US M47LL6QP2,2020-09-22,2020-09-22,OFFICE SUPPLIES (OUTSIDE),82.61,2020
,2020 OFFICE OF THE MAJORITY WHIP,4,GENERAL EXPENDITURES,SUPPLIES AND MATERIALS,DETAIL,2020-10-19,AP,1343147,CITI PCARD-AMZN Mktp US M49Q67BK2,2020-09-23,2020-09-23,OFFICE SUPPLIES (OUTSIDE),81.89,2020
,2020 OFFICE OF THE MAJORITY WHIP,4,GENERAL EXPENDITURES,SUPPLIES AND MATERIALS,DETAIL,2020-10-19,AP,1343147,CITI PCARD-AMZN Mktp US MU3A807R0,2020-09-14,2020-09-14,FOOD & BEVERAGE,75.59,2020
,2020 OFFICE OF THE MAJORITY WHIP,4,GENERAL EXPENDITURES,SUPPLIES AND MATERIALS,DETAIL,2020-10-19,AP,1343147,CITI PCARD-INSTACART,2020-09-09,2020-09-09,FOOD & BEVERAGE,262.72,2020
,2020 OFFICE OF THE MAJORITY WHIP,4,GENERAL EXPENDITURES,SUPPLIES AND MATERIALS,DETAIL,2020-10-19,AP,1343147,CITI PCARD-INSTACART,2020-09-14,2020-09-14,FOOD & BEVERAGE,68.69,2020
,2020 OFFICE OF THE MAJORITY WHIP,4,GENERAL EXPENDITURES,SUPPLIES AND MATERIALS,DETAIL,2020-10-19,AP,1343147,CITI PCARD-INSTACART,2020-09-21,2020-09-21,FOOD & BEVERAGE,59.11,2020
,2020 OFFICE OF THE MAJORITY WHIP,4,GENERAL EXPENDITURES,SUPPLIES AND MATERIALS,DETAIL,2020-10-19,AP,1343147,CITI PCARD-INSTACART,2020-09-22,2020-09-22,FOOD & BEVERAGE,45.27,2020
,2020 OFFICE OF THE MAJORITY WHIP,4,GENERAL EXPENDITURES,SUPPLIES AND MATERIALS,DETAIL,2020-10-19,AP,1343147,CITI PCARD-NYTIMES,2020-09-09,2020-10-07,PUBLICATIONS/REFERENCE MAT'L,40.28,2020
,2020 OFFICE OF THE MAJORITY WHIP,4,GENERAL EXPENDITURES,SUPPLIES AND MATERIALS,DETAIL,2020-10-19,AP,1343147,CITI PCARD-ROCKLANDS BARBEQUE CATERI,2020-09-22,2020-09-22,FOOD & BEVERAGE,3549.5,2020
,2020 OFFICE OF THE MAJORITY WHIP,4,GENERAL EXPENDITURES,SUPPLIES AND MATERIALS,DETAIL,2020-10-30,GL,RMS0101913, ,2020-10-01,2020-10-31,OFFICE SUPPLY (TRANSFER),54.02,2020
,2020 OFFICE OF THE MAJORITY WHIP,4,GENERAL EXPENDITURES,SUPPLIES AND MATERIALS,DETAIL,2020-11-18,AP,1351893,CITI PCARD-AMZN Mktp US MK89B2OE0,2020-09-28,2020-09-28,OFFICE SUPPLIES (OUTSIDE),29.99,2020
,2020 OFFICE OF THE MAJORITY WHIP,4,GENERAL EXPENDITURES,SUPPLIES AND MATERIALS,DETAIL,2020-11-18,AP,1351893,CITI PCARD-DISTRICT CAMERA - DC,2020-10-15,2020-10-15,OFFICE SUPPLIES (OUTSIDE),397,2020
,2020 OFFICE OF THE MAJORITY WHIP,4,GENERAL EXPENDITURES,SUPPLIES AND MATERIALS,DETAIL,2020-11-18,AP,1351893,CITI PCARD-INSTACART,2020-10-08,2020-10-08,FOOD & BEVERAGE,437.36,2020
,2020 OFFICE OF THE MAJORITY WHIP,4,GENERAL EXPENDITURES,SUPPLIES AND MATERIALS,DETAIL,2020-11-18,AP,1351893,CITI PCARD-INSTACART,2020-10-26,2020-10-26,FOOD & BEVERAGE,266.37,2020
,2020 OFFICE OF THE MAJORITY WHIP,4,GENERAL EXPENDITURES,SUPPLIES AND MATERIALS,DETAIL,2020-11-18,AP,1351893,CITI PCARD-NYTIMES,2020-10-07,2020-11-04,PUBLICATIONS/REFERENCE MAT'L,40.28,2020
,2020 OFFICE OF THE MAJORITY WHIP,4,GENERAL EXPENDITURES,SUPPLIES AND MATERIALS,DETAIL,2020-11-30,GL,RMS0102573, ,2020-11-01,2020-11-30,OFFICE SUPPLY (TRANSFER),225.65,2020
,2020 OFFICE OF THE MAJORITY WHIP,4,GENERAL EXPENDITURES,SUPPLIES AND MATERIALS,DETAIL,2020-12-17,AP,1363850,CITI PCARD-AMZN Mktp US,2020-09-24,2020-09-24,OFFICE SUPPLIES (OUTSIDE),-245.98,2020
,2020 OFFICE OF THE MAJORITY WHIP,4,GENERAL EXPENDITURES,SUPPLIES AND MATERIALS,DETAIL,2020-12-17,AP,1363850,CITI PCARD-AMZN Mktp US 283CI2YC1,2020-11-10,2020-11-10,OFFICE SUPPLIES (OUTSIDE),105.95,2020
,2020 OFFICE OF THE MAJORITY WHIP,4,GENERAL EXPENDITURES,SUPPLIES AND MATERIALS,DETAIL,2020-12-17,AP,1363850,CITI PCARD-AMZN Mktp US HG6UW7LV3,2020-11-19,2020-11-19,OFFICE SUPPLIES (OUTSIDE),121.03,2020
,2020 OFFICE OF THE MAJORITY WHIP,4,GENERAL EXPENDITURES,SUPPLIES AND MATERIALS,DETAIL,2020-12-17,AP,1363850,CITI PCARD-Amazon.com 200WX3LA1,2020-11-12,2020-11-12,OFFICE SUPPLIES (OUTSIDE),24.95,2020
,2020 OFFICE OF THE MAJORITY WHIP,4,GENERAL EXPENDITURES,SUPPLIES AND MATERIALS,DETAIL,2020-12-17,AP,1363850,CITI PCARD-INSTACART,2020-10-29,2020-10-29,FOOD & BEVERAGE,63.14,2020
,2020 OFFICE OF THE MAJORITY WHIP,4,GENERAL EXPENDITURES,SUPPLIES AND MATERIALS,DETAIL,2020-12-17,AP,1363850,CITI PCARD-INSTACART,2020-11-10,2020-11-10,FOOD & BEVERAGE,230.05,2020
,2020 OFFICE OF THE MAJORITY WHIP,4,GENERAL EXPENDITURES,SUPPLIES AND MATERIALS,DETAIL,2020-12-17,AP,1363850,CITI PCARD-NYTIMES,2020-12-02,2020-12-30,PUBLICATIONS/REFERENCE MAT'L,40.28,2020
,2020 OFFICE OF THE MAJORITY WHIP,4,GENERAL EXPENDITURES,SUPPLIES AND MATERIALS,DETAIL,2020-12-17,AP,1363850,CITI PCARD-THE UPS STORE 2092,2020-04-01,2020-04-01,OFFICE SUPPLIES (OUTSIDE),14.28,2020
,2020 OFFICE OF THE MAJORITY WHIP,4,GENERAL EXPENDITURES,SUPPLIES AND MATERIALS,DETAIL,2020-12-17,AP,1363850,CITI PCARD-TST  ROAMING ROOSTER - NE,2020-11-18,2020-11-18,FOOD & BEVERAGE,351.45,2020
,2020 OFFICE OF THE MAJORITY WHIP,4,GENERAL EXPENDITURES,SUPPLIES AND MATERIALS,DETAIL,2020-12-31,GL,RMS0103333, ,2020-12-01,2020-12-31,OFFICE SUPPLY (TRANSFER),515.71,2020
,2020 OFFICE OF THE MAJORITY WHIP,4,GENERAL EXPENDITURES,SUPPLIES AND MATERIALS,SUBTOTAL,   ,   ,   ,   ,   ,   ,SUPPLIES AND MATERIALS TOTALS:,7392.13,2020
,2020 OFFICE OF THE MAJORITY WHIP,4,GENERAL EXPENDITURES,EQUIPMENT,DETAIL,2020-10-30,GL,MNT0101914, ,2020-10-01,2020-10-31,MAINTENANCE / REPAIRS,355,2020
,2020 OFFICE OF THE MAJORITY WHIP,4,GENERAL EXPENDITURES,EQUIPMENT,DETAIL,2020-11-20,AP,1352567,MASON TAMIKA K.,2020-09-29,2020-09-29,MAINTENANCE / REPAIRS,35,2020
,2020 OFFICE OF THE MAJORITY WHIP,4,GENERAL EXPENDITURES,EQUIPMENT,DETAIL,2020-11-30,GL,MNT0102510, ,2020-11-01,2020-11-30,MAINTENANCE / REPAIRS,355,2020
,2020 OFFICE OF THE MAJORITY WHIP,4,GENERAL EXPENDITURES,EQUIPMENT,DETAIL,2020-12-31,GL,MNT0103285, ,2020-12-01,2020-12-31,MAINTENANCE / REPAIRS,355,2020
,2020 OFFICE OF THE MAJORITY WHIP,4,GENERAL EXPENDITURES,EQUIPMENT,SUBTOTAL,   ,   ,   ,   ,   ,   ,EQUIPMENT TOTALS:,1100,2020
,2020 OFFICE OF THE MAJORITY WHIP,4,GENERAL EXPENDITURES,EQUIPMENT,SUBTOTAL,   ,   ,   ,   ,   ,   ,GENERAL EXPENDITURES TOTALS:,421451.3,2020
,2020 OFFICE OF THE MAJORITY WHIP,4,GENERAL EXPENDITURES,EQUIPMENT,GRAND TOTAL FOR ORGANIZATION,   ,   ,   ,   ,   ,   ,OFFICE TOTALS: ,421451.3,2020
,2020 OFFICE OF THE MINORITY WHIP,4,GENERAL EXPENDITURES,PERSONNEL COMPENSATION,DETAIL,   ,   ,   ,ACORNLEY MARK A.,2020-10-01,2020-12-31,FINANCIAL ADMINISTRATOR,3750,2020
,2020 OFFICE OF THE MINORITY WHIP,4,GENERAL EXPENDITURES,PERSONNEL COMPENSATION,DETAIL,   ,   ,   ,BATTAGLIA JACQUELINE P,2020-10-01,2020-12-31,SCHEDULE COORDINATOR,7500,2020
,2020 OFFICE OF THE MINORITY WHIP,4,GENERAL EXPENDITURES,PERSONNEL COMPENSATION,DETAIL,   ,   ,   ,CLARKE JOHN L,2020-10-01,2020-12-31,SPECIAL ASSISTANT,12500.01,2020
,2020 OFFICE OF THE MINORITY WHIP,4,GENERAL EXPENDITURES,PERSONNEL COMPENSATION,DETAIL,   ,   ,   ,COMER II MICHAEL D,2020-10-01,2020-12-31,DIGITAL DIRECTOR,33250,2020
,2020 OFFICE OF THE MINORITY WHIP,4,GENERAL EXPENDITURES,PERSONNEL COMPENSATION,DETAIL,   ,   ,   ,FINE LAUREN R,2020-10-01,2020-12-31,COMMUNICATIONS DIRECTOR,26287.5,2020
,2020 OFFICE OF THE MINORITY WHIP,4,GENERAL EXPENDITURES,PERSONNEL COMPENSATION,DETAIL,   ,   ,   ,GOSNELL ELLEN C,2020-10-01,2020-12-31,DIRECTOR OF OPERATIONS,33750,2020
,2020 OFFICE OF THE MINORITY WHIP,4,GENERAL EXPENDITURES,PERSONNEL COMPENSATION,DETAIL,   ,   ,   ,HORTON BRETT H.,2020-10-01,2020-12-31,CHIEF OF STAFF,43175.01,2020
,2020 OFFICE OF THE MINORITY WHIP,4,GENERAL EXPENDITURES,PERSONNEL COMPENSATION,DETAIL,   ,   ,   ,HUGHES WILLIAM J,2020-10-01,2020-12-31,POLICY DIRECTOR,21624.99,2020
,2020 OFFICE OF THE MINORITY WHIP,4,GENERAL EXPENDITURES,PERSONNEL COMPENSATION,DETAIL,   ,   ,   ,KNECHT REILLY K,2020-10-01,2020-12-31,DIGITAL ASSISTANT,9999.99,2020
,2020 OFFICE OF THE MINORITY WHIP,4,GENERAL EXPENDITURES,PERSONNEL COMPENSATION,DETAIL,   ,   ,   ,KRIEGER ROBYN W,2020-10-01,2020-12-31,STAFF ASSISTANT,9999.99,2020
,2020 OFFICE OF THE MINORITY WHIP,4,GENERAL EXPENDITURES,PERSONNEL COMPENSATION,DETAIL,   ,   ,   ,MCBRIDE ERIN E,2020-10-01,2020-12-31,DEPUTY PRESS SECRETARY,5000.01,2020
,2020 OFFICE OF THE MINORITY WHIP,4,GENERAL EXPENDITURES,PERSONNEL COMPENSATION,DETAIL,   ,   ,   ,MINKLER ANN W,2020-10-01,2020-12-31,DEPUTY FLOOR DIRECTOR,37500.01,2020
,2020 OFFICE OF THE MINORITY WHIP,4,GENERAL EXPENDITURES,PERSONNEL COMPENSATION,DETAIL,   ,   ,   ,NALLS DENNIS A,2020-10-01,2020-12-31,FLOOR ASSISTANT,32250.01,2020
,2020 OFFICE OF THE MINORITY WHIP,4,GENERAL EXPENDITURES,PERSONNEL COMPENSATION,DETAIL,   ,   ,   ,NAPIER BENJAMIN W,2020-10-01,2020-12-31,FLOOR DIRECTOR,40535.71,2020
,2020 OFFICE OF THE MINORITY WHIP,4,GENERAL EXPENDITURES,PERSONNEL COMPENSATION,DETAIL,   ,   ,   ,REISER MARTIN G,2020-10-01,2020-12-31,LEGISLATIVE COUNSEL,21249.99,2020
,2020 OFFICE OF THE MINORITY WHIP,4,GENERAL EXPENDITURES,PERSONNEL COMPENSATION,DETAIL,   ,   ,   ,REISING JOHN B,2020-10-01,2020-12-31,MEMBER SERVICES DIRECTOR,42339.29,2020
,2020 OFFICE OF THE MINORITY WHIP,4,GENERAL EXPENDITURES,PERSONNEL COMPENSATION,DETAIL,   ,   ,   ,SADLOSKY DANIEL J,2020-10-01,2020-12-31,POLICY ASSISTANT,29750.01,2020
,2020 OFFICE OF THE MINORITY WHIP,4,GENERAL EXPENDITURES,PERSONNEL COMPENSATION,DETAIL,   ,   ,   ,SAPAROW ROBERT M.,2020-10-01,2020-12-31,COS FOR DEPUTY REPUBLICAN WHIP,17499.99,2020
,2020 OFFICE OF THE MINORITY WHIP,4,GENERAL EXPENDITURES,PERSONNEL COMPENSATION,DETAIL,   ,   ,   ,SATTERTHWAITE SEAN B,2020-10-01,2020-12-31,SPEECH WRITER,20000.01,2020
,2020 OFFICE OF THE MINORITY WHIP,4,GENERAL EXPENDITURES,PERSONNEL COMPENSATION,DETAIL,   ,   ,   ,SCHMITZ ERIC T,2020-10-01,2020-12-31,COALITIONS COORDINATOR,28500,2020
,2020 OFFICE OF THE MINORITY WHIP,4,GENERAL EXPENDITURES,PERSONNEL COMPENSATION,DETAIL,   ,   ,   ,WALKER STEVEN C,2020-10-01,2020-12-31,STAFF ASSISTANT,11000.01,2020
,2020 OFFICE OF THE MINORITY WHIP,4,GENERAL EXPENDITURES,PERSONNEL COMPENSATION,DETAIL,   ,   ,   ,WIEAND JR JEFFREY L,2020-10-01,2020-12-31,COUNSEL,36250,2020
,2020 OFFICE OF THE MINORITY WHIP,4,GENERAL EXPENDITURES,PERSONNEL COMPENSATION,SUBTOTAL,   ,   ,   ,   ,   ,   ,PERSONNEL COMPENSATION TOTALS:,523712.53,2020
,2020 OFFICE OF THE MINORITY WHIP,4,GENERAL EXPENDITURES,TRAVEL,DETAIL,2020-10-20,AP,1346516,CITIBANK GOV CARD SERVICE,2020-08-19,2020-08-19,COMMERCIAL TRANSPORTATION,242.5,2020
,2020 OFFICE OF THE MINORITY WHIP,4,GENERAL EXPENDITURES,TRAVEL,SUBTOTAL,   ,   ,   ,   ,   ,   ,TRAVEL TOTALS:,242.5,2020
,2020 OFFICE OF THE MINORITY WHIP,4,GENERAL EXPENDITURES,RENT  COMMUNICATION  UTILITIES,DETAIL,2020-10-26,AP,1346533,CITI PCARD-GOOGLE  YouTube TV,2020-09-25,2020-10-24,UTILITIES,68.89,2020
,2020 OFFICE OF THE MINORITY WHIP,4,GENERAL EXPENDITURES,RENT  COMMUNICATION  UTILITIES,DETAIL,2020-10-27,GL,EMS0101782, ,2020-09-01,2020-09-30,DC TELECOM EQUIP (TRANSFER),272,2020
,2020 OFFICE OF THE MINORITY WHIP,4,GENERAL EXPENDITURES,RENT  COMMUNICATION  UTILITIES,DETAIL,2020-10-27,GL,EMS0101782, ,2020-09-01,2020-09-30,DC TELECOM SERV (TRANSFER),232.5,2020
,2020 OFFICE OF THE MINORITY WHIP,4,GENERAL EXPENDITURES,RENT  COMMUNICATION  UTILITIES,DETAIL,2020-10-27,GL,EMS0101782, ,2020-09-01,2020-09-30,DC TELECOM TOLLS (TRANSFER),3018.77,2020
,2020 OFFICE OF THE MINORITY WHIP,4,GENERAL EXPENDITURES,RENT  COMMUNICATION  UTILITIES,DETAIL,2020-11-20,AP,1354207,CITI PCARD-GOOGLE  YouTube TV,2020-10-25,2020-11-24,UTILITIES,68.89,2020
,2020 OFFICE OF THE MINORITY WHIP,4,GENERAL EXPENDITURES,RENT  COMMUNICATION  UTILITIES,DETAIL,2020-11-20,GL,EMS0102354, ,2020-10-01,2020-10-31,DC TELECOM EQUIP (TRANSFER),76,2020
,2020 OFFICE OF THE MINORITY WHIP,4,GENERAL EXPENDITURES,RENT  COMMUNICATION  UTILITIES,DETAIL,2020-11-20,GL,EMS0102354, ,2020-10-01,2020-10-31,DC TELECOM SERV (TRANSFER),224.75,2020
,2020 OFFICE OF THE MINORITY WHIP,4,GENERAL EXPENDITURES,RENT  COMMUNICATION  UTILITIES,DETAIL,2020-11-20,GL,EMS0102354, ,2020-10-01,2020-10-31,DC TELECOM TOLLS (TRANSFER),3501.46,2020
,2020 OFFICE OF THE MINORITY WHIP,4,GENERAL EXPENDITURES,RENT  COMMUNICATION  UTILITIES,DETAIL,2020-12-28,GL,EMS0103149, ,2020-11-01,2020-11-30,DC TELECOM EQUIP (TRANSFER),172,2020
,2020 OFFICE OF THE MINORITY WHIP,4,GENERAL EXPENDITURES,RENT  COMMUNICATION  UTILITIES,DETAIL,2020-12-28,GL,EMS0103149, ,2020-11-01,2020-11-30,DC TELECOM SERV (TRANSFER),224.75,2020
,2020 OFFICE OF THE MINORITY WHIP,4,GENERAL EXPENDITURES,RENT  COMMUNICATION  UTILITIES,DETAIL,2020-12-28,GL,EMS0103149, ,2020-11-01,2020-11-30,DC TELECOM TOLLS (TRANSFER),2908.71,2020
,2020 OFFICE OF THE MINORITY WHIP,4,GENERAL EXPENDITURES,RENT  COMMUNICATION  UTILITIES,SUBTOTAL,   ,   ,   ,   ,   ,   ,RENT  COMMUNICATION  UTILITIES TOTALS:,10768.72,2020
,2020 OFFICE OF THE MINORITY WHIP,4,GENERAL EXPENDITURES,PRINTING AND REPRODUCTION,DETAIL,2020-10-28,GL,MED0101823, ,2020-09-30,2020-09-30,PHOTOGRAPHIC (TRANSFER),3.4,2020
,2020 OFFICE OF THE MINORITY WHIP,4,GENERAL EXPENDITURES,PRINTING AND REPRODUCTION,DETAIL,2020-12-30,GL,MED0103249, ,2020-12-08,2020-12-08,PHOTOGRAPHIC (TRANSFER),19,2020
,2020 OFFICE OF THE MINORITY WHIP,4,GENERAL EXPENDITURES,PRINTING AND REPRODUCTION,SUBTOTAL,   ,   ,   ,   ,   ,   ,PRINTING AND REPRODUCTION TOTALS:,22.4,2020
,2020 OFFICE OF THE MINORITY WHIP,4,GENERAL EXPENDITURES,OTHER SERVICES,DETAIL,2020-10-16,AP,1343668,HOUSECALL LLC,2020-10-01,2020-10-31,TECHNOLOGY SERVICE CONTRACTS,5125,2020
,2020 OFFICE OF THE MINORITY WHIP,4,GENERAL EXPENDITURES,OTHER SERVICES,DETAIL,2020-10-20,AP,1339518,GULF PARTYLINE CORPORATION,2020-09-01,2020-09-30,TECHNOLOGY SERVICE CONTRACTS,3000,2020
,2020 OFFICE OF THE MINORITY WHIP,4,GENERAL EXPENDITURES,OTHER SERVICES,DETAIL,2020-10-21,AP,1339526,ENGAGE LLC,2020-09-01,2020-09-30,WEB DEV HST EMAIL & RLTD SERV,500,2020
,2020 OFFICE OF THE MINORITY WHIP,4,GENERAL EXPENDITURES,OTHER SERVICES,DETAIL,2020-11-16,AP,1353393,HOUSECALL LLC,2020-11-01,2020-11-30,TECHNOLOGY SERVICE CONTRACTS,5125,2020
,2020 OFFICE OF THE MINORITY WHIP,4,GENERAL EXPENDITURES,OTHER SERVICES,DETAIL,2020-11-19,AP,1350267,ENGAGE LLC,2020-10-01,2020-10-31,WEB DEV HST EMAIL & RLTD SERV,500,2020
,2020 OFFICE OF THE MINORITY WHIP,4,GENERAL EXPENDITURES,OTHER SERVICES,DETAIL,2020-11-20,AP,1354207,CITI PCARD-MAILCHIMP    MONTHLY,2020-10-07,2020-11-06,WEB DEV HST EMAIL & RLTD SERV,301.03,2020
,2020 OFFICE OF THE MINORITY WHIP,4,GENERAL EXPENDITURES,OTHER SERVICES,DETAIL,2020-12-16,AP,1364307,HOUSECALL LLC,2020-12-01,2020-12-31,TECHNOLOGY SERVICE CONTRACTS,5125,2020
,2020 OFFICE OF THE MINORITY WHIP,4,GENERAL EXPENDITURES,OTHER SERVICES,DETAIL,2020-12-21,AP,1367261,GULF PARTYLINE CORPORATION,2020-11-01,2020-11-30,TECHNOLOGY SERVICE CONTRACTS,3000,2020
,2020 OFFICE OF THE MINORITY WHIP,4,GENERAL EXPENDITURES,OTHER SERVICES,DETAIL,2020-12-21,AP,1367299,GULF PARTYLINE CORPORATION,2020-10-01,2020-10-31,TECHNOLOGY SERVICE CONTRACTS,3000,2020
,2020 OFFICE OF THE MINORITY WHIP,4,GENERAL EXPENDITURES,OTHER SERVICES,DETAIL,2020-12-22,AP,1367294,ENGAGE LLC,2020-11-01,2020-11-30,WEB DEV HST EMAIL & RLTD SERV,500,2020
,2020 OFFICE OF THE MINORITY WHIP,4,GENERAL EXPENDITURES,OTHER SERVICES,SUBTOTAL,   ,   ,   ,   ,   ,   ,OTHER SERVICES TOTALS:,26176.03,2020
,2020 OFFICE OF THE MINORITY WHIP,4,GENERAL EXPENDITURES,SUPPLIES AND MATERIALS,DETAIL,2020-10-20,AP,1337783,GEORGE W ALLEN COMPANY INC,2020-09-08,2020-09-08,FOOD & BEVERAGE,98.5,2020
,2020 OFFICE OF THE MINORITY WHIP,4,GENERAL EXPENDITURES,SUPPLIES AND MATERIALS,DETAIL,2020-10-20,AP,1339117,QUENCH USA LLC,2020-10-01,2020-10-31,WATER,44.52,2020
,2020 OFFICE OF THE MINORITY WHIP,4,GENERAL EXPENDITURES,SUPPLIES AND MATERIALS,DETAIL,2020-10-26,AP,1346533,CITI PCARD-APPLE.COM/BILL,2020-08-29,2020-09-28,SOFTWARE  LESS THAN  $500,3.17,2020
,2020 OFFICE OF THE MINORITY WHIP,4,GENERAL EXPENDITURES,SUPPLIES AND MATERIALS,DETAIL,2020-10-26,AP,1346533,CITI PCARD-APPLE.COM/BILL,2020-08-30,2020-09-29,SOFTWARE  LESS THAN  $500,3.17,2020
,2020 OFFICE OF THE MINORITY WHIP,4,GENERAL EXPENDITURES,SUPPLIES AND MATERIALS,DETAIL,2020-10-26,AP,1346533,CITI PCARD-APPLE.COM/BILL,2020-09-23,2020-10-22,SOFTWARE  LESS THAN  $500,3.17,2020
,2020 OFFICE OF THE MINORITY WHIP,4,GENERAL EXPENDITURES,SUPPLIES AND MATERIALS,DETAIL,2020-10-26,AP,1346533,CITI PCARD-GOOGLE GOOGLE STORAGE,2020-09-13,2020-10-12,SOFTWARE  LESS THAN  $500,10.59,2020
,2020 OFFICE OF THE MINORITY WHIP,4,GENERAL EXPENDITURES,SUPPLIES AND MATERIALS,DETAIL,2020-10-26,AP,1346533,CITI PCARD-LEGISTORM LLC,2020-09-14,2020-10-13,PUBLICATIONS/REFERENCE MAT'L,11.61,2020
,2020 OFFICE OF THE MINORITY WHIP,4,GENERAL EXPENDITURES,SUPPLIES AND MATERIALS,DETAIL,2020-10-26,AP,1346533,CITI PCARD-MAILCHIMP    MONTHLY,2020-09-07,2020-10-06,SOFTWARE  LESS THAN  $500,301.03,2020
,2020 OFFICE OF THE MINORITY WHIP,4,GENERAL EXPENDITURES,SUPPLIES AND MATERIALS,DETAIL,2020-10-26,AP,1346533,CITI PCARD-STK Shutterstock,2020-08-29,2020-09-28,PUBLICATIONS/REFERENCE MAT'L,49,2020
,2020 OFFICE OF THE MINORITY WHIP,4,GENERAL EXPENDITURES,SUPPLIES AND MATERIALS,DETAIL,2020-10-26,AP,1346533,CITI PCARD-STK Shutterstock,2020-09-26,2020-10-25,PUBLICATIONS/REFERENCE MAT'L,169,2020
,2020 OFFICE OF THE MINORITY WHIP,4,GENERAL EXPENDITURES,SUPPLIES AND MATERIALS,DETAIL,2020-10-26,AP,1346533,CITI PCARD-SUB WASHPOST 015043157,2020-09-17,2020-10-16,PUBLICATIONS/REFERENCE MAT'L,10.6,2020
,2020 OFFICE OF THE MINORITY WHIP,4,GENERAL EXPENDITURES,SUPPLIES AND MATERIALS,DETAIL,2020-10-26,AP,1346533,CITI PCARD-ZAGG INC,2020-09-14,2020-09-14,OFFICE SUPPLIES (OUTSIDE),158.52,2020
,2020 OFFICE OF THE MINORITY WHIP,4,GENERAL EXPENDITURES,SUPPLIES AND MATERIALS,DETAIL,2020-11-18,AP,1348609,QUENCH USA LLC,2020-11-01,2020-11-30,WATER,44.52,2020
,2020 OFFICE OF THE MINORITY WHIP,4,GENERAL EXPENDITURES,SUPPLIES AND MATERIALS,DETAIL,2020-11-19,AP,1357335,ANNIN FLAG COMPANY,2020-09-08,2020-09-08,OFFICE SUPPLIES (OUTSIDE),21.75,2020
,2020 OFFICE OF THE MINORITY WHIP,4,GENERAL EXPENDITURES,SUPPLIES AND MATERIALS,DETAIL,2020-11-20,AP,1354207,CITI PCARD-AMAZON.COM 2T5M56PF1 AMZN,2020-10-16,2020-10-16,OFFICE SUPPLIES (OUTSIDE),124.98,2020
,2020 OFFICE OF THE MINORITY WHIP,4,GENERAL EXPENDITURES,SUPPLIES AND MATERIALS,DETAIL,2020-11-20,AP,1354207,CITI PCARD-APPLE.COM/BILL,2020-09-29,2020-10-28,SOFTWARE  LESS THAN  $500,3.17,2020
,2020 OFFICE OF THE MINORITY WHIP,4,GENERAL EXPENDITURES,SUPPLIES AND MATERIALS,DETAIL,2020-11-20,AP,1354207,CITI PCARD-APPLE.COM/BILL,2020-09-30,2020-10-29,SOFTWARE  LESS THAN  $500,3.17,2020
,2020 OFFICE OF THE MINORITY WHIP,4,GENERAL EXPENDITURES,SUPPLIES AND MATERIALS,DETAIL,2020-11-20,AP,1354207,CITI PCARD-APPLE.COM/BILL,2020-10-23,2020-11-22,SOFTWARE  LESS THAN  $500,3.17,2020
,2020 OFFICE OF THE MINORITY WHIP,4,GENERAL EXPENDITURES,SUPPLIES AND MATERIALS,DETAIL,2020-11-20,AP,1354207,CITI PCARD-D J WALL-ST-JOURNAL,2020-10-20,2020-11-19,PUBLICATIONS/REFERENCE MAT'L,123.99,2020
,2020 OFFICE OF THE MINORITY WHIP,4,GENERAL EXPENDITURES,SUPPLIES AND MATERIALS,DETAIL,2020-11-20,AP,1354207,CITI PCARD-GOOGLE GOOGLE STORAGE,2020-10-13,2020-11-12,PUBLICATIONS/REFERENCE MAT'L,10.59,2020
,2020 OFFICE OF THE MINORITY WHIP,4,GENERAL EXPENDITURES,SUPPLIES AND MATERIALS,DETAIL,2020-11-20,AP,1354207,CITI PCARD-LEGISTORM LLC,2020-10-13,2020-11-12,PUBLICATIONS/REFERENCE MAT'L,11.61,2020
,2020 OFFICE OF THE MINORITY WHIP,4,GENERAL EXPENDITURES,SUPPLIES AND MATERIALS,DETAIL,2020-11-20,AP,1354207,CITI PCARD-STK Shutterstock,2020-10-26,2020-11-25,PUBLICATIONS/REFERENCE MAT'L,169,2020
,2020 OFFICE OF THE MINORITY WHIP,4,GENERAL EXPENDITURES,SUPPLIES AND MATERIALS,DETAIL,2020-11-20,AP,1354207,CITI PCARD-SUB WASHPOST 015043157,2020-10-15,2020-11-14,PUBLICATIONS/REFERENCE MAT'L,10.6,2020
,2020 OFFICE OF THE MINORITY WHIP,4,GENERAL EXPENDITURES,SUPPLIES AND MATERIALS,DETAIL,2020-11-30,GL,RMS0102573, ,2020-11-01,2020-11-30,OFFICE SUPPLY (TRANSFER),184.85,2020
,2020 OFFICE OF THE MINORITY WHIP,4,GENERAL EXPENDITURES,SUPPLIES AND MATERIALS,DETAIL,2020-12-17,AP,1367305,BGOV LLC,2021-01-01,2022-12-31,PUBLICATIONS/REFERENCE MAT'L,11880,2020
,2020 OFFICE OF THE MINORITY WHIP,4,GENERAL EXPENDITURES,SUPPLIES AND MATERIALS,DETAIL,2020-12-31,GL,RMS0103333, ,2020-12-01,2020-12-31,OFFICE SUPPLY (TRANSFER),75.57,2020
,2020 OFFICE OF THE MINORITY WHIP,4,GENERAL EXPENDITURES,SUPPLIES AND MATERIALS,SUBTOTAL,   ,   ,   ,   ,   ,   ,SUPPLIES AND MATERIALS TOTALS:,13529.85,2020
,2020 OFFICE OF THE MINORITY WHIP,4,GENERAL EXPENDITURES,EQUIPMENT,DETAIL,2020-10-30,GL,MNT0101914, ,2020-10-01,2020-10-31,MAINTENANCE / REPAIRS,196,2020
,2020 OFFICE OF THE MINORITY WHIP,4,GENERAL EXPENDITURES,EQUIPMENT,DETAIL,2020-11-30,GL,MNT0102510, ,2020-11-01,2020-11-30,MAINTENANCE / REPAIRS,196,2020
,2020 OFFICE OF THE MINORITY WHIP,4,GENERAL EXPENDITURES,EQUIPMENT,DETAIL,2020-12-22,AP,1360475,CDW GOVERNMENT LLC,2020-11-17,2020-11-17,COMPUTER HARDW PURCH  LESS THAN $25 000,4343.9,2020
,2020 OFFICE OF THE MINORITY WHIP,4,GENERAL EXPENDITURES,EQUIPMENT,DETAIL,2020-12-22,AP,1360475,CDW GOVERNMENT LLC,2020-11-17,2020-11-17,WARRANTIES QTY - 2,456.14,2020
,2020 OFFICE OF THE MINORITY WHIP,4,GENERAL EXPENDITURES,EQUIPMENT,DETAIL,2020-12-31,GL,MNT0103285, ,2020-12-01,2020-12-31,MAINTENANCE / REPAIRS,196,2020
,2020 OFFICE OF THE MINORITY WHIP,4,GENERAL EXPENDITURES,EQUIPMENT,SUBTOTAL,   ,   ,   ,   ,   ,   ,EQUIPMENT TOTALS:,5388.04,2020
,2020 OFFICE OF THE MINORITY WHIP,4,GENERAL EXPENDITURES,EQUIPMENT,SUBTOTAL,   ,   ,   ,   ,   ,   ,GENERAL EXPENDITURES TOTALS:,579840.07,2020
,2020 OFFICE OF THE MINORITY WHIP,4,GENERAL EXPENDITURES,EQUIPMENT,GRAND TOTAL FOR ORGANIZATION,   ,   ,   ,   ,   ,   ,OFFICE TOTALS: ,579840.07,2020
,2020 OFFICE OF THE MINORITY WHIP,4,INTERN ALLOWANCES,PERSONNEL COMPENSATION,DETAIL,   ,   ,   ,METHE MYA M,2020-11-01,2020-12-31,MIN WHIP PAID INTERN - HOUSE P,550,2020
,2020 OFFICE OF THE MINORITY WHIP,4,INTERN ALLOWANCES,PERSONNEL COMPENSATION,SUBTOTAL,   ,   ,   ,   ,   ,   ,PERSONNEL COMPENSATION TOTALS:,550,2020
,2020 OFFICE OF THE MINORITY WHIP,4,INTERN ALLOWANCES,PERSONNEL COMPENSATION,SUBTOTAL,   ,   ,   ,   ,   ,   ,INTERN ALLOWANCES TOTALS:,550,2020
,2020 OFFICE OF THE MINORITY WHIP,4,INTERN ALLOWANCES,PERSONNEL COMPENSATION,GRAND TOTAL FOR ORGANIZATION,   ,   ,   ,   ,   ,   ,OFFICE TOTALS: ,550,2020
,2020 DEMOCRATIC CAUCUS,4,GENERAL EXPENDITURES,PERSONNEL COMPENSATION,DETAIL,   ,   ,   ,ARAYA MESERET M,2020-10-01,2020-12-31,POLICY ADVISOR,12500.01,2020
,2020 DEMOCRATIC CAUCUS,4,GENERAL EXPENDITURES,PERSONNEL COMPENSATION,DETAIL,   ,   ,   ,ARAYA MESERET M,2020-11-01,2020-11-30,POLICY ADVISOR (OTHER COMPENSATION),4000,2020
,2020 DEMOCRATIC CAUCUS,4,GENERAL EXPENDITURES,PERSONNEL COMPENSATION,DETAIL,   ,   ,   ,BRAGIN GIDEON,2020-10-01,2020-12-31,EXECUTIVE DIRECTOR,39999.99,2020
,2020 DEMOCRATIC CAUCUS,4,GENERAL EXPENDITURES,PERSONNEL COMPENSATION,DETAIL,   ,   ,   ,BRAGIN GIDEON,2020-11-01,2020-11-30,EXECUTIVE DIRECTOR (OTHER COMPENSATION),975,2020
,2020 DEMOCRATIC CAUCUS,4,GENERAL EXPENDITURES,PERSONNEL COMPENSATION,DETAIL,   ,   ,   ,CARRILLO MANUEL J,2020-09-01,2020-12-31,DIRECTOR OF OPERATIONS,28500.01,2020
,2020 DEMOCRATIC CAUCUS,4,GENERAL EXPENDITURES,PERSONNEL COMPENSATION,DETAIL,   ,   ,   ,CARRILLO MANUEL J,2020-11-01,2020-11-30,DIRECTOR OF OPERATIONS (OTHER COMPENSATION),4000,2020
,2020 DEMOCRATIC CAUCUS,4,GENERAL EXPENDITURES,PERSONNEL COMPENSATION,DETAIL,   ,   ,   ,DAWSON EARNESTINE E,2020-09-01,2020-11-30,DIGITAL DIRECTOR,11000,2020
,2020 DEMOCRATIC CAUCUS,4,GENERAL EXPENDITURES,PERSONNEL COMPENSATION,DETAIL,   ,   ,   ,DAWSON EARNESTINE E,2020-12-01,2020-12-31,DIGITAL DIRECTOR & ADVISOR TO,8333.33,2020
,2020 DEMOCRATIC CAUCUS,4,GENERAL EXPENDITURES,PERSONNEL COMPENSATION,DETAIL,   ,   ,   ,DAWSON EARNESTINE E,2020-11-01,2020-11-30,DIGITAL DIRECTOR (OTHER COMPENSATION),4000,2020
,2020 DEMOCRATIC CAUCUS,4,GENERAL EXPENDITURES,PERSONNEL COMPENSATION,DETAIL,   ,   ,   ,DESOWITZ-LEIBELL ZACHARY J,2020-10-01,2020-12-31,DEPUTY PRESS SECRETARY,16250.01,2020
,2020 DEMOCRATIC CAUCUS,4,GENERAL EXPENDITURES,PERSONNEL COMPENSATION,DETAIL,   ,   ,   ,DESOWITZ-LEIBELL ZACHARY J,2020-11-01,2020-11-30,DEPUTY PRESS SECRETARY (OTHER COMPENSATION),4000,2020
,2020 DEMOCRATIC CAUCUS,4,GENERAL EXPENDITURES,PERSONNEL COMPENSATION,DETAIL,   ,   ,   ,FULFS DANIELLE S,2020-10-01,2020-12-31,VC SENIOR LEGISLATIVE ASSISTAN,1500,2020
,2020 DEMOCRATIC CAUCUS,4,GENERAL EXPENDITURES,PERSONNEL COMPENSATION,DETAIL,   ,   ,   ,HAMILTON WENDY D,2020-10-01,2020-12-31,OUTREACH ASSOCIATE,17499.99,2020
,2020 DEMOCRATIC CAUCUS,4,GENERAL EXPENDITURES,PERSONNEL COMPENSATION,DETAIL,   ,   ,   ,HAMILTON WENDY D,2020-10-01,2020-10-31,OUTREACH ASSOCIATE (OTHER COMPENSATION),8333.32,2020
,2020 DEMOCRATIC CAUCUS,4,GENERAL EXPENDITURES,PERSONNEL COMPENSATION,DETAIL,   ,   ,   ,HARDAWAY MICHAEL D.,2020-10-01,2020-10-05,COMMUNICATIONS DIRECTOR,1736.11,2020
,2020 DEMOCRATIC CAUCUS,4,GENERAL EXPENDITURES,PERSONNEL COMPENSATION,DETAIL,   ,   ,   ,HERNANDEZ ITZEL N,2020-09-01,2020-12-31,CAUCUS ASSISTANT,10999.99,2020
,2020 DEMOCRATIC CAUCUS,4,GENERAL EXPENDITURES,PERSONNEL COMPENSATION,DETAIL,   ,   ,   ,HERNANDEZ ITZEL N,2020-10-01,2020-10-31,CAUCUS ASSISTANT (OTHER COMPENSATION),4000,2020
,2020 DEMOCRATIC CAUCUS,4,GENERAL EXPENDITURES,PERSONNEL COMPENSATION,DETAIL,   ,   ,   ,JACKSON TASIA,2020-10-01,2020-12-31,CHIEF OF STAFF,6375,2020
,2020 DEMOCRATIC CAUCUS,4,GENERAL EXPENDITURES,PERSONNEL COMPENSATION,DETAIL,   ,   ,   ,MORRISON MARIAH A,2020-09-01,2020-12-31,DIGITAL ASSISTANT,12250,2020
,2020 DEMOCRATIC CAUCUS,4,GENERAL EXPENDITURES,PERSONNEL COMPENSATION,DETAIL,   ,   ,   ,MORRISON MARIAH A,2020-10-01,2020-10-31,DIGITAL ASSISTANT (OTHER COMPENSATION),4000,2020
,2020 DEMOCRATIC CAUCUS,4,GENERAL EXPENDITURES,PERSONNEL COMPENSATION,DETAIL,   ,   ,   ,NELSON JACOB A,2020-10-01,2020-12-31,POLICY ADVISOR,9999.99,2020
,2020 DEMOCRATIC CAUCUS,4,GENERAL EXPENDITURES,PERSONNEL COMPENSATION,DETAIL,   ,   ,   ,NELSON JACOB A,2020-10-01,2020-10-31,POLICY ADVISOR (OTHER COMPENSATION),4000,2020
,2020 DEMOCRATIC CAUCUS,4,GENERAL EXPENDITURES,PERSONNEL COMPENSATION,DETAIL,   ,   ,   ,NORIEGA-MAY EMILY J,2020-10-01,2020-12-31,DIRECTOR OF MEMBER SERVICES,27500.01,2020
,2020 DEMOCRATIC CAUCUS,4,GENERAL EXPENDITURES,PERSONNEL COMPENSATION,DETAIL,   ,   ,   ,NORIEGA-MAY EMILY J,2020-11-01,2020-11-30,DIRECTOR OF MEMBER SERVICES (OTHER COMPENSATION),4000,2020
,2020 DEMOCRATIC CAUCUS,4,GENERAL EXPENDITURES,PERSONNEL COMPENSATION,DETAIL,   ,   ,   ,ROBINSON TEJAH R,2020-09-01,2020-12-31,DIGITAL ASSISTANT,9750.01,2020
,2020 DEMOCRATIC CAUCUS,4,GENERAL EXPENDITURES,PERSONNEL COMPENSATION,DETAIL,   ,   ,   ,ROBINSON TEJAH R,2020-10-01,2020-10-31,DIGITAL ASSISTANT (OTHER COMPENSATION),4000,2020
,2020 DEMOCRATIC CAUCUS,4,GENERAL EXPENDITURES,PERSONNEL COMPENSATION,DETAIL,   ,   ,   ,RUDD DIANA,2020-10-01,2020-12-31,VC-DIRECTOR OF MEMBER SERVICES,22500,2020
,2020 DEMOCRATIC CAUCUS,4,GENERAL EXPENDITURES,PERSONNEL COMPENSATION,DETAIL,   ,   ,   ,RUDD DIANA,2020-10-01,2020-10-31,VC-DIRECTOR OF MEMBER SERVICES (OTHER COMPENSATION),8333.32,2020
,2020 DEMOCRATIC CAUCUS,4,GENERAL EXPENDITURES,PERSONNEL COMPENSATION,DETAIL,   ,   ,   ,RUIZ XENIA F,2020-10-01,2020-12-31,OUTREACH DIRECTOR OF THE VICE,22500,2020
,2020 DEMOCRATIC CAUCUS,4,GENERAL EXPENDITURES,PERSONNEL COMPENSATION,DETAIL,   ,   ,   ,RUIZ XENIA F,2020-10-01,2020-10-31,OUTREACH DIRECTOR OF THE VICE (OTHER COMPENSATION),8333.32,2020
,2020 DEMOCRATIC CAUCUS,4,GENERAL EXPENDITURES,PERSONNEL COMPENSATION,DETAIL,   ,   ,   ,SACHSE ANDREW M,2020-10-01,2020-12-31,DEP DIR OF MEMBER SERVICES,19312.5,2020
,2020 DEMOCRATIC CAUCUS,4,GENERAL EXPENDITURES,PERSONNEL COMPENSATION,DETAIL,   ,   ,   ,SACHSE ANDREW M,2020-11-01,2020-11-30,DEP DIR OF MEMBER SERVICES (OTHER COMPENSATION),4000,2020
,2020 DEMOCRATIC CAUCUS,4,GENERAL EXPENDITURES,PERSONNEL COMPENSATION,DETAIL,   ,   ,   ,SCANNELL BROOKE A,2020-10-01,2020-12-31,SHARED EMPLOYEE,41975.01,2020
,2020 DEMOCRATIC CAUCUS,4,GENERAL EXPENDITURES,PERSONNEL COMPENSATION,DETAIL,   ,   ,   ,SCHEUER ALEXANDER J,2020-09-01,2020-12-31,OPERATIONS AND OUTREACH COORDI,13500.01,2020
,2020 DEMOCRATIC CAUCUS,4,GENERAL EXPENDITURES,PERSONNEL COMPENSATION,DETAIL,   ,   ,   ,SCHEUER ALEXANDER J,2020-11-01,2020-11-30,OPERATIONS AND OUTREACH COORDI (OTHER COMPENSATION),4000,2020
,2020 DEMOCRATIC CAUCUS,4,GENERAL EXPENDITURES,PERSONNEL COMPENSATION,DETAIL,   ,   ,   ,STEPHENSON CHRISTIANA E,2020-10-01,2020-12-31,PRESS SECRETARY,25061.25,2020
,2020 DEMOCRATIC CAUCUS,4,GENERAL EXPENDITURES,PERSONNEL COMPENSATION,DETAIL,   ,   ,   ,STEPHENSON CHRISTIANA E,2020-11-01,2020-11-30,PRESS SECRETARY (OTHER COMPENSATION),4000,2020
,2020 DEMOCRATIC CAUCUS,4,GENERAL EXPENDITURES,PERSONNEL COMPENSATION,DETAIL,   ,   ,   ,STICKNEY LAKECIA N,2020-10-01,2020-12-31,POLICY DIRECTOR,30000,2020
,2020 DEMOCRATIC CAUCUS,4,GENERAL EXPENDITURES,PERSONNEL COMPENSATION,DETAIL,   ,   ,   ,STICKNEY LAKECIA N,2020-11-01,2020-11-30,POLICY DIRECTOR (OTHER COMPENSATION),4000,2020
,2020 DEMOCRATIC CAUCUS,4,GENERAL EXPENDITURES,PERSONNEL COMPENSATION,DETAIL,   ,   ,   ,WILLIAMS WAYNE K,2020-10-01,2020-12-31,SENIOR POLICY ADVISOR,24462.51,2020
,2020 DEMOCRATIC CAUCUS,4,GENERAL EXPENDITURES,PERSONNEL COMPENSATION,DETAIL,   ,   ,   ,WILLIAMS WAYNE K,2020-11-01,2020-11-30,SENIOR POLICY ADVISOR (OTHER COMPENSATION),4000,2020
,2020 DEMOCRATIC CAUCUS,4,GENERAL EXPENDITURES,PERSONNEL COMPENSATION,SUBTOTAL,   ,   ,   ,   ,   ,   ,PERSONNEL COMPENSATION TOTALS:,495480.69,2020
,2020 DEMOCRATIC CAUCUS,4,GENERAL EXPENDITURES,TRAVEL,DETAIL,2020-11-04,AP,1350537,CITIBANK GOV CARD SERVICE,2020-08-15,2020-08-15,TAXI/PARKING/TOLLS,28.92,2020
,2020 DEMOCRATIC CAUCUS,4,GENERAL EXPENDITURES,TRAVEL,DETAIL,2020-11-04,AP,1350537,CITIBANK GOV CARD SERVICE,2020-08-17,2020-08-17,TAXI/PARKING/TOLLS,38.11,2020
,2020 DEMOCRATIC CAUCUS,4,GENERAL EXPENDITURES,TRAVEL,DETAIL,2020-11-04,AP,1350537,CITIBANK GOV CARD SERVICE,2020-08-19,2020-08-19,TAXI/PARKING/TOLLS,35.85,2020
,2020 DEMOCRATIC CAUCUS,4,GENERAL EXPENDITURES,TRAVEL,DETAIL,2020-11-04,AP,1350537,CITIBANK GOV CARD SERVICE,2020-08-24,2020-08-24,TAXI/PARKING/TOLLS,17.7,2020
,2020 DEMOCRATIC CAUCUS,4,GENERAL EXPENDITURES,TRAVEL,DETAIL,2020-11-04,AP,1350537,CITIBANK GOV CARD SERVICE,2020-08-31,2020-08-31,TAXI/PARKING/TOLLS,53.78,2020
,2020 DEMOCRATIC CAUCUS,4,GENERAL EXPENDITURES,TRAVEL,DETAIL,2020-11-04,AP,1350537,CITIBANK GOV CARD SERVICE,2020-09-02,2020-09-02,TAXI/PARKING/TOLLS,40.54,2020
,2020 DEMOCRATIC CAUCUS,4,GENERAL EXPENDITURES,TRAVEL,DETAIL,2020-11-04,AP,1350537,CITIBANK GOV CARD SERVICE,2020-09-03,2020-09-03,TAXI/PARKING/TOLLS,34.62,2020
,2020 DEMOCRATIC CAUCUS,4,GENERAL EXPENDITURES,TRAVEL,DETAIL,2020-11-10,AP,1351679,CITIBANK GOV CARD SERVICE,2020-09-02,2020-09-02,TAXI/PARKING/TOLLS,17.29,2020
,2020 DEMOCRATIC CAUCUS,4,GENERAL EXPENDITURES,TRAVEL,DETAIL,2020-11-10,AP,1351679,CITIBANK GOV CARD SERVICE,2020-09-09,2020-09-09,TAXI/PARKING/TOLLS,31.65,2020
,2020 DEMOCRATIC CAUCUS,4,GENERAL EXPENDITURES,TRAVEL,DETAIL,2020-11-10,AP,1351679,CITIBANK GOV CARD SERVICE,2020-09-10,2020-09-10,TAXI/PARKING/TOLLS,48.61,2020
,2020 DEMOCRATIC CAUCUS,4,GENERAL EXPENDITURES,TRAVEL,DETAIL,2020-11-10,AP,1351679,CITIBANK GOV CARD SERVICE,2020-09-11,2020-09-11,TAXI/PARKING/TOLLS,16.77,2020
,2020 DEMOCRATIC CAUCUS,4,GENERAL EXPENDITURES,TRAVEL,DETAIL,2020-11-10,AP,1351679,CITIBANK GOV CARD SERVICE,2020-09-12,2020-09-12,TAXI/PARKING/TOLLS,34.07,2020
,2020 DEMOCRATIC CAUCUS,4,GENERAL EXPENDITURES,TRAVEL,DETAIL,2020-11-10,AP,1351679,CITIBANK GOV CARD SERVICE,2020-09-15,2020-09-15,TAXI/PARKING/TOLLS,112.23,2020
,2020 DEMOCRATIC CAUCUS,4,GENERAL EXPENDITURES,TRAVEL,DETAIL,2020-11-10,AP,1351679,CITIBANK GOV CARD SERVICE,2020-09-18,2020-09-18,TAXI/PARKING/TOLLS,31.97,2020
,2020 DEMOCRATIC CAUCUS,4,GENERAL EXPENDITURES,TRAVEL,DETAIL,2020-11-10,AP,1351679,CITIBANK GOV CARD SERVICE,2020-09-21,2020-09-21,TAXI/PARKING/TOLLS,71.81,2020
,2020 DEMOCRATIC CAUCUS,4,GENERAL EXPENDITURES,TRAVEL,DETAIL,2020-11-13,AP,1352216,CITIBANK GOV CARD SERVICE,2020-09-09,2020-09-09,TAXI/PARKING/TOLLS,15.24,2020
,2020 DEMOCRATIC CAUCUS,4,GENERAL EXPENDITURES,TRAVEL,DETAIL,2020-11-13,AP,1352216,CITIBANK GOV CARD SERVICE,2020-09-22,2020-09-22,TAXI/PARKING/TOLLS,88.55,2020
,2020 DEMOCRATIC CAUCUS,4,GENERAL EXPENDITURES,TRAVEL,DETAIL,2020-11-13,AP,1352216,CITIBANK GOV CARD SERVICE,2020-09-24,2020-09-24,TAXI/PARKING/TOLLS,79.11,2020
,2020 DEMOCRATIC CAUCUS,4,GENERAL EXPENDITURES,TRAVEL,DETAIL,2020-11-13,AP,1352216,CITIBANK GOV CARD SERVICE,2020-09-25,2020-09-25,TAXI/PARKING/TOLLS,71.91,2020
,2020 DEMOCRATIC CAUCUS,4,GENERAL EXPENDITURES,TRAVEL,DETAIL,2020-11-25,AP,1358329,DAWSON EARNESTINE E.,2020-11-13,2020-11-13,MEALS,46.68,2020
,2020 DEMOCRATIC CAUCUS,4,GENERAL EXPENDITURES,TRAVEL,DETAIL,2020-11-25,AP,1358329,DAWSON EARNESTINE E.,2020-11-17,2020-11-19,TAXI/PARKING/TOLLS,113.88,2020
,2020 DEMOCRATIC CAUCUS,4,GENERAL EXPENDITURES,TRAVEL,DETAIL,2020-11-25,AP,1358330,STICKNEY LAKECIA N.,2020-11-16,2020-11-19,TAXI/PARKING/TOLLS,48.5,2020
,2020 DEMOCRATIC CAUCUS,4,GENERAL EXPENDITURES,TRAVEL,DETAIL,2020-11-25,AP,1358332,WIET ELIZABETH R.,2020-11-16,2020-11-19,TAXI/PARKING/TOLLS,59.7,2020
,2020 DEMOCRATIC CAUCUS,4,GENERAL EXPENDITURES,TRAVEL,DETAIL,2020-12-02,AP,1359333,MORRISON MARIAH A.,2020-11-16,2020-11-19,TAXI/PARKING/TOLLS,110.43,2020
,2020 DEMOCRATIC CAUCUS,4,GENERAL EXPENDITURES,TRAVEL,DETAIL,2020-12-02,AP,1359454,CITIBANK GOV CARD SERVICE,2020-09-29,2020-09-29,TAXI/PARKING/TOLLS,45.69,2020
,2020 DEMOCRATIC CAUCUS,4,GENERAL EXPENDITURES,TRAVEL,DETAIL,2020-12-02,AP,1359454,CITIBANK GOV CARD SERVICE,2020-09-30,2020-09-30,TAXI/PARKING/TOLLS,79.18,2020
,2020 DEMOCRATIC CAUCUS,4,GENERAL EXPENDITURES,TRAVEL,DETAIL,2020-12-02,AP,1359454,CITIBANK GOV CARD SERVICE,2020-10-01,2020-10-01,TAXI/PARKING/TOLLS,30.93,2020
,2020 DEMOCRATIC CAUCUS,4,GENERAL EXPENDITURES,TRAVEL,DETAIL,2020-12-02,AP,1359454,CITIBANK GOV CARD SERVICE,2020-10-02,2020-10-02,TAXI/PARKING/TOLLS,42.53,2020
,2020 DEMOCRATIC CAUCUS,4,GENERAL EXPENDITURES,TRAVEL,DETAIL,2020-12-02,AP,1359454,CITIBANK GOV CARD SERVICE,2020-10-03,2020-10-03,TAXI/PARKING/TOLLS,32.62,2020
,2020 DEMOCRATIC CAUCUS,4,GENERAL EXPENDITURES,TRAVEL,DETAIL,2020-12-02,AP,1359454,CITIBANK GOV CARD SERVICE,2020-10-06,2020-10-06,TAXI/PARKING/TOLLS,27.58,2020
,2020 DEMOCRATIC CAUCUS,4,GENERAL EXPENDITURES,TRAVEL,DETAIL,2020-12-02,AP,1359454,CITIBANK GOV CARD SERVICE,2020-10-13,2020-10-13,TAXI/PARKING/TOLLS,16.2,2020
,2020 DEMOCRATIC CAUCUS,4,GENERAL EXPENDITURES,TRAVEL,DETAIL,2020-12-02,AP,1359454,CITIBANK GOV CARD SERVICE,2020-10-16,2020-10-16,TAXI/PARKING/TOLLS,53.57,2020
,2020 DEMOCRATIC CAUCUS,4,GENERAL EXPENDITURES,TRAVEL,DETAIL,2020-12-03,AP,1359766,CITIBANK GOV CARD SERVICE,2020-11-05,2020-11-05,TAXI/PARKING/TOLLS,41.02,2020
,2020 DEMOCRATIC CAUCUS,4,GENERAL EXPENDITURES,TRAVEL,DETAIL,2020-12-03,AP,1359766,CITIBANK GOV CARD SERVICE,2020-11-06,2020-11-06,TAXI/PARKING/TOLLS,125.49,2020
,2020 DEMOCRATIC CAUCUS,4,GENERAL EXPENDITURES,TRAVEL,DETAIL,2020-12-03,AP,1359766,CITIBANK GOV CARD SERVICE,2020-11-11,2020-11-11,TAXI/PARKING/TOLLS,100.74,2020
,2020 DEMOCRATIC CAUCUS,4,GENERAL EXPENDITURES,TRAVEL,DETAIL,2020-12-03,AP,1359766,CITIBANK GOV CARD SERVICE,2020-11-12,2020-11-12,TAXI/PARKING/TOLLS,65.62,2020
,2020 DEMOCRATIC CAUCUS,4,GENERAL EXPENDITURES,TRAVEL,DETAIL,2020-12-03,AP,1359774,CITIBANK GOV CARD SERVICE,2020-11-12,2020-11-12,TAXI/PARKING/TOLLS,35.14,2020
,2020 DEMOCRATIC CAUCUS,4,GENERAL EXPENDITURES,TRAVEL,DETAIL,2020-12-03,AP,1359774,CITIBANK GOV CARD SERVICE,2020-11-13,2020-11-13,TAXI/PARKING/TOLLS,61.45,2020
,2020 DEMOCRATIC CAUCUS,4,GENERAL EXPENDITURES,TRAVEL,DETAIL,2020-12-03,AP,1359774,CITIBANK GOV CARD SERVICE,2020-11-14,2020-11-14,TAXI/PARKING/TOLLS,93.85,2020
,2020 DEMOCRATIC CAUCUS,4,GENERAL EXPENDITURES,TRAVEL,DETAIL,2020-12-03,AP,1359774,CITIBANK GOV CARD SERVICE,2020-11-15,2020-11-15,TAXI/PARKING/TOLLS,42.59,2020
,2020 DEMOCRATIC CAUCUS,4,GENERAL EXPENDITURES,TRAVEL,DETAIL,2020-12-03,AP,1359774,CITIBANK GOV CARD SERVICE,2020-11-16,2020-11-16,TAXI/PARKING/TOLLS,5.75,2020
,2020 DEMOCRATIC CAUCUS,4,GENERAL EXPENDITURES,TRAVEL,DETAIL,2020-12-03,AP,1359777,CITIBANK GOV CARD SERVICE,2020-11-16,2020-11-16,TAXI/PARKING/TOLLS,46.62,2020
,2020 DEMOCRATIC CAUCUS,4,GENERAL EXPENDITURES,TRAVEL,DETAIL,2020-12-03,AP,1359777,CITIBANK GOV CARD SERVICE,2020-11-17,2020-11-17,TAXI/PARKING/TOLLS,54.69,2020
,2020 DEMOCRATIC CAUCUS,4,GENERAL EXPENDITURES,TRAVEL,DETAIL,2020-12-03,AP,1359777,CITIBANK GOV CARD SERVICE,2020-11-18,2020-11-18,TAXI/PARKING/TOLLS,32.04,2020
,2020 DEMOCRATIC CAUCUS,4,GENERAL EXPENDITURES,TRAVEL,DETAIL,2020-12-04,AP,1359714,CITIBANK GOV CARD SERVICE,2020-10-16,2020-10-16,TAXI/PARKING/TOLLS,27.46,2020
,2020 DEMOCRATIC CAUCUS,4,GENERAL EXPENDITURES,TRAVEL,DETAIL,2020-12-04,AP,1359714,CITIBANK GOV CARD SERVICE,2020-10-19,2020-10-19,TAXI/PARKING/TOLLS,30.27,2020
,2020 DEMOCRATIC CAUCUS,4,GENERAL EXPENDITURES,TRAVEL,DETAIL,2020-12-04,AP,1359714,CITIBANK GOV CARD SERVICE,2020-10-20,2020-10-20,TAXI/PARKING/TOLLS,60.07,2020
,2020 DEMOCRATIC CAUCUS,4,GENERAL EXPENDITURES,TRAVEL,DETAIL,2020-12-04,AP,1359714,CITIBANK GOV CARD SERVICE,2020-10-21,2020-10-21,TAXI/PARKING/TOLLS,60.99,2020
,2020 DEMOCRATIC CAUCUS,4,GENERAL EXPENDITURES,TRAVEL,DETAIL,2020-12-04,AP,1359714,CITIBANK GOV CARD SERVICE,2020-10-27,2020-10-27,TAXI/PARKING/TOLLS,30.52,2020
,2020 DEMOCRATIC CAUCUS,4,GENERAL EXPENDITURES,TRAVEL,DETAIL,2020-12-04,AP,1359714,CITIBANK GOV CARD SERVICE,2020-10-28,2020-10-28,TAXI/PARKING/TOLLS,31.82,2020
,2020 DEMOCRATIC CAUCUS,4,GENERAL EXPENDITURES,TRAVEL,DETAIL,2020-12-04,AP,1359714,CITIBANK GOV CARD SERVICE,2020-11-11,2020-11-11,TAXI/PARKING/TOLLS,5.75,2020
,2020 DEMOCRATIC CAUCUS,4,GENERAL EXPENDITURES,TRAVEL,DETAIL,2020-12-14,AP,1363187,DAWSON EARNESTINE E.,2020-11-13,2020-11-13,MEALS,-46.68,2020
,2020 DEMOCRATIC CAUCUS,4,GENERAL EXPENDITURES,TRAVEL,DETAIL,2020-12-14,AP,1363187,DAWSON EARNESTINE E.,2020-11-16,2020-11-19,TAXI/PARKING/TOLLS,113.88,2020
,2020 DEMOCRATIC CAUCUS,4,GENERAL EXPENDITURES,TRAVEL,DETAIL,2020-12-14,AP,1363187,DAWSON EARNESTINE E.,2020-11-17,2020-11-19,TAXI/PARKING/TOLLS,-113.88,2020
,2020 DEMOCRATIC CAUCUS,4,GENERAL EXPENDITURES,TRAVEL,DETAIL,2020-12-17,AP,1363825,CITIBANK GOV CARD SERVICE,2020-11-17,2020-11-17,TAXI/PARKING/TOLLS,47.2,2020
,2020 DEMOCRATIC CAUCUS,4,GENERAL EXPENDITURES,TRAVEL,DETAIL,2020-12-21,AP,1367676,CITIBANK GOV CARD SERVICE,2020-09-30,2020-09-30,TAXI/PARKING/TOLLS,18.9,2020
,2020 DEMOCRATIC CAUCUS,4,GENERAL EXPENDITURES,TRAVEL,DETAIL,2020-12-21,AP,1367676,CITIBANK GOV CARD SERVICE,2020-11-17,2020-11-17,TAXI/PARKING/TOLLS,41.8,2020
,2020 DEMOCRATIC CAUCUS,4,GENERAL EXPENDITURES,TRAVEL,DETAIL,2020-12-21,AP,1367676,CITIBANK GOV CARD SERVICE,2020-11-18,2020-11-18,TAXI/PARKING/TOLLS,160.81,2020
,2020 DEMOCRATIC CAUCUS,4,GENERAL EXPENDITURES,TRAVEL,DETAIL,2020-12-21,AP,1367676,CITIBANK GOV CARD SERVICE,2020-11-19,2020-11-19,TAXI/PARKING/TOLLS,61.59,2020
,2020 DEMOCRATIC CAUCUS,4,GENERAL EXPENDITURES,TRAVEL,DETAIL,2020-12-21,AP,1367676,CITIBANK GOV CARD SERVICE,2020-11-20,2020-11-20,TAXI/PARKING/TOLLS,12.53,2020
,2020 DEMOCRATIC CAUCUS,4,GENERAL EXPENDITURES,TRAVEL,DETAIL,2020-12-21,AP,1367676,CITIBANK GOV CARD SERVICE,2020-11-25,2020-11-25,TAXI/PARKING/TOLLS,39.39,2020
,2020 DEMOCRATIC CAUCUS,4,GENERAL EXPENDITURES,TRAVEL,SUBTOTAL,   ,   ,   ,   ,   ,   ,TRAVEL TOTALS:,2863.64,2020
,2020 DEMOCRATIC CAUCUS,4,GENERAL EXPENDITURES,RENT  COMMUNICATION  UTILITIES,DETAIL,2020-10-06,AP,1339220,CITI PCARD-MOREDIRECT DBA CONNECTION,2020-08-19,2020-08-19,POSTAGE / COURIER / BOX RENTAL,40,2020
,2020 DEMOCRATIC CAUCUS,4,GENERAL EXPENDITURES,RENT  COMMUNICATION  UTILITIES,DETAIL,2020-10-06,AP,1339220,CITI PCARD-USPS PO 1050091422,2020-07-07,2020-07-07,POSTAGE / COURIER / BOX RENTAL,30.24,2020
,2020 DEMOCRATIC CAUCUS,4,GENERAL EXPENDITURES,RENT  COMMUNICATION  UTILITIES,DETAIL,2020-10-08,AP,1341349,LEIDOS DIGITAL SOLUTIONS INC,2020-08-12,2020-08-12,TELECOMSRV/EQ/TOLL CHARGE,1430,2020
,2020 DEMOCRATIC CAUCUS,4,GENERAL EXPENDITURES,RENT  COMMUNICATION  UTILITIES,DETAIL,2020-10-08,AP,1341354,LEIDOS DIGITAL SOLUTIONS INC,2020-08-17,2020-08-17,TELECOMSRV/EQ/TOLL CHARGE,715,2020
,2020 DEMOCRATIC CAUCUS,4,GENERAL EXPENDITURES,RENT  COMMUNICATION  UTILITIES,DETAIL,2020-10-08,AP,1341360,LEIDOS DIGITAL SOLUTIONS INC,2020-08-31,2020-08-31,TELECOMSRV/EQ/TOLL CHARGE,715,2020
,2020 DEMOCRATIC CAUCUS,4,GENERAL EXPENDITURES,RENT  COMMUNICATION  UTILITIES,DETAIL,2020-10-08,AP,1341365,LEIDOS DIGITAL SOLUTIONS INC,2020-09-22,2020-09-24,TELECOMSRV/EQ/TOLL CHARGE,1870,2020
,2020 DEMOCRATIC CAUCUS,4,GENERAL EXPENDITURES,RENT  COMMUNICATION  UTILITIES,DETAIL,2020-10-09,AP,1341369,LEIDOS DIGITAL SOLUTIONS INC,2020-05-14,2020-05-14,TELECOMSRV/EQ/TOLL CHARGE,1430,2020
,2020 DEMOCRATIC CAUCUS,4,GENERAL EXPENDITURES,RENT  COMMUNICATION  UTILITIES,DETAIL,2020-10-27,GL,EMS0101782, ,2020-09-01,2020-09-30,DC TELECOM EQUIP (TRANSFER),60,2020
,2020 DEMOCRATIC CAUCUS,4,GENERAL EXPENDITURES,RENT  COMMUNICATION  UTILITIES,DETAIL,2020-10-27,GL,EMS0101782, ,2020-09-01,2020-09-30,DC TELECOM SERV (TRANSFER),258,2020
,2020 DEMOCRATIC CAUCUS,4,GENERAL EXPENDITURES,RENT  COMMUNICATION  UTILITIES,DETAIL,2020-10-27,GL,EMS0101782, ,2020-09-01,2020-09-30,DC TELECOM TOLLS (TRANSFER),2080.27,2020
,2020 DEMOCRATIC CAUCUS,4,GENERAL EXPENDITURES,RENT  COMMUNICATION  UTILITIES,DETAIL,2020-11-13,AP,1352176,LEIDOS DIGITAL SOLUTIONS INC,2020-09-09,2020-09-15,TELECOMSRV/EQ/TOLL CHARGE,4615,2020
,2020 DEMOCRATIC CAUCUS,4,GENERAL EXPENDITURES,RENT  COMMUNICATION  UTILITIES,DETAIL,2020-11-13,AP,1352181,LEIDOS DIGITAL SOLUTIONS INC,2020-09-30,2020-09-30,TELECOMSRV/EQ/TOLL CHARGE,1050,2020
,2020 DEMOCRATIC CAUCUS,4,GENERAL EXPENDITURES,RENT  COMMUNICATION  UTILITIES,DETAIL,2020-11-13,AP,1352187,LEIDOS DIGITAL SOLUTIONS INC,2020-10-19,2020-10-19,TELECOMSRV/EQ/TOLL CHARGE,785,2020
,2020 DEMOCRATIC CAUCUS,4,GENERAL EXPENDITURES,RENT  COMMUNICATION  UTILITIES,DETAIL,2020-11-13,AP,1352189,LEIDOS DIGITAL SOLUTIONS INC,2020-11-05,2020-11-05,POSTAGE / COURIER / BOX RENTAL,20,2020
,2020 DEMOCRATIC CAUCUS,4,GENERAL EXPENDITURES,RENT  COMMUNICATION  UTILITIES,DETAIL,2020-11-13,AP,1352190,LEIDOS DIGITAL SOLUTIONS INC,2020-11-05,2020-11-05,TELECOMSRV/EQ/TOLL CHARGE,1500,2020
,2020 DEMOCRATIC CAUCUS,4,GENERAL EXPENDITURES,RENT  COMMUNICATION  UTILITIES,DETAIL,2020-11-13,AP,1352216,CITIBANK GOV CARD SERVICE,2020-09-25,2020-09-25,POSTAGE / COURIER / BOX RENTAL,247,2020
,2020 DEMOCRATIC CAUCUS,4,GENERAL EXPENDITURES,RENT  COMMUNICATION  UTILITIES,DETAIL,2020-11-13,AP,1352216,CITIBANK GOV CARD SERVICE,2020-09-30,2020-09-30,POSTAGE / COURIER / BOX RENTAL,133.53,2020
,2020 DEMOCRATIC CAUCUS,4,GENERAL EXPENDITURES,RENT  COMMUNICATION  UTILITIES,DETAIL,2020-11-16,AP,1352184,LEIDOS DIGITAL SOLUTIONS INC,2020-10-06,2020-10-06,TELECOMSRV/EQ/TOLL CHARGE,785,2020
,2020 DEMOCRATIC CAUCUS,4,GENERAL EXPENDITURES,RENT  COMMUNICATION  UTILITIES,DETAIL,2020-11-20,GL,EMS0102354, ,2020-10-01,2020-10-31,DC TELECOM EQUIP (TRANSFER),60,2020
,2020 DEMOCRATIC CAUCUS,4,GENERAL EXPENDITURES,RENT  COMMUNICATION  UTILITIES,DETAIL,2020-11-20,GL,EMS0102354, ,2020-10-01,2020-10-31,DC TELECOM SERV (TRANSFER),258,2020
,2020 DEMOCRATIC CAUCUS,4,GENERAL EXPENDITURES,RENT  COMMUNICATION  UTILITIES,DETAIL,2020-11-20,GL,EMS0102354, ,2020-10-01,2020-10-31,DC TELECOM TOLLS (TRANSFER),5099.51,2020
,2020 DEMOCRATIC CAUCUS,4,GENERAL EXPENDITURES,RENT  COMMUNICATION  UTILITIES,DETAIL,2020-11-25,AP,1358330,STICKNEY LAKECIA N.,2020-11-16,2020-11-16,POSTAGE / COURIER / BOX RENTAL,116.23,2020
,2020 DEMOCRATIC CAUCUS,4,GENERAL EXPENDITURES,RENT  COMMUNICATION  UTILITIES,DETAIL,2020-11-25,AP,1358333,LEIDOS DIGITAL SOLUTIONS INC,2020-10-13,2020-10-13,TELECOMSRV/EQ/TOLL CHARGE,785,2020
,2020 DEMOCRATIC CAUCUS,4,GENERAL EXPENDITURES,RENT  COMMUNICATION  UTILITIES,DETAIL,2020-12-15,AP,1362909,BRAGIN GIDEON,2020-11-17,2020-11-17,POSTAGE / COURIER / BOX RENTAL,180.14,2020
,2020 DEMOCRATIC CAUCUS,4,GENERAL EXPENDITURES,RENT  COMMUNICATION  UTILITIES,DETAIL,2020-12-15,AP,1363285,CITI PCARD-CHAUCERS BOOKS70400015,2020-10-27,2020-10-27,POSTAGE / COURIER / BOX RENTAL,986.72,2020
,2020 DEMOCRATIC CAUCUS,4,GENERAL EXPENDITURES,RENT  COMMUNICATION  UTILITIES,DETAIL,2020-12-15,AP,1363285,CITI PCARD-THE UPS STORE 2092,2020-10-24,2020-10-24,POSTAGE / COURIER / BOX RENTAL,215.15,2020
,2020 DEMOCRATIC CAUCUS,4,GENERAL EXPENDITURES,RENT  COMMUNICATION  UTILITIES,DETAIL,2020-12-15,AP,1363285,CITI PCARD-USPS PO 1049440206,2020-10-08,2020-10-08,POSTAGE / COURIER / BOX RENTAL,7.65,2020
,2020 DEMOCRATIC CAUCUS,4,GENERAL EXPENDITURES,RENT  COMMUNICATION  UTILITIES,DETAIL,2020-12-17,AP,1363674,CITI PCARD-FEDEX 398919914457,2020-11-14,2020-11-14,POSTAGE / COURIER / BOX RENTAL,145.94,2020
,2020 DEMOCRATIC CAUCUS,4,GENERAL EXPENDITURES,RENT  COMMUNICATION  UTILITIES,DETAIL,2020-12-17,AP,1363674,CITI PCARD-FEDEX 398920005440,2020-11-14,2020-11-14,POSTAGE / COURIER / BOX RENTAL,141.12,2020
,2020 DEMOCRATIC CAUCUS,4,GENERAL EXPENDITURES,RENT  COMMUNICATION  UTILITIES,DETAIL,2020-12-17,AP,1363674,CITI PCARD-FEDEX 398920034870,2020-11-14,2020-11-14,POSTAGE / COURIER / BOX RENTAL,120.16,2020
,2020 DEMOCRATIC CAUCUS,4,GENERAL EXPENDITURES,RENT  COMMUNICATION  UTILITIES,DETAIL,2020-12-17,AP,1363674,CITI PCARD-FEDEX 398920065089,2020-11-14,2020-11-14,POSTAGE / COURIER / BOX RENTAL,145.94,2020
,2020 DEMOCRATIC CAUCUS,4,GENERAL EXPENDITURES,RENT  COMMUNICATION  UTILITIES,DETAIL,2020-12-17,AP,1363674,CITI PCARD-FEDEX 398920093424,2020-11-14,2020-11-14,POSTAGE / COURIER / BOX RENTAL,85.8,2020
,2020 DEMOCRATIC CAUCUS,4,GENERAL EXPENDITURES,RENT  COMMUNICATION  UTILITIES,DETAIL,2020-12-17,AP,1363674,CITI PCARD-FEDEX 398920121050,2020-11-14,2020-11-14,POSTAGE / COURIER / BOX RENTAL,101.27,2020
,2020 DEMOCRATIC CAUCUS,4,GENERAL EXPENDITURES,RENT  COMMUNICATION  UTILITIES,DETAIL,2020-12-17,AP,1363674,CITI PCARD-FEDEX 398920143525,2020-11-14,2020-11-14,POSTAGE / COURIER / BOX RENTAL,126.94,2020
,2020 DEMOCRATIC CAUCUS,4,GENERAL EXPENDITURES,RENT  COMMUNICATION  UTILITIES,DETAIL,2020-12-17,AP,1363674,CITI PCARD-FEDEX 398920165953,2020-11-14,2020-11-14,POSTAGE / COURIER / BOX RENTAL,126.94,2020
,2020 DEMOCRATIC CAUCUS,4,GENERAL EXPENDITURES,RENT  COMMUNICATION  UTILITIES,DETAIL,2020-12-17,AP,1363674,CITI PCARD-FEDEX 398920228105,2020-11-14,2020-11-14,POSTAGE / COURIER / BOX RENTAL,101.27,2020
,2020 DEMOCRATIC CAUCUS,4,GENERAL EXPENDITURES,RENT  COMMUNICATION  UTILITIES,DETAIL,2020-12-22,AP,1363702,CITI PCARD-SQ  BAY-MADE,2020-11-20,2020-11-20,POSTAGE / COURIER / BOX RENTAL,15,2020
,2020 DEMOCRATIC CAUCUS,4,GENERAL EXPENDITURES,RENT  COMMUNICATION  UTILITIES,DETAIL,2020-12-23,AP,1367707,CITI PCARD-FEDEX 398640075820,2020-11-07,2020-11-07,POSTAGE / COURIER / BOX RENTAL,13.56,2020
,2020 DEMOCRATIC CAUCUS,4,GENERAL EXPENDITURES,RENT  COMMUNICATION  UTILITIES,DETAIL,2020-12-23,AP,1367707,CITI PCARD-FEDEX 398657485600,2020-11-07,2020-11-07,POSTAGE / COURIER / BOX RENTAL,74.66,2020
,2020 DEMOCRATIC CAUCUS,4,GENERAL EXPENDITURES,RENT  COMMUNICATION  UTILITIES,DETAIL,2020-12-23,AP,1367707,CITI PCARD-FEDEX 398930252166,2020-11-15,2020-11-15,POSTAGE / COURIER / BOX RENTAL,140.21,2020
,2020 DEMOCRATIC CAUCUS,4,GENERAL EXPENDITURES,RENT  COMMUNICATION  UTILITIES,DETAIL,2020-12-23,AP,1367707,CITI PCARD-FEDEX 398930327374,2020-11-15,2020-11-15,POSTAGE / COURIER / BOX RENTAL,89.96,2020
,2020 DEMOCRATIC CAUCUS,4,GENERAL EXPENDITURES,RENT  COMMUNICATION  UTILITIES,DETAIL,2020-12-23,AP,1367707,CITI PCARD-FEDEX 398930365651,2020-11-15,2020-11-15,POSTAGE / COURIER / BOX RENTAL,134.63,2020
,2020 DEMOCRATIC CAUCUS,4,GENERAL EXPENDITURES,RENT  COMMUNICATION  UTILITIES,DETAIL,2020-12-23,AP,1367707,CITI PCARD-FEDEX 398930398789,2020-11-15,2020-11-15,POSTAGE / COURIER / BOX RENTAL,134.63,2020
,2020 DEMOCRATIC CAUCUS,4,GENERAL EXPENDITURES,RENT  COMMUNICATION  UTILITIES,DETAIL,2020-12-23,AP,1367707,CITI PCARD-FEDEX 940533761526,2020-11-07,2020-11-07,POSTAGE / COURIER / BOX RENTAL,8.48,2020
,2020 DEMOCRATIC CAUCUS,4,GENERAL EXPENDITURES,RENT  COMMUNICATION  UTILITIES,DETAIL,2020-12-23,AP,1367707,CITI PCARD-FEDEX 940536523690,2020-11-15,2020-11-15,POSTAGE / COURIER / BOX RENTAL,42.36,2020
,2020 DEMOCRATIC CAUCUS,4,GENERAL EXPENDITURES,RENT  COMMUNICATION  UTILITIES,DETAIL,2020-12-23,AP,1367707,CITI PCARD-THE UPS STORE 6199,2020-11-14,2020-11-14,POSTAGE / COURIER / BOX RENTAL,162.88,2020
,2020 DEMOCRATIC CAUCUS,4,GENERAL EXPENDITURES,RENT  COMMUNICATION  UTILITIES,DETAIL,2020-12-28,GL,EMS0103149, ,2020-11-01,2020-11-30,DC TELECOM EQUIP (TRANSFER),60,2020
,2020 DEMOCRATIC CAUCUS,4,GENERAL EXPENDITURES,RENT  COMMUNICATION  UTILITIES,DETAIL,2020-12-28,GL,EMS0103149, ,2020-11-01,2020-11-30,DC TELECOM SERV (TRANSFER),258,2020
,2020 DEMOCRATIC CAUCUS,4,GENERAL EXPENDITURES,RENT  COMMUNICATION  UTILITIES,DETAIL,2020-12-28,GL,EMS0103149, ,2020-11-01,2020-11-30,DC TELECOM TOLLS (TRANSFER),5866.97,2020
,2020 DEMOCRATIC CAUCUS,4,GENERAL EXPENDITURES,RENT  COMMUNICATION  UTILITIES,DETAIL,2020-12-30,GL,MED0103249, ,2020-12-09,2020-12-15,HIR GRAPHICS (TRANSFER),38,2020
,2020 DEMOCRATIC CAUCUS,4,GENERAL EXPENDITURES,RENT  COMMUNICATION  UTILITIES,DETAIL,2020-12-31,AP,1370215,HUSTLE INC,2020-11-02,2021-01-01,TELECOMSRV/EQ/TOLL CHARGE,5000,2020
,2020 DEMOCRATIC CAUCUS,4,GENERAL EXPENDITURES,RENT  COMMUNICATION  UTILITIES,SUBTOTAL,   ,   ,   ,   ,   ,   ,RENT  COMMUNICATION  UTILITIES TOTALS:,38607.16,2020
,2020 DEMOCRATIC CAUCUS,4,GENERAL EXPENDITURES,PRINTING AND REPRODUCTION,DETAIL,2020-11-10,AP,1350191,CITI PCARD-ACCURATE WORD LLC,2020-09-09,2020-09-09,PRINTING & REPRODUCTION,129.9,2020
,2020 DEMOCRATIC CAUCUS,4,GENERAL EXPENDITURES,PRINTING AND REPRODUCTION,SUBTOTAL,   ,   ,   ,   ,   ,   ,PRINTING AND REPRODUCTION TOTALS:,129.9,2020
,2020 DEMOCRATIC CAUCUS,4,GENERAL EXPENDITURES,OTHER SERVICES,DETAIL,2020-10-06,AP,1339220,CITI PCARD-DRYY GARMENT CARE,2020-07-22,2020-07-22,LAUNDRY SERVICES,320,2020
,2020 DEMOCRATIC CAUCUS,4,GENERAL EXPENDITURES,OTHER SERVICES,DETAIL,2020-10-06,AP,1339220,CITI PCARD-TRINT,2020-08-16,2020-09-16,TECHNOLOGY SERVICE CONTRACTS,40,2020
,2020 DEMOCRATIC CAUCUS,4,GENERAL EXPENDITURES,OTHER SERVICES,DETAIL,2020-10-14,AP,1341401,CREATIVENGINE,2020-08-01,2020-08-31,WEB DEV HST EMAIL & RLTD SERV,300,2020
,2020 DEMOCRATIC CAUCUS,4,GENERAL EXPENDITURES,OTHER SERVICES,DETAIL,2020-10-14,AP,1341402,CREATIVENGINE,2020-07-01,2020-07-31,WEB DEV HST EMAIL & RLTD SERV,300,2020
,2020 DEMOCRATIC CAUCUS,4,GENERAL EXPENDITURES,OTHER SERVICES,DETAIL,2020-10-14,AP,1341404,CREATIVENGINE,2020-09-01,2020-09-30,WEB DEV HST EMAIL & RLTD SERV,300,2020
,2020 DEMOCRATIC CAUCUS,4,GENERAL EXPENDITURES,OTHER SERVICES,DETAIL,2020-10-16,AP,1344320,LEIDOS DIGITAL SOLUTIONS INC,2020-10-01,2020-10-31,TECHNOLOGY SERVICE CONTRACTS,3587,2020
,2020 DEMOCRATIC CAUCUS,4,GENERAL EXPENDITURES,OTHER SERVICES,DETAIL,2020-11-16,AP,1352533,CREATIVENGINE,2020-10-01,2020-10-31,WEB DEV HST EMAIL & RLTD SERV,300,2020
,2020 DEMOCRATIC CAUCUS,4,GENERAL EXPENDITURES,OTHER SERVICES,DETAIL,2020-11-16,AP,1354047,LEIDOS DIGITAL SOLUTIONS INC,2020-11-01,2020-11-30,TECHNOLOGY SERVICE CONTRACTS,3587,2020
,2020 DEMOCRATIC CAUCUS,4,GENERAL EXPENDITURES,OTHER SERVICES,DETAIL,2020-11-17,AP,1352411,MARKUP LLC,2020-11-12,2021-01-02,TECHNOLOGY SERVICE CONTRACTS,30000,2020
,2020 DEMOCRATIC CAUCUS,4,GENERAL EXPENDITURES,OTHER SERVICES,DETAIL,2020-12-03,AP,1359330,CREATIVENGINE,2020-11-01,2020-11-30,WEB DEV HST EMAIL & RLTD SERV,300,2020
,2020 DEMOCRATIC CAUCUS,4,GENERAL EXPENDITURES,OTHER SERVICES,DETAIL,2020-12-04,AP,1359327,LEIDOS DIGITAL SOLUTIONS INC,2020-11-29,2020-11-30,TECHNOLOGY SERVICE CONTRACTS,10600,2020
,2020 DEMOCRATIC CAUCUS,4,GENERAL EXPENDITURES,OTHER SERVICES,DETAIL,2020-12-16,AP,1364978,LEIDOS DIGITAL SOLUTIONS INC,2020-12-01,2020-12-31,TECHNOLOGY SERVICE CONTRACTS,3587,2020
,2020 DEMOCRATIC CAUCUS,4,GENERAL EXPENDITURES,OTHER SERVICES,DETAIL,2020-12-18,AP,1363632,MARKUP LLC,2020-11-30,2020-12-03,TECHNOLOGY SERVICE CONTRACTS,4900,2020
,2020 DEMOCRATIC CAUCUS,4,GENERAL EXPENDITURES,OTHER SERVICES,DETAIL,2020-12-21,AP,1363641,MARKUP LLC,2020-11-30,2020-12-03,TECHNOLOGY SERVICE CONTRACTS,5000,2020
,2020 DEMOCRATIC CAUCUS,4,GENERAL EXPENDITURES,OTHER SERVICES,SUBTOTAL,   ,   ,   ,   ,   ,   ,OTHER SERVICES TOTALS:,63121,2020
,2020 DEMOCRATIC CAUCUS,4,GENERAL EXPENDITURES,SUPPLIES AND MATERIALS,DETAIL,2020-10-06,AP,1339220,CITI PCARD-18TH STREET FRAMING,2020-08-10,2020-08-10,OFFICE SUPPLIES (OUTSIDE),136.98,2020
,2020 DEMOCRATIC CAUCUS,4,GENERAL EXPENDITURES,SUPPLIES AND MATERIALS,DETAIL,2020-10-06,AP,1339220,CITI PCARD-APPLE.COM/US,2020-08-11,2020-08-11,OFFICE SUPPLIES (OUTSIDE),503.5,2020
,2020 DEMOCRATIC CAUCUS,4,GENERAL EXPENDITURES,SUPPLIES AND MATERIALS,DETAIL,2020-10-06,AP,1339220,CITI PCARD-BOOKING AGENT INFO,2020-08-01,2020-12-31,PUBLICATIONS/REFERENCE MAT'L,180,2020
,2020 DEMOCRATIC CAUCUS,4,GENERAL EXPENDITURES,SUPPLIES AND MATERIALS,DETAIL,2020-10-06,AP,1339220,CITI PCARD-D J WALL-ST-JOURNAL,2020-07-28,2020-08-28,PUBLICATIONS/REFERENCE MAT'L,22.78,2020
,2020 DEMOCRATIC CAUCUS,4,GENERAL EXPENDITURES,SUPPLIES AND MATERIALS,DETAIL,2020-10-06,AP,1339220,CITI PCARD-D J WALL-ST-JOURNAL,2020-08-06,2020-09-06,PUBLICATIONS/REFERENCE MAT'L,45.57,2020
,2020 DEMOCRATIC CAUCUS,4,GENERAL EXPENDITURES,SUPPLIES AND MATERIALS,DETAIL,2020-10-06,AP,1339220,CITI PCARD-ENVATO,2020-08-15,2020-09-15,PUBLICATIONS/REFERENCE MAT'L,33,2020
,2020 DEMOCRATIC CAUCUS,4,GENERAL EXPENDITURES,SUPPLIES AND MATERIALS,DETAIL,2020-10-06,AP,1339220,CITI PCARD-MICHAELS STORES 1298,2020-08-10,2020-08-10,OFFICE SUPPLIES (OUTSIDE),24.42,2020
,2020 DEMOCRATIC CAUCUS,4,GENERAL EXPENDITURES,SUPPLIES AND MATERIALS,DETAIL,2020-10-06,AP,1339220,CITI PCARD-STREAMYARD.COM,2020-08-15,2020-09-15,SOFTWARE  LESS THAN  $500,49,2020
,2020 DEMOCRATIC CAUCUS,4,GENERAL EXPENDITURES,SUPPLIES AND MATERIALS,DETAIL,2020-10-06,AP,1339711,CITI PCARD-BOOKSHOP.ORG,2020-08-12,2020-08-12,PUBLICATIONS/REFERENCE MAT'L,869.07,2020
,2020 DEMOCRATIC CAUCUS,4,GENERAL EXPENDITURES,SUPPLIES AND MATERIALS,DETAIL,2020-10-06,AP,1339711,CITI PCARD-DROPBOX 28YF2PP6K4PY,2020-08-24,2020-09-24,SOFTWARE  LESS THAN  $500,12.71,2020
,2020 DEMOCRATIC CAUCUS,4,GENERAL EXPENDITURES,SUPPLIES AND MATERIALS,DETAIL,2020-10-30,AP,1348838,READYREFRESH BY NESTLE,2020-09-30,2020-09-30,WATER,34.99,2020
,2020 DEMOCRATIC CAUCUS,4,GENERAL EXPENDITURES,SUPPLIES AND MATERIALS,DETAIL,2020-10-30,GL,RMS0101913, ,2020-10-01,2020-10-31,OFFICE SUPPLY (TRANSFER),3.51,2020
,2020 DEMOCRATIC CAUCUS,4,GENERAL EXPENDITURES,SUPPLIES AND MATERIALS,DETAIL,2020-11-05,AP,1350230,CITI PCARD-BEST BUY MHT  00004937,2020-09-24,2020-09-24,OFFICE SUPPLIES (OUTSIDE),164.93,2020
,2020 DEMOCRATIC CAUCUS,4,GENERAL EXPENDITURES,SUPPLIES AND MATERIALS,DETAIL,2020-11-05,AP,1350230,CITI PCARD-D J WALL-ST-JOURNAL,2020-08-28,2020-09-28,PUBLICATIONS/REFERENCE MAT'L,45.57,2020
,2020 DEMOCRATIC CAUCUS,4,GENERAL EXPENDITURES,SUPPLIES AND MATERIALS,DETAIL,2020-11-05,AP,1350230,CITI PCARD-DROPBOX 2YGLWWJY87TD,2020-09-24,2020-10-24,SOFTWARE  LESS THAN  $500,12.71,2020
,2020 DEMOCRATIC CAUCUS,4,GENERAL EXPENDITURES,SUPPLIES AND MATERIALS,DETAIL,2020-11-05,AP,1350230,CITI PCARD-TEAISM PENN QUARTER,2020-09-22,2020-09-22,FOOD & BEVERAGE,2962.5,2020
,2020 DEMOCRATIC CAUCUS,4,GENERAL EXPENDITURES,SUPPLIES AND MATERIALS,DETAIL,2020-11-05,AP,1350230,CITI PCARD-TRINT,2020-09-16,2020-10-16,SOFTWARE  LESS THAN  $500,40,2020
,2020 DEMOCRATIC CAUCUS,4,GENERAL EXPENDITURES,SUPPLIES AND MATERIALS,DETAIL,2020-11-10,AP,1350191,CITI PCARD-18TH STREET FRAMING,2020-09-03,2020-09-03,HABITATION EXPENSE,277.48,2020
,2020 DEMOCRATIC CAUCUS,4,GENERAL EXPENDITURES,SUPPLIES AND MATERIALS,DETAIL,2020-11-10,AP,1350191,CITI PCARD-AMZN Mktp US,2020-09-11,2020-09-11,OFFICE SUPPLIES (OUTSIDE),-124.94,2020
,2020 DEMOCRATIC CAUCUS,4,GENERAL EXPENDITURES,SUPPLIES AND MATERIALS,DETAIL,2020-11-10,AP,1350191,CITI PCARD-AMZN Mktp US M45793FN1,2020-09-09,2020-09-09,FOOD & BEVERAGE,359.1,2020
,2020 DEMOCRATIC CAUCUS,4,GENERAL EXPENDITURES,SUPPLIES AND MATERIALS,DETAIL,2020-11-10,AP,1350191,CITI PCARD-AMZN Mktp US MU49I52S1,2020-09-02,2020-09-02,OFFICE SUPPLIES (OUTSIDE),13.99,2020
,2020 DEMOCRATIC CAUCUS,4,GENERAL EXPENDITURES,SUPPLIES AND MATERIALS,DETAIL,2020-11-10,AP,1350191,CITI PCARD-AMZN Mktp US MU4XN3GD2,2020-09-04,2020-09-04,OFFICE SUPPLIES (OUTSIDE),94.99,2020
,2020 DEMOCRATIC CAUCUS,4,GENERAL EXPENDITURES,SUPPLIES AND MATERIALS,DETAIL,2020-11-10,AP,1350191,CITI PCARD-AMZN Mktp US MU7CA6JC2,2020-08-31,2020-08-31,OFFICE SUPPLIES (OUTSIDE),65.98,2020
,2020 DEMOCRATIC CAUCUS,4,GENERAL EXPENDITURES,SUPPLIES AND MATERIALS,DETAIL,2020-11-10,AP,1350191,CITI PCARD-APPLE STORE  #R129,2020-09-02,2020-09-02,OFFICE SUPPLIES (OUTSIDE),325.42,2020
,2020 DEMOCRATIC CAUCUS,4,GENERAL EXPENDITURES,SUPPLIES AND MATERIALS,DETAIL,2020-11-10,AP,1350191,CITI PCARD-APPLE STORE  #R129,2020-09-09,2020-09-09,OFFICE SUPPLIES (OUTSIDE),19,2020
,2020 DEMOCRATIC CAUCUS,4,GENERAL EXPENDITURES,SUPPLIES AND MATERIALS,DETAIL,2020-11-10,AP,1350191,CITI PCARD-APPLE.COM/BILL,2020-08-28,2020-08-28,SOFTWARE  LESS THAN  $500,21.19,2020
,2020 DEMOCRATIC CAUCUS,4,GENERAL EXPENDITURES,SUPPLIES AND MATERIALS,DETAIL,2020-11-10,AP,1350191,CITI PCARD-BEST BUY MHT  00004937,2020-09-02,2020-09-02,OFFICE SUPPLIES (OUTSIDE),14.99,2020
,2020 DEMOCRATIC CAUCUS,4,GENERAL EXPENDITURES,SUPPLIES AND MATERIALS,DETAIL,2020-11-10,AP,1350191,CITI PCARD-D J WALL-ST-JOURNAL,2020-09-06,2020-10-06,PUBLICATIONS/REFERENCE MAT'L,45.57,2020
,2020 DEMOCRATIC CAUCUS,4,GENERAL EXPENDITURES,SUPPLIES AND MATERIALS,DETAIL,2020-11-10,AP,1350191,CITI PCARD-ENVATO,2020-09-15,2020-10-15,SOFTWARE  LESS THAN  $500,33,2020
,2020 DEMOCRATIC CAUCUS,4,GENERAL EXPENDITURES,SUPPLIES AND MATERIALS,DETAIL,2020-11-10,AP,1350191,CITI PCARD-TEAISM PENN QUARTER,2020-09-15,2020-09-15,FOOD & BEVERAGE,3424,2020
,2020 DEMOCRATIC CAUCUS,4,GENERAL EXPENDITURES,SUPPLIES AND MATERIALS,DETAIL,2020-11-13,AP,1352216,CITIBANK GOV CARD SERVICE,2020-09-30,2020-09-30,OFFICE SUPPLIES (OUTSIDE),10.56,2020
,2020 DEMOCRATIC CAUCUS,4,GENERAL EXPENDITURES,SUPPLIES AND MATERIALS,DETAIL,2020-11-24,AP,1358093,CITI PCARD-AMZN Mktp US 2T3TS2XS0,2020-10-21,2020-10-21,OFFICE SUPPLIES (OUTSIDE),123.47,2020
,2020 DEMOCRATIC CAUCUS,4,GENERAL EXPENDITURES,SUPPLIES AND MATERIALS,DETAIL,2020-11-24,AP,1358093,CITI PCARD-AMZN Mktp US 2T7FZ75I0,2020-10-22,2020-10-22,OFFICE SUPPLIES (OUTSIDE),129.99,2020
,2020 DEMOCRATIC CAUCUS,4,GENERAL EXPENDITURES,SUPPLIES AND MATERIALS,DETAIL,2020-11-24,AP,1358093,CITI PCARD-AMZN Mktp US MK9Z74J31,2020-10-01,2020-10-01,OFFICE SUPPLIES (OUTSIDE),32.47,2020
,2020 DEMOCRATIC CAUCUS,4,GENERAL EXPENDITURES,SUPPLIES AND MATERIALS,DETAIL,2020-11-24,AP,1358093,CITI PCARD-BEST BUY      00002766,2020-09-09,2020-09-09,OFFICE SUPPLIES (OUTSIDE),34.99,2020
,2020 DEMOCRATIC CAUCUS,4,GENERAL EXPENDITURES,SUPPLIES AND MATERIALS,DETAIL,2020-11-24,AP,1358093,CITI PCARD-COMPUTER REVOLUTION,2020-10-20,2020-10-20,OFFICE SUPPLIES (OUTSIDE),32.91,2020
,2020 DEMOCRATIC CAUCUS,4,GENERAL EXPENDITURES,SUPPLIES AND MATERIALS,DETAIL,2020-11-24,AP,1358093,CITI PCARD-D J WALL-ST-JOURNAL,2020-10-06,2020-11-06,PUBLICATIONS/REFERENCE MAT'L,45.57,2020
,2020 DEMOCRATIC CAUCUS,4,GENERAL EXPENDITURES,SUPPLIES AND MATERIALS,DETAIL,2020-11-24,AP,1358093,CITI PCARD-DROPBOX P8FTPSL54VCL,2020-10-24,2020-11-24,SOFTWARE  LESS THAN  $500,12.71,2020
,2020 DEMOCRATIC CAUCUS,4,GENERAL EXPENDITURES,SUPPLIES AND MATERIALS,DETAIL,2020-11-24,AP,1358093,CITI PCARD-ENVATO,2020-10-15,2020-11-15,SOFTWARE  LESS THAN  $500,33,2020
,2020 DEMOCRATIC CAUCUS,4,GENERAL EXPENDITURES,SUPPLIES AND MATERIALS,DETAIL,2020-11-24,AP,1358093,CITI PCARD-STARBUCKS STORE 23466,2020-10-16,2020-10-16,FOOD & BEVERAGE,24.81,2020
,2020 DEMOCRATIC CAUCUS,4,GENERAL EXPENDITURES,SUPPLIES AND MATERIALS,DETAIL,2020-11-24,AP,1358093,CITI PCARD-STREAMYARD.COM,2020-09-15,2020-10-15,SOFTWARE  LESS THAN  $500,49,2020
,2020 DEMOCRATIC CAUCUS,4,GENERAL EXPENDITURES,SUPPLIES AND MATERIALS,DETAIL,2020-11-24,AP,1358093,CITI PCARD-STREAMYARD.COM,2020-10-15,2020-11-15,SOFTWARE  LESS THAN  $500,49,2020
,2020 DEMOCRATIC CAUCUS,4,GENERAL EXPENDITURES,SUPPLIES AND MATERIALS,DETAIL,2020-11-24,AP,1358093,CITI PCARD-TRINT,2020-10-16,2020-11-16,SOFTWARE  LESS THAN  $500,40,2020
,2020 DEMOCRATIC CAUCUS,4,GENERAL EXPENDITURES,SUPPLIES AND MATERIALS,DETAIL,2020-11-24,AP,1358093,CITI PCARD-USPS PO 1050091422,2020-10-19,2020-10-19,OFFICE SUPPLIES (OUTSIDE),19.71,2020
,2020 DEMOCRATIC CAUCUS,4,GENERAL EXPENDITURES,SUPPLIES AND MATERIALS,DETAIL,2020-11-25,AP,1357933,READYREFRESH BY NESTLE,2020-10-31,2020-10-31,WATER,34.99,2020
,2020 DEMOCRATIC CAUCUS,4,GENERAL EXPENDITURES,SUPPLIES AND MATERIALS,DETAIL,2020-11-25,AP,1358330,STICKNEY LAKECIA N.,2020-11-16,2020-11-16,OFFICE SUPPLIES (OUTSIDE),332.76,2020
,2020 DEMOCRATIC CAUCUS,4,GENERAL EXPENDITURES,SUPPLIES AND MATERIALS,DETAIL,2020-11-25,AP,1358337,CITI PCARD-AMAZON.COM 2T1NO66R1 AMZN,2020-10-21,2020-10-21,FOOD & BEVERAGE,88.72,2020
,2020 DEMOCRATIC CAUCUS,4,GENERAL EXPENDITURES,SUPPLIES AND MATERIALS,DETAIL,2020-11-25,AP,1358337,CITI PCARD-AMZN MKTP US 2T0YG2VV1 AM,2020-10-19,2020-10-19,OFFICE SUPPLIES (OUTSIDE),152.91,2020
,2020 DEMOCRATIC CAUCUS,4,GENERAL EXPENDITURES,SUPPLIES AND MATERIALS,DETAIL,2020-11-25,AP,1358337,CITI PCARD-AMZN MKTP US 2T7415MB1 AM,2020-10-19,2020-10-19,OFFICE SUPPLIES (OUTSIDE),204.85,2020
,2020 DEMOCRATIC CAUCUS,4,GENERAL EXPENDITURES,SUPPLIES AND MATERIALS,DETAIL,2020-11-25,AP,1358337,CITI PCARD-AMZN MKTP US 2T9EJ7730 AM,2020-10-21,2020-10-21,OFFICE SUPPLIES (OUTSIDE),579.83,2020
,2020 DEMOCRATIC CAUCUS,4,GENERAL EXPENDITURES,SUPPLIES AND MATERIALS,DETAIL,2020-11-25,AP,1358337,CITI PCARD-AMZN Mktp US 2T0NA5SQ0,2020-10-24,2020-10-24,OFFICE SUPPLIES (OUTSIDE),12.78,2020
,2020 DEMOCRATIC CAUCUS,4,GENERAL EXPENDITURES,SUPPLIES AND MATERIALS,DETAIL,2020-11-25,AP,1358337,CITI PCARD-AMZN Mktp US 2T3KV2QF2,2020-10-24,2020-10-24,OFFICE SUPPLIES (OUTSIDE),15.98,2020
,2020 DEMOCRATIC CAUCUS,4,GENERAL EXPENDITURES,SUPPLIES AND MATERIALS,DETAIL,2020-11-25,AP,1358337,CITI PCARD-AMZN Mktp US 2T8KQ6552,2020-10-23,2020-11-23,OFFICE SUPPLIES (OUTSIDE),14.99,2020
,2020 DEMOCRATIC CAUCUS,4,GENERAL EXPENDITURES,SUPPLIES AND MATERIALS,DETAIL,2020-11-25,AP,1358337,CITI PCARD-AMZN Mktp US MK4S83R60,2020-10-14,2020-10-14,OFFICE SUPPLIES (OUTSIDE),56.81,2020
,2020 DEMOCRATIC CAUCUS,4,GENERAL EXPENDITURES,SUPPLIES AND MATERIALS,DETAIL,2020-11-25,AP,1358337,CITI PCARD-HARRISTEETER #383,2020-09-30,2020-09-30,FOOD & BEVERAGE,45.36,2020
,2020 DEMOCRATIC CAUCUS,4,GENERAL EXPENDITURES,SUPPLIES AND MATERIALS,DETAIL,2020-11-25,AP,1358337,CITI PCARD-HARRISTEETER #383,2020-09-30,2020-09-30,OFFICE SUPPLIES (OUTSIDE),27.16,2020
,2020 DEMOCRATIC CAUCUS,4,GENERAL EXPENDITURES,SUPPLIES AND MATERIALS,DETAIL,2020-11-30,GL,RMS0102573, ,2020-11-01,2020-11-30,OFFICE SUPPLY (TRANSFER),633.79,2020
,2020 DEMOCRATIC CAUCUS,4,GENERAL EXPENDITURES,SUPPLIES AND MATERIALS,DETAIL,2020-12-03,AP,1359766,CITIBANK GOV CARD SERVICE,2020-11-12,2020-11-12,FOOD & BEVERAGE,47.78,2020
,2020 DEMOCRATIC CAUCUS,4,GENERAL EXPENDITURES,SUPPLIES AND MATERIALS,DETAIL,2020-12-03,AP,1359774,CITIBANK GOV CARD SERVICE,2020-11-15,2020-11-15,FOOD & BEVERAGE,77.07,2020
,2020 DEMOCRATIC CAUCUS,4,GENERAL EXPENDITURES,SUPPLIES AND MATERIALS,DETAIL,2020-12-03,AP,1359774,CITIBANK GOV CARD SERVICE,2020-11-16,2020-11-16,FOOD & BEVERAGE,122.93,2020
,2020 DEMOCRATIC CAUCUS,4,GENERAL EXPENDITURES,SUPPLIES AND MATERIALS,DETAIL,2020-12-14,AP,1363187,DAWSON EARNESTINE E.,2020-11-13,2020-11-13,LEGISLATIVE PLNNG FOOD AND BEV,46.68,2020
,2020 DEMOCRATIC CAUCUS,4,GENERAL EXPENDITURES,SUPPLIES AND MATERIALS,DETAIL,2020-12-15,AP,1362909,BRAGIN GIDEON,2020-11-17,2020-11-17,OFFICE SUPPLIES (OUTSIDE),117.42,2020
,2020 DEMOCRATIC CAUCUS,4,GENERAL EXPENDITURES,SUPPLIES AND MATERIALS,DETAIL,2020-12-15,AP,1363285,CITI PCARD-CHAUCERS BOOKS70400015,2020-10-27,2020-10-27,PUBLICATIONS/REFERENCE MAT'L,3496.5,2020
,2020 DEMOCRATIC CAUCUS,4,GENERAL EXPENDITURES,SUPPLIES AND MATERIALS,DETAIL,2020-12-15,AP,1363285,CITI PCARD-DOORDASH PRESCRIPTION,2020-09-10,2020-09-10,FOOD & BEVERAGE,125.62,2020
,2020 DEMOCRATIC CAUCUS,4,GENERAL EXPENDITURES,SUPPLIES AND MATERIALS,DETAIL,2020-12-15,AP,1363285,CITI PCARD-PERSONAL PAYMENT,2020-04-29,2020-04-29,FOOD & BEVERAGE,-15.45,2020
,2020 DEMOCRATIC CAUCUS,4,GENERAL EXPENDITURES,SUPPLIES AND MATERIALS,DETAIL,2020-12-15,AP,1363285,CITI PCARD-PERSONAL PAYMENT,2020-05-13,2020-05-13,FOOD & BEVERAGE,-53.89,2020
,2020 DEMOCRATIC CAUCUS,4,GENERAL EXPENDITURES,SUPPLIES AND MATERIALS,DETAIL,2020-12-15,AP,1363285,CITI PCARD-PERSONAL PAYMENT,2020-06-18,2020-06-18,FOOD & BEVERAGE,-52.9,2020
,2020 DEMOCRATIC CAUCUS,4,GENERAL EXPENDITURES,SUPPLIES AND MATERIALS,DETAIL,2020-12-15,AP,1363285,CITI PCARD-PERSONAL PAYMENT,2020-09-10,2020-09-10,FOOD & BEVERAGE,-125.62,2020
,2020 DEMOCRATIC CAUCUS,4,GENERAL EXPENDITURES,SUPPLIES AND MATERIALS,DETAIL,2020-12-15,AP,1363285,CITI PCARD-SP   BAKEDBYYAEL,2020-04-29,2020-04-29,FOOD & BEVERAGE,15.45,2020
,2020 DEMOCRATIC CAUCUS,4,GENERAL EXPENDITURES,SUPPLIES AND MATERIALS,DETAIL,2020-12-15,AP,1363285,CITI PCARD-SP   BAKEDBYYAEL,2020-05-13,2020-05-13,FOOD & BEVERAGE,53.89,2020
,2020 DEMOCRATIC CAUCUS,4,GENERAL EXPENDITURES,SUPPLIES AND MATERIALS,DETAIL,2020-12-15,AP,1363285,CITI PCARD-SP   BAKEDBYYAEL,2020-06-18,2020-06-18,FOOD & BEVERAGE,52.9,2020
,2020 DEMOCRATIC CAUCUS,4,GENERAL EXPENDITURES,SUPPLIES AND MATERIALS,DETAIL,2020-12-15,AP,1363285,CITI PCARD-ZOOM.US,2020-06-06,2020-06-06,SOFTWARE  LESS THAN  $500,-126.89,2020
,2020 DEMOCRATIC CAUCUS,4,GENERAL EXPENDITURES,SUPPLIES AND MATERIALS,DETAIL,2020-12-15,AP,1363293,CITI PCARD-BOOKSHOP.ORG,2020-10-28,2020-10-28,PUBLICATIONS/REFERENCE MAT'L,32.83,2020
,2020 DEMOCRATIC CAUCUS,4,GENERAL EXPENDITURES,SUPPLIES AND MATERIALS,DETAIL,2020-12-15,AP,1363293,CITI PCARD-STAPLES DIRECT,2020-10-27,2020-10-27,OFFICE SUPPLIES (OUTSIDE),375.24,2020
,2020 DEMOCRATIC CAUCUS,4,GENERAL EXPENDITURES,SUPPLIES AND MATERIALS,DETAIL,2020-12-15,AP,1363329,CITI PCARD-AMZN Mktp US 2017X0FD1,2020-11-10,2020-11-10,OFFICE SUPPLIES (OUTSIDE),428.67,2020
,2020 DEMOCRATIC CAUCUS,4,GENERAL EXPENDITURES,SUPPLIES AND MATERIALS,DETAIL,2020-12-15,AP,1363329,CITI PCARD-AMZN Mktp US 209JV1C31,2020-11-10,2020-11-10,OFFICE SUPPLIES (OUTSIDE),116.9,2020
,2020 DEMOCRATIC CAUCUS,4,GENERAL EXPENDITURES,SUPPLIES AND MATERIALS,DETAIL,2020-12-15,AP,1363329,CITI PCARD-AMZN Mktp US 283LM92O2,2020-11-10,2020-11-10,OFFICE SUPPLIES (OUTSIDE),389.7,2020
,2020 DEMOCRATIC CAUCUS,4,GENERAL EXPENDITURES,SUPPLIES AND MATERIALS,DETAIL,2020-12-15,AP,1363329,CITI PCARD-AMZN Mktp US 288B56690,2020-11-02,2020-11-02,OFFICE SUPPLIES (OUTSIDE),205.26,2020
,2020 DEMOCRATIC CAUCUS,4,GENERAL EXPENDITURES,SUPPLIES AND MATERIALS,DETAIL,2020-12-15,AP,1363329,CITI PCARD-BEST BUY MHT  00004937,2020-11-06,2020-11-06,OFFICE SUPPLIES (OUTSIDE),59.98,2020
,2020 DEMOCRATIC CAUCUS,4,GENERAL EXPENDITURES,SUPPLIES AND MATERIALS,DETAIL,2020-12-15,AP,1363329,CITI PCARD-D J WALL-ST-JOURNAL,2020-11-06,2020-12-06,PUBLICATIONS/REFERENCE MAT'L,45.57,2020
,2020 DEMOCRATIC CAUCUS,4,GENERAL EXPENDITURES,SUPPLIES AND MATERIALS,DETAIL,2020-12-15,AP,1363329,CITI PCARD-NYTIMES,2020-07-23,2020-12-31,PUBLICATIONS/REFERENCE MAT'L,508.3,2020
,2020 DEMOCRATIC CAUCUS,4,GENERAL EXPENDITURES,SUPPLIES AND MATERIALS,DETAIL,2020-12-15,AP,1363329,CITI PCARD-PALENQUE BAR & GRILL LL,2020-11-10,2020-11-10,FOOD & BEVERAGE,2465.21,2020
,2020 DEMOCRATIC CAUCUS,4,GENERAL EXPENDITURES,SUPPLIES AND MATERIALS,DETAIL,2020-12-15,AP,1363329,CITI PCARD-STAPLES       00107417,2020-11-06,2020-11-06,OFFICE SUPPLIES (OUTSIDE),4.24,2020
,2020 DEMOCRATIC CAUCUS,4,GENERAL EXPENDITURES,SUPPLIES AND MATERIALS,DETAIL,2020-12-15,AP,1363329,CITI PCARD-TARGET PLUS,2020-11-03,2020-11-03,OFFICE SUPPLIES (OUTSIDE),324.32,2020
,2020 DEMOCRATIC CAUCUS,4,GENERAL EXPENDITURES,SUPPLIES AND MATERIALS,DETAIL,2020-12-15,AP,1363329,CITI PCARD-THE HOME DEPOT #2564,2020-11-05,2020-11-05,OFFICE SUPPLIES (OUTSIDE),-134.92,2020
,2020 DEMOCRATIC CAUCUS,4,GENERAL EXPENDITURES,SUPPLIES AND MATERIALS,DETAIL,2020-12-15,AP,1363329,CITI PCARD-THE HOME DEPOT #2583,2020-11-05,2020-11-05,OFFICE SUPPLIES (OUTSIDE),134.92,2020
,2020 DEMOCRATIC CAUCUS,4,GENERAL EXPENDITURES,SUPPLIES AND MATERIALS,DETAIL,2020-12-15,AP,1363329,CITI PCARD-THE HOME DEPOT #2583,2020-11-09,2020-11-09,OFFICE SUPPLIES (OUTSIDE),143.02,2020
,2020 DEMOCRATIC CAUCUS,4,GENERAL EXPENDITURES,SUPPLIES AND MATERIALS,DETAIL,2020-12-15,AP,1363338,CITI PCARD-TEAISM PENN QUARTER,2020-11-13,2020-11-13,FOOD & BEVERAGE,2940,2020
,2020 DEMOCRATIC CAUCUS,4,GENERAL EXPENDITURES,SUPPLIES AND MATERIALS,DETAIL,2020-12-17,AP,1363825,CITIBANK GOV CARD SERVICE,2020-11-19,2020-11-19,FOOD & BEVERAGE,3303.13,2020
,2020 DEMOCRATIC CAUCUS,4,GENERAL EXPENDITURES,SUPPLIES AND MATERIALS,DETAIL,2020-12-21,AP,1367626,CITI PCARD-HYATT REGENCY WASHINGTON,2020-11-16,2020-11-18,FOOD & BEVERAGE,17000,2020
,2020 DEMOCRATIC CAUCUS,4,GENERAL EXPENDITURES,SUPPLIES AND MATERIALS,DETAIL,2020-12-22,AP,1363702,CITI PCARD-AMZN Mktp US 204D08Z92,2020-11-15,2020-11-15,OFFICE SUPPLIES (OUTSIDE),37.03,2020
,2020 DEMOCRATIC CAUCUS,4,GENERAL EXPENDITURES,SUPPLIES AND MATERIALS,DETAIL,2020-12-22,AP,1363702,CITI PCARD-AMZN Mktp US 204HV3FR2,2020-11-14,2020-11-14,OFFICE SUPPLIES (OUTSIDE),389.7,2020
,2020 DEMOCRATIC CAUCUS,4,GENERAL EXPENDITURES,SUPPLIES AND MATERIALS,DETAIL,2020-12-22,AP,1363702,CITI PCARD-AMZN Mktp US OZ7PX7653,2020-11-18,2020-11-18,OFFICE SUPPLIES (OUTSIDE),59.21,2020
,2020 DEMOCRATIC CAUCUS,4,GENERAL EXPENDITURES,SUPPLIES AND MATERIALS,DETAIL,2020-12-22,AP,1363702,CITI PCARD-D J WALL-ST-JOURNAL,2020-11-23,2020-12-23,PUBLICATIONS/REFERENCE MAT'L,45.57,2020
,2020 DEMOCRATIC CAUCUS,4,GENERAL EXPENDITURES,SUPPLIES AND MATERIALS,DETAIL,2020-12-22,AP,1363702,CITI PCARD-DROPBOX YP8R8222MZKT,2020-11-24,2020-12-24,SOFTWARE  LESS THAN  $500,12.71,2020
,2020 DEMOCRATIC CAUCUS,4,GENERAL EXPENDITURES,SUPPLIES AND MATERIALS,DETAIL,2020-12-22,AP,1363702,CITI PCARD-ENVATO,2020-11-15,2020-12-15,SOFTWARE  LESS THAN  $500,33,2020
,2020 DEMOCRATIC CAUCUS,4,GENERAL EXPENDITURES,SUPPLIES AND MATERIALS,DETAIL,2020-12-22,AP,1363702,CITI PCARD-NYTIMES,2020-10-19,2020-12-13,PUBLICATIONS/REFERENCE MAT'L,87.45,2020
,2020 DEMOCRATIC CAUCUS,4,GENERAL EXPENDITURES,SUPPLIES AND MATERIALS,DETAIL,2020-12-22,AP,1363702,CITI PCARD-SQ  BAY-MADE,2020-11-20,2020-11-20,FOOD & BEVERAGE,47.85,2020
,2020 DEMOCRATIC CAUCUS,4,GENERAL EXPENDITURES,SUPPLIES AND MATERIALS,DETAIL,2020-12-22,AP,1363702,CITI PCARD-STARBUCKS STORE 07610,2020-11-15,2020-11-15,FOOD & BEVERAGE,51.98,2020
,2020 DEMOCRATIC CAUCUS,4,GENERAL EXPENDITURES,SUPPLIES AND MATERIALS,DETAIL,2020-12-22,AP,1363702,CITI PCARD-STREAMYARD.COM,2020-11-15,2020-12-15,SOFTWARE  LESS THAN  $500,49,2020
,2020 DEMOCRATIC CAUCUS,4,GENERAL EXPENDITURES,SUPPLIES AND MATERIALS,DETAIL,2020-12-22,AP,1363702,CITI PCARD-TRINT,2020-11-16,2020-12-16,SOFTWARE  LESS THAN  $500,40,2020
,2020 DEMOCRATIC CAUCUS,4,GENERAL EXPENDITURES,SUPPLIES AND MATERIALS,DETAIL,2020-12-23,AP,1367707,CITI PCARD-APPLE.COM/BILL,2020-11-20,2020-12-20,SOFTWARE  LESS THAN  $500,1.05,2020
,2020 DEMOCRATIC CAUCUS,4,GENERAL EXPENDITURES,SUPPLIES AND MATERIALS,DETAIL,2020-12-23,AP,1367707,CITI PCARD-BEST BUY MHT  00004937,2020-11-13,2020-11-13,OFFICE SUPPLIES (OUTSIDE),584.73,2020
,2020 DEMOCRATIC CAUCUS,4,GENERAL EXPENDITURES,SUPPLIES AND MATERIALS,DETAIL,2020-12-23,AP,1367707,CITI PCARD-HARRIS TEETER #0282,2020-11-12,2020-11-12,FOOD & BEVERAGE,57.25,2020
,2020 DEMOCRATIC CAUCUS,4,GENERAL EXPENDITURES,SUPPLIES AND MATERIALS,DETAIL,2020-12-23,AP,1367707,CITI PCARD-HARRIS TEETER #0282,2020-11-13,2020-11-13,FOOD & BEVERAGE,129.06,2020
,2020 DEMOCRATIC CAUCUS,4,GENERAL EXPENDITURES,SUPPLIES AND MATERIALS,DETAIL,2020-12-23,AP,1367707,CITI PCARD-LONGWORTH FC,2020-11-16,2020-11-16,FOOD & BEVERAGE,9.7,2020
,2020 DEMOCRATIC CAUCUS,4,GENERAL EXPENDITURES,SUPPLIES AND MATERIALS,DETAIL,2020-12-29,AP,1369400,READYREFRESH BY NESTLE,2020-11-30,2020-11-30,WATER,34.99,2020
,2020 DEMOCRATIC CAUCUS,4,GENERAL EXPENDITURES,SUPPLIES AND MATERIALS,DETAIL,2020-12-31,GL,RMS0103333, ,2020-12-01,2020-12-31,OFFICE SUPPLY (TRANSFER),379.24,2020
,2020 DEMOCRATIC CAUCUS,4,GENERAL EXPENDITURES,SUPPLIES AND MATERIALS,SUBTOTAL,   ,   ,   ,   ,   ,   ,SUPPLIES AND MATERIALS TOTALS:,46723.51,2020
,2020 DEMOCRATIC CAUCUS,4,GENERAL EXPENDITURES,EQUIPMENT,DETAIL,2020-10-07,AP,1340724,CONNECTION,2020-06-05,2020-06-05,COMPUTER HARDW PURCH  LESS THAN $25 000,1249,2020
,2020 DEMOCRATIC CAUCUS,4,GENERAL EXPENDITURES,EQUIPMENT,DETAIL,2020-10-08,AP,1340736,CONNECTION,2020-09-08,2020-09-08,COMPUTER HARDW PURCH  LESS THAN $25 000,1799,2020
,2020 DEMOCRATIC CAUCUS,4,GENERAL EXPENDITURES,EQUIPMENT,DETAIL,2020-10-08,AP,1340746,CONNECTION,2020-09-08,2020-09-08,COMPUTER HARDW PURCH  LESS THAN $25 000,1099,2020
,2020 DEMOCRATIC CAUCUS,4,GENERAL EXPENDITURES,EQUIPMENT,DETAIL,2020-10-08,AP,1340751,CONNECTION,2020-09-09,2020-09-09,COMPUTER HARDW PURCH  LESS THAN $25 000,1298,2020
,2020 DEMOCRATIC CAUCUS,4,GENERAL EXPENDITURES,EQUIPMENT,DETAIL,2020-10-30,GL,MNT0101914, ,2020-10-01,2020-10-31,MAINTENANCE / REPAIRS,782.1,2020
,2020 DEMOCRATIC CAUCUS,4,GENERAL EXPENDITURES,EQUIPMENT,DETAIL,2020-11-05,AP,1350230,CITI PCARD-XEROX CORPORATION/RBO,2020-03-01,2020-03-21,MAINTENANCE / REPAIRS,260,2020
,2020 DEMOCRATIC CAUCUS,4,GENERAL EXPENDITURES,EQUIPMENT,DETAIL,2020-11-05,AP,1350230,CITI PCARD-XEROX CORPORATION/RBO,2020-04-21,2020-05-21,MAINTENANCE / REPAIRS,260,2020
,2020 DEMOCRATIC CAUCUS,4,GENERAL EXPENDITURES,EQUIPMENT,DETAIL,2020-11-05,AP,1350230,CITI PCARD-XEROX CORPORATION/RBO,2020-05-21,2020-06-21,MAINTENANCE / REPAIRS,260,2020
,2020 DEMOCRATIC CAUCUS,4,GENERAL EXPENDITURES,EQUIPMENT,DETAIL,2020-11-05,AP,1350230,CITI PCARD-XEROX CORPORATION/RBO,2020-06-21,2020-07-21,MAINTENANCE / REPAIRS,260,2020
,2020 DEMOCRATIC CAUCUS,4,GENERAL EXPENDITURES,EQUIPMENT,DETAIL,2020-11-05,AP,1350230,CITI PCARD-XEROX CORPORATION/RBO,2020-07-21,2020-08-21,MAINTENANCE / REPAIRS,260,2020
,2020 DEMOCRATIC CAUCUS,4,GENERAL EXPENDITURES,EQUIPMENT,DETAIL,2020-11-30,GL,MNT0102510, ,2020-10-01,2020-10-31,MAINTENANCE / REPAIRS,-292.1,2020
,2020 DEMOCRATIC CAUCUS,4,GENERAL EXPENDITURES,EQUIPMENT,DETAIL,2020-11-30,GL,MNT0102510, ,2020-11-01,2020-11-30,MAINTENANCE / REPAIRS,490,2020
,2020 DEMOCRATIC CAUCUS,4,GENERAL EXPENDITURES,EQUIPMENT,DETAIL,2020-12-17,AP,1363340,CITI PCARD-APPLE STORE R516,2020-11-15,2020-11-15,COMPUTER HARDW PURCH  LESS THAN $25 000,3925.29,2020
,2020 DEMOCRATIC CAUCUS,4,GENERAL EXPENDITURES,EQUIPMENT,DETAIL,2020-12-22,AP,1363702,CITI PCARD-APPLE STORE  #R129,2020-11-17,2020-11-17,COMPUTER HARDW PURCH  LESS THAN $25 000,634.94,2020
,2020 DEMOCRATIC CAUCUS,4,GENERAL EXPENDITURES,EQUIPMENT,DETAIL,2020-12-31,GL,MNT0103285, ,2020-12-01,2020-12-31,MAINTENANCE / REPAIRS,490,2020
,2020 DEMOCRATIC CAUCUS,4,GENERAL EXPENDITURES,EQUIPMENT,SUBTOTAL,   ,   ,   ,   ,   ,   ,EQUIPMENT TOTALS:,12775.23,2020
,2020 DEMOCRATIC CAUCUS,4,GENERAL EXPENDITURES,EQUIPMENT,SUBTOTAL,   ,   ,   ,   ,   ,   ,GENERAL EXPENDITURES TOTALS:,659701.13,2020
,2020 DEMOCRATIC CAUCUS,4,GENERAL EXPENDITURES,EQUIPMENT,GRAND TOTAL FOR ORGANIZATION,   ,   ,   ,   ,   ,   ,OFFICE TOTALS: ,659701.13,2020
,2020 DEMOCRATIC CAUCUS,4,INTERN ALLOWANCES,PERSONNEL COMPENSATION,DETAIL,   ,   ,   ,BESS ROBYN A.,2020-09-29,2020-12-31,DEM CAUCUS PAID INTERN - HOUSE,5520,2020
,2020 DEMOCRATIC CAUCUS,4,INTERN ALLOWANCES,PERSONNEL COMPENSATION,DETAIL,   ,   ,   ,CLARK SYDNEY,2020-09-29,2020-12-31,DEM CAUCUS PAID INTERN - HOUSE,5520,2020
,2020 DEMOCRATIC CAUCUS,4,INTERN ALLOWANCES,PERSONNEL COMPENSATION,DETAIL,   ,   ,   ,FLORES LIUBA,2020-09-18,2020-12-31,DEM CAUCUS PAID INTERN - HOUSE,6180,2020
,2020 DEMOCRATIC CAUCUS,4,INTERN ALLOWANCES,PERSONNEL COMPENSATION,DETAIL,   ,   ,   ,GRIFFITH BENJAMIN D.,2020-09-23,2020-12-31,DEM CAUCUS PAID INTERN - HOUSE,4097,2020
,2020 DEMOCRATIC CAUCUS,4,INTERN ALLOWANCES,PERSONNEL COMPENSATION,DETAIL,   ,   ,   ,KNOTT ALYSSA,2020-10-01,2020-12-31,DEM CAUCUS PAID INTERN - HOUSE,1200,2020
,2020 DEMOCRATIC CAUCUS,4,INTERN ALLOWANCES,PERSONNEL COMPENSATION,DETAIL,   ,   ,   ,TRAN SOPHIA,2020-09-24,2020-12-31,DEM CAUCUS PAID INTERN - HOUSE,3787,2020
,2020 DEMOCRATIC CAUCUS,4,INTERN ALLOWANCES,PERSONNEL COMPENSATION,DETAIL,   ,   ,   ,WASHINGTON JULIUS W,2020-09-01,2020-12-31,DEM CAUCUS PAID INTERN - HOUSE,5940,2020
,2020 DEMOCRATIC CAUCUS,4,INTERN ALLOWANCES,PERSONNEL COMPENSATION,DETAIL,   ,   ,   ,WIET ELIZABETH R.,2020-09-18,2020-12-31,DEM CAUCUS PAID INTERN - HOUSE,6180,2020
,2020 DEMOCRATIC CAUCUS,4,INTERN ALLOWANCES,PERSONNEL COMPENSATION,SUBTOTAL,   ,   ,   ,   ,   ,   ,PERSONNEL COMPENSATION TOTALS:,38424,2020
,2020 DEMOCRATIC CAUCUS,4,INTERN ALLOWANCES,PERSONNEL COMPENSATION,SUBTOTAL,   ,   ,   ,   ,   ,   ,INTERN ALLOWANCES TOTALS:,38424,2020
,2020 DEMOCRATIC CAUCUS,4,INTERN ALLOWANCES,PERSONNEL COMPENSATION,GRAND TOTAL FOR ORGANIZATION,   ,   ,   ,   ,   ,   ,OFFICE TOTALS: ,38424,2020
,2020 REPUBLICAN CONFERENCE,4,GENERAL EXPENDITURES,PERSONNEL COMPENSATION,DETAIL,   ,   ,   ,ADLER JEREMY D,2020-10-01,2020-12-31,COMMUNICATIONS DIRECTOR,41483.34,2020
,2020 REPUBLICAN CONFERENCE,4,GENERAL EXPENDITURES,PERSONNEL COMPENSATION,DETAIL,   ,   ,   ,AHERN KARA M,2020-10-01,2020-12-31,CHIEF OF STAFF,16666.66,2020
,2020 REPUBLICAN CONFERENCE,4,GENERAL EXPENDITURES,PERSONNEL COMPENSATION,DETAIL,   ,   ,   ,ANDERSON MORGAN L,2020-10-01,2020-12-31,DIGITAL DIRECTOR,30500,2020
,2020 REPUBLICAN CONFERENCE,4,GENERAL EXPENDITURES,PERSONNEL COMPENSATION,DETAIL,   ,   ,   ,BOOTHE CAROLINE S.,2020-10-01,2020-12-31,MEMBER SERVICES DIRECTOR,41483.34,2020
,2020 REPUBLICAN CONFERENCE,4,GENERAL EXPENDITURES,PERSONNEL COMPENSATION,DETAIL,   ,   ,   ,DRZEWICKI JOHN V,2020-10-01,2020-12-31,POLICY DIRECTOR,9491.67,2020
,2020 REPUBLICAN CONFERENCE,4,GENERAL EXPENDITURES,PERSONNEL COMPENSATION,DETAIL,   ,   ,   ,HENDERSON WILLIAM J,2020-10-01,2020-12-31,SPECIAL ASSISTANT,13750,2020
,2020 REPUBLICAN CONFERENCE,4,GENERAL EXPENDITURES,PERSONNEL COMPENSATION,DETAIL,   ,   ,   ,HOFMAN RYAN,2020-10-01,2020-12-31,LEGISLATIVE ASSISTANT,21250.01,2020
,2020 REPUBLICAN CONFERENCE,4,GENERAL EXPENDITURES,PERSONNEL COMPENSATION,DETAIL,   ,   ,   ,LIFHITS JENNA,2020-10-01,2020-12-31,DEPUTY POLICY DIRECTOR,31750.01,2020
,2020 REPUBLICAN CONFERENCE,4,GENERAL EXPENDITURES,PERSONNEL COMPENSATION,DETAIL,   ,   ,   ,MEYER ANDREW,2020-10-01,2020-12-31,POLICY ADVISOR,25000.01,2020
,2020 REPUBLICAN CONFERENCE,4,GENERAL EXPENDITURES,PERSONNEL COMPENSATION,DETAIL,   ,   ,   ,PEARCE ELIZABETH W,2020-10-01,2020-12-31,DEPUTY CHIEF OF STAFF/DIRECTOR,21158.31,2020
,2020 REPUBLICAN CONFERENCE,4,GENERAL EXPENDITURES,PERSONNEL COMPENSATION,DETAIL,   ,   ,   ,PLAUT BRIAN D,2020-10-01,2020-12-31,DIRECTOR OF OPERATIONS,20625.01,2020
,2020 REPUBLICAN CONFERENCE,4,GENERAL EXPENDITURES,PERSONNEL COMPENSATION,DETAIL,   ,   ,   ,PORTER MEGAN E,2020-10-01,2020-12-31,MEMBER SERVICES STAFF ASST,14999.99,2020
,2020 REPUBLICAN CONFERENCE,4,GENERAL EXPENDITURES,PERSONNEL COMPENSATION,DETAIL,   ,   ,   ,REYNOLDS PARKER M,2020-10-26,2020-12-31,STAFF ASSISTANT,8125,2020
,2020 REPUBLICAN CONFERENCE,4,GENERAL EXPENDITURES,PERSONNEL COMPENSATION,DETAIL,   ,   ,   ,SMITH STEVEN D,2020-10-01,2020-12-31,PRESS SECRETARY,27500,2020
,2020 REPUBLICAN CONFERENCE,4,GENERAL EXPENDITURES,PERSONNEL COMPENSATION,DETAIL,   ,   ,   ,SULLIVAN LUKE C,2020-10-01,2020-12-31,STAFF ASSISTANT,13750.01,2020
,2020 REPUBLICAN CONFERENCE,4,GENERAL EXPENDITURES,PERSONNEL COMPENSATION,DETAIL,   ,   ,   ,SULLIVAN MICHAEL P,2020-10-01,2020-12-31,RAPID RESPONSE DIRECTOR,17500.01,2020
,2020 REPUBLICAN CONFERENCE,4,GENERAL EXPENDITURES,PERSONNEL COMPENSATION,DETAIL,   ,   ,   ,SUN KEVIN K,2020-10-01,2020-10-02,STAFF ASSISTANT,222.22,2020
,2020 REPUBLICAN CONFERENCE,4,GENERAL EXPENDITURES,PERSONNEL COMPENSATION,DETAIL,   ,   ,   ,SUN KEVIN K,2020-10-01,2020-10-02,STAFF ASSISTANT (OTHER COMPENSATION),1111.11,2020
,2020 REPUBLICAN CONFERENCE,4,GENERAL EXPENDITURES,PERSONNEL COMPENSATION,DETAIL,   ,   ,   ,THORNE DRAY A,2020-10-01,2020-12-31,SYSTEMS ADMINISTRATOR,32623.34,2020
,2020 REPUBLICAN CONFERENCE,4,GENERAL EXPENDITURES,PERSONNEL COMPENSATION,DETAIL,   ,   ,   ,WAGNER DAVINA E,2020-10-01,2020-12-31,SENIOR POLICY ADVISOR,13750,2020
,2020 REPUBLICAN CONFERENCE,4,GENERAL EXPENDITURES,PERSONNEL COMPENSATION,DETAIL,   ,   ,   ,WETHERALD MARGARET E,2020-10-01,2020-12-31,FINANCIAL ADMINISTRATOR,4200,2020
,2020 REPUBLICAN CONFERENCE,4,GENERAL EXPENDITURES,PERSONNEL COMPENSATION,SUBTOTAL,   ,   ,   ,   ,   ,   ,PERSONNEL COMPENSATION TOTALS:,406940.04,2020
,2020 REPUBLICAN CONFERENCE,4,GENERAL EXPENDITURES,RENT  COMMUNICATION  UTILITIES,DETAIL,2020-10-14,AP,1341196,CITI PCARD-GOOGLE  YouTube TV,2020-09-24,2020-10-24,UTILITIES,68.89,2020
,2020 REPUBLICAN CONFERENCE,4,GENERAL EXPENDITURES,RENT  COMMUNICATION  UTILITIES,DETAIL,2020-10-27,GL,EMS0101782, ,2020-09-01,2020-09-30,DC TELECOM EQUIP (TRANSFER),96,2020
,2020 REPUBLICAN CONFERENCE,4,GENERAL EXPENDITURES,RENT  COMMUNICATION  UTILITIES,DETAIL,2020-10-27,GL,EMS0101782, ,2020-09-01,2020-09-30,DC TELECOM SERV (TRANSFER),279,2020
,2020 REPUBLICAN CONFERENCE,4,GENERAL EXPENDITURES,RENT  COMMUNICATION  UTILITIES,DETAIL,2020-10-27,GL,EMS0101782, ,2020-09-01,2020-09-30,DC TELECOM TOLLS (TRANSFER),5424.07,2020
,2020 REPUBLICAN CONFERENCE,4,GENERAL EXPENDITURES,RENT  COMMUNICATION  UTILITIES,DETAIL,2020-11-16,AP,1352162,CITI PCARD-GOOGLE  YouTube TV,2020-10-24,2020-11-24,UTILITIES,68.89,2020
,2020 REPUBLICAN CONFERENCE,4,GENERAL EXPENDITURES,RENT  COMMUNICATION  UTILITIES,DETAIL,2020-11-20,GL,EMS0102354, ,2020-10-01,2020-10-31,DC TELECOM EQUIP (TRANSFER),96,2020
,2020 REPUBLICAN CONFERENCE,4,GENERAL EXPENDITURES,RENT  COMMUNICATION  UTILITIES,DETAIL,2020-11-20,GL,EMS0102354, ,2020-10-01,2020-10-31,DC TELECOM SERV (TRANSFER),279,2020
,2020 REPUBLICAN CONFERENCE,4,GENERAL EXPENDITURES,RENT  COMMUNICATION  UTILITIES,DETAIL,2020-11-20,GL,EMS0102354, ,2020-10-01,2020-10-31,DC TELECOM TOLLS (TRANSFER),2134.08,2020
,2020 REPUBLICAN CONFERENCE,4,GENERAL EXPENDITURES,RENT  COMMUNICATION  UTILITIES,DETAIL,2020-12-22,AP,1362725,CITI PCARD-GOOGLE  YouTube TV,2020-11-24,2020-12-24,UTILITIES,68.89,2020
,2020 REPUBLICAN CONFERENCE,4,GENERAL EXPENDITURES,RENT  COMMUNICATION  UTILITIES,DETAIL,2020-12-28,GL,EMS0103149, ,2020-11-01,2020-11-30,DC TELECOM EQUIP (TRANSFER),96,2020
,2020 REPUBLICAN CONFERENCE,4,GENERAL EXPENDITURES,RENT  COMMUNICATION  UTILITIES,DETAIL,2020-12-28,GL,EMS0103149, ,2020-11-01,2020-11-30,DC TELECOM SERV (TRANSFER),279,2020
,2020 REPUBLICAN CONFERENCE,4,GENERAL EXPENDITURES,RENT  COMMUNICATION  UTILITIES,DETAIL,2020-12-28,GL,EMS0103149, ,2020-11-01,2020-11-30,DC TELECOM TOLLS (TRANSFER),2140.8,2020
,2020 REPUBLICAN CONFERENCE,4,GENERAL EXPENDITURES,RENT  COMMUNICATION  UTILITIES,SUBTOTAL,   ,   ,   ,   ,   ,   ,RENT  COMMUNICATION  UTILITIES TOTALS:,11030.62,2020
,2020 REPUBLICAN CONFERENCE,4,GENERAL EXPENDITURES,PRINTING AND REPRODUCTION,DETAIL,2020-11-20,AP,1357369,ACCURATE WORD LLC,2020-11-13,2020-11-13,PRINTING & REPRODUCTION,29.95,2020
,2020 REPUBLICAN CONFERENCE,4,GENERAL EXPENDITURES,PRINTING AND REPRODUCTION,SUBTOTAL,   ,   ,   ,   ,   ,   ,PRINTING AND REPRODUCTION TOTALS:,29.95,2020
,2020 REPUBLICAN CONFERENCE,4,GENERAL EXPENDITURES,OTHER SERVICES,DETAIL,2020-10-14,AP,1341196,CITI PCARD-MAILCHIMP    MONTHLY,2020-09-06,2020-10-06,WEB DEV HST EMAIL & RLTD SERV,539.49,2020
,2020 REPUBLICAN CONFERENCE,4,GENERAL EXPENDITURES,OTHER SERVICES,DETAIL,2020-11-16,AP,1352162,CITI PCARD-MAILCHIMP    MONTHLY,2020-10-06,2020-11-06,WEB DEV HST EMAIL & RLTD SERV,539.49,2020
,2020 REPUBLICAN CONFERENCE,4,GENERAL EXPENDITURES,OTHER SERVICES,DETAIL,2020-12-22,AP,1362725,CITI PCARD-MAILCHIMP    MONTHLY,2020-11-06,2020-12-06,WEB DEV HST EMAIL & RLTD SERV,572.35,2020
,2020 REPUBLICAN CONFERENCE,4,GENERAL EXPENDITURES,OTHER SERVICES,SUBTOTAL,   ,   ,   ,   ,   ,   ,OTHER SERVICES TOTALS:,1651.33,2020
,2020 REPUBLICAN CONFERENCE,4,GENERAL EXPENDITURES,SUPPLIES AND MATERIALS,DETAIL,2020-10-08,AP,1341589,CDW GOVERNMENT LLC,2020-07-06,2020-07-06,OFFICE SUPPLIES (OUTSIDE) QTY - 16,1621.44,2020
,2020 REPUBLICAN CONFERENCE,4,GENERAL EXPENDITURES,SUPPLIES AND MATERIALS,DETAIL,2020-10-14,AP,1341196,CITI PCARD-AMZN Mktp US M443O5KA2,2020-09-26,2020-09-26,OFFICE SUPPLIES (OUTSIDE),55.96,2020
,2020 REPUBLICAN CONFERENCE,4,GENERAL EXPENDITURES,SUPPLIES AND MATERIALS,DETAIL,2020-10-14,AP,1341196,CITI PCARD-AMZN Mktp US M47J02LS0,2020-09-17,2020-09-17,OFFICE SUPPLIES (OUTSIDE),18.99,2020
,2020 REPUBLICAN CONFERENCE,4,GENERAL EXPENDITURES,SUPPLIES AND MATERIALS,DETAIL,2020-10-14,AP,1341196,CITI PCARD-AMZN Mktp US M497Q1C30,2020-09-17,2020-09-17,OFFICE SUPPLIES (OUTSIDE),27.98,2020
,2020 REPUBLICAN CONFERENCE,4,GENERAL EXPENDITURES,SUPPLIES AND MATERIALS,DETAIL,2020-10-14,AP,1341196,CITI PCARD-AMZN Mktp US M49YL4V61,2020-09-17,2020-09-17,OFFICE SUPPLIES (OUTSIDE),296.89,2020
,2020 REPUBLICAN CONFERENCE,4,GENERAL EXPENDITURES,SUPPLIES AND MATERIALS,DETAIL,2020-10-14,AP,1341196,CITI PCARD-AMZN Mktp US MV12U6ZZ1,2020-07-14,2020-07-14,OFFICE SUPPLIES (OUTSIDE),19.98,2020
,2020 REPUBLICAN CONFERENCE,4,GENERAL EXPENDITURES,SUPPLIES AND MATERIALS,DETAIL,2020-10-14,AP,1341196,CITI PCARD-Amazon.com MU38E0TX2,2020-09-01,2020-09-01,OFFICE SUPPLIES (OUTSIDE),262.35,2020
,2020 REPUBLICAN CONFERENCE,4,GENERAL EXPENDITURES,SUPPLIES AND MATERIALS,DETAIL,2020-10-14,AP,1341196,CITI PCARD-CASPER STAR TRIBUNE,2020-09-12,2020-10-12,PUBLICATIONS/REFERENCE MAT'L,9.99,2020
,2020 REPUBLICAN CONFERENCE,4,GENERAL EXPENDITURES,SUPPLIES AND MATERIALS,DETAIL,2020-10-14,AP,1341196,CITI PCARD-D J WALL-ST-JOURNAL,2020-09-02,2020-10-03,PUBLICATIONS/REFERENCE MAT'L,41.33,2020
,2020 REPUBLICAN CONFERENCE,4,GENERAL EXPENDITURES,SUPPLIES AND MATERIALS,DETAIL,2020-10-14,AP,1341196,CITI PCARD-ENVATO,2020-09-24,2020-10-24,SOFTWARE  LESS THAN  $500,33,2020
,2020 REPUBLICAN CONFERENCE,4,GENERAL EXPENDITURES,SUPPLIES AND MATERIALS,DETAIL,2020-10-14,AP,1341196,CITI PCARD-GOOGLE GOOGLE STORAGE,2020-09-17,2020-10-17,SOFTWARE  LESS THAN  $500,10.59,2020
,2020 REPUBLICAN CONFERENCE,4,GENERAL EXPENDITURES,SUPPLIES AND MATERIALS,DETAIL,2020-10-14,AP,1341196,CITI PCARD-LEGISTORM LLC,2020-09-01,2020-10-01,PUBLICATIONS/REFERENCE MAT'L,11.61,2020
,2020 REPUBLICAN CONFERENCE,4,GENERAL EXPENDITURES,SUPPLIES AND MATERIALS,DETAIL,2020-10-14,AP,1341196,CITI PCARD-NOUNPROJECT.COM,2020-09-21,2020-10-21,PUBLICATIONS/REFERENCE MAT'L,9.99,2020
,2020 REPUBLICAN CONFERENCE,4,GENERAL EXPENDITURES,SUPPLIES AND MATERIALS,DETAIL,2020-10-14,AP,1341196,CITI PCARD-NYTIMES,2020-09-25,2020-10-23,PUBLICATIONS/REFERENCE MAT'L,15.9,2020
,2020 REPUBLICAN CONFERENCE,4,GENERAL EXPENDITURES,SUPPLIES AND MATERIALS,DETAIL,2020-10-14,AP,1341196,CITI PCARD-PERSONAL PAYMENT,2020-07-14,2020-07-14,OFFICE SUPPLIES (OUTSIDE),-19.98,2020
,2020 REPUBLICAN CONFERENCE,4,GENERAL EXPENDITURES,SUPPLIES AND MATERIALS,DETAIL,2020-10-14,AP,1341196,CITI PCARD-SoundCloud Inc,2020-09-15,2020-10-15,SOFTWARE  LESS THAN  $500,16,2020
,2020 REPUBLICAN CONFERENCE,4,GENERAL EXPENDITURES,SUPPLIES AND MATERIALS,DETAIL,2020-10-14,AP,1341196,CITI PCARD-THEDAILYBEASONLINE,2020-09-01,2020-10-01,PUBLICATIONS/REFERENCE MAT'L,1,2020
,2020 REPUBLICAN CONFERENCE,4,GENERAL EXPENDITURES,SUPPLIES AND MATERIALS,DETAIL,2020-10-14,AP,1341196,CITI PCARD-WAVVE SUBSCRIPTION,2020-09-04,2020-10-04,PUBLICATIONS/REFERENCE MAT'L,10,2020
,2020 REPUBLICAN CONFERENCE,4,GENERAL EXPENDITURES,SUPPLIES AND MATERIALS,DETAIL,2020-10-14,AP,1341196,CITI PCARD-ZOOM.US,2020-08-28,2020-09-27,SOFTWARE  LESS THAN  $500,104.94,2020
,2020 REPUBLICAN CONFERENCE,4,GENERAL EXPENDITURES,SUPPLIES AND MATERIALS,DETAIL,2020-10-30,GL,RMS0101913, ,2020-10-01,2020-10-31,OFFICE SUPPLY (TRANSFER),126.46,2020
,2020 REPUBLICAN CONFERENCE,4,GENERAL EXPENDITURES,SUPPLIES AND MATERIALS,DETAIL,2020-11-16,AP,1352162,CITI PCARD-AMZN MKTP US 2T1YW7WE1 AM,2020-10-26,2020-10-26,OFFICE SUPPLIES (OUTSIDE),110.97,2020
,2020 REPUBLICAN CONFERENCE,4,GENERAL EXPENDITURES,SUPPLIES AND MATERIALS,DETAIL,2020-11-16,AP,1352162,CITI PCARD-AMZN Mktp US 2T1ZZ7RH0,2020-10-26,2020-10-26,OFFICE SUPPLIES (OUTSIDE),269.9,2020
,2020 REPUBLICAN CONFERENCE,4,GENERAL EXPENDITURES,SUPPLIES AND MATERIALS,DETAIL,2020-11-16,AP,1352162,CITI PCARD-AMZN Mktp US 2T4BL4Y90,2020-10-27,2020-10-27,OFFICE SUPPLIES (OUTSIDE),22.99,2020
,2020 REPUBLICAN CONFERENCE,4,GENERAL EXPENDITURES,SUPPLIES AND MATERIALS,DETAIL,2020-11-16,AP,1352162,CITI PCARD-AMZN Mktp US 2T4VQ5D40,2020-10-23,2020-10-23,OFFICE SUPPLIES (OUTSIDE),64.44,2020
,2020 REPUBLICAN CONFERENCE,4,GENERAL EXPENDITURES,SUPPLIES AND MATERIALS,DETAIL,2020-11-16,AP,1352162,CITI PCARD-AMZN Mktp US 2T97482K2,2020-10-26,2020-10-26,OFFICE SUPPLIES (OUTSIDE),79.9,2020
,2020 REPUBLICAN CONFERENCE,4,GENERAL EXPENDITURES,SUPPLIES AND MATERIALS,DETAIL,2020-11-16,AP,1352162,CITI PCARD-AMZN Mktp US MK1UH6MC1,2020-10-03,2020-10-03,OFFICE SUPPLIES (OUTSIDE),222.56,2020
,2020 REPUBLICAN CONFERENCE,4,GENERAL EXPENDITURES,SUPPLIES AND MATERIALS,DETAIL,2020-11-16,AP,1352162,CITI PCARD-AMZN Mktp US MK4UX7VS2,2020-10-03,2020-10-03,OFFICE SUPPLIES (OUTSIDE),133.22,2020
,2020 REPUBLICAN CONFERENCE,4,GENERAL EXPENDITURES,SUPPLIES AND MATERIALS,DETAIL,2020-11-16,AP,1352162,CITI PCARD-AMZN Mktp US MK9TI66Z2,2020-10-05,2020-10-05,OFFICE SUPPLIES (OUTSIDE),319.99,2020
,2020 REPUBLICAN CONFERENCE,4,GENERAL EXPENDITURES,SUPPLIES AND MATERIALS,DETAIL,2020-11-16,AP,1352162,CITI PCARD-APG ROCKIES CIRCULATION,2020-10-19,2020-11-15,PUBLICATIONS/REFERENCE MAT'L,15,2020
,2020 REPUBLICAN CONFERENCE,4,GENERAL EXPENDITURES,SUPPLIES AND MATERIALS,DETAIL,2020-11-16,AP,1352162,CITI PCARD-BLOOMBERG.COM,2020-10-10,2021-10-09,PUBLICATIONS/REFERENCE MAT'L,415,2020
,2020 REPUBLICAN CONFERENCE,4,GENERAL EXPENDITURES,SUPPLIES AND MATERIALS,DETAIL,2020-11-16,AP,1352162,CITI PCARD-CASPER STAR TRIBUNE,2020-10-13,2020-11-13,PUBLICATIONS/REFERENCE MAT'L,9.99,2020
,2020 REPUBLICAN CONFERENCE,4,GENERAL EXPENDITURES,SUPPLIES AND MATERIALS,DETAIL,2020-11-16,AP,1352162,CITI PCARD-D J WALL-ST-JOURNAL,2020-10-03,2020-11-03,PUBLICATIONS/REFERENCE MAT'L,41.33,2020
,2020 REPUBLICAN CONFERENCE,4,GENERAL EXPENDITURES,SUPPLIES AND MATERIALS,DETAIL,2020-11-16,AP,1352162,CITI PCARD-D J WALL-ST-JOURNAL,2020-10-10,2020-11-10,PUBLICATIONS/REFERENCE MAT'L,12.72,2020
,2020 REPUBLICAN CONFERENCE,4,GENERAL EXPENDITURES,SUPPLIES AND MATERIALS,DETAIL,2020-11-16,AP,1352162,CITI PCARD-ENVATO,2020-10-24,2020-11-24,SOFTWARE  LESS THAN  $500,33,2020
,2020 REPUBLICAN CONFERENCE,4,GENERAL EXPENDITURES,SUPPLIES AND MATERIALS,DETAIL,2020-11-16,AP,1352162,CITI PCARD-GOOGLE GOOGLE STORAGE,2020-10-17,2020-11-17,SOFTWARE  LESS THAN  $500,10.59,2020
,2020 REPUBLICAN CONFERENCE,4,GENERAL EXPENDITURES,SUPPLIES AND MATERIALS,DETAIL,2020-11-16,AP,1352162,CITI PCARD-JHUP JOURNALS,2020-10-22,2020-10-22,PUBLICATIONS/REFERENCE MAT'L,20,2020
,2020 REPUBLICAN CONFERENCE,4,GENERAL EXPENDITURES,SUPPLIES AND MATERIALS,DETAIL,2020-11-16,AP,1352162,CITI PCARD-LEGISTORM LLC,2020-10-01,2020-11-01,PUBLICATIONS/REFERENCE MAT'L,11.61,2020
,2020 REPUBLICAN CONFERENCE,4,GENERAL EXPENDITURES,SUPPLIES AND MATERIALS,DETAIL,2020-11-16,AP,1352162,CITI PCARD-NOUNPROJECT.COM,2020-10-21,2020-11-21,PUBLICATIONS/REFERENCE MAT'L,9.99,2020
,2020 REPUBLICAN CONFERENCE,4,GENERAL EXPENDITURES,SUPPLIES AND MATERIALS,DETAIL,2020-11-16,AP,1352162,CITI PCARD-NYTIMES,2020-10-23,2020-11-20,PUBLICATIONS/REFERENCE MAT'L,15.9,2020
,2020 REPUBLICAN CONFERENCE,4,GENERAL EXPENDITURES,SUPPLIES AND MATERIALS,DETAIL,2020-11-16,AP,1352162,CITI PCARD-STAPLES DIRECT,2020-10-05,2020-10-05,OFFICE SUPPLIES (OUTSIDE),131.43,2020
,2020 REPUBLICAN CONFERENCE,4,GENERAL EXPENDITURES,SUPPLIES AND MATERIALS,DETAIL,2020-11-16,AP,1352162,CITI PCARD-SoundCloud Inc,2020-10-15,2020-11-15,SOFTWARE  LESS THAN  $500,16,2020
,2020 REPUBLICAN CONFERENCE,4,GENERAL EXPENDITURES,SUPPLIES AND MATERIALS,DETAIL,2020-11-16,AP,1352162,CITI PCARD-THEDAILYBEASONLINE,2020-10-01,2020-11-01,PUBLICATIONS/REFERENCE MAT'L,4.99,2020
,2020 REPUBLICAN CONFERENCE,4,GENERAL EXPENDITURES,SUPPLIES AND MATERIALS,DETAIL,2020-11-16,AP,1352162,CITI PCARD-WAVVE SUBSCRIPTION,2020-10-04,2020-11-04,PUBLICATIONS/REFERENCE MAT'L,10,2020
,2020 REPUBLICAN CONFERENCE,4,GENERAL EXPENDITURES,SUPPLIES AND MATERIALS,DETAIL,2020-11-16,AP,1352162,CITI PCARD-ZOOM.US,2020-09-28,2020-10-27,SOFTWARE  LESS THAN  $500,104.94,2020
,2020 REPUBLICAN CONFERENCE,4,GENERAL EXPENDITURES,SUPPLIES AND MATERIALS,DETAIL,2020-11-30,GL,RMS0102573, ,2020-11-01,2020-11-30,OFFICE SUPPLY (TRANSFER),334.58,2020
,2020 REPUBLICAN CONFERENCE,4,GENERAL EXPENDITURES,SUPPLIES AND MATERIALS,DETAIL,2020-12-07,AP,1360581,CRITICAL MENTION,2021-01-01,2021-12-31,PUBLICATIONS/REFERENCE MAT'L,5400,2020
,2020 REPUBLICAN CONFERENCE,4,GENERAL EXPENDITURES,SUPPLIES AND MATERIALS,DETAIL,2020-12-11,AP,1362202,TVEYES INC,2021-01-01,2022-12-31,PUBLICATIONS/REFERENCE MAT'L,5400,2020
,2020 REPUBLICAN CONFERENCE,4,GENERAL EXPENDITURES,SUPPLIES AND MATERIALS,DETAIL,2020-12-22,AP,1362725,CITI PCARD-AMAZON.COM 287YJ7CW0 AMZN,2020-10-27,2020-10-27,OFFICE SUPPLIES (OUTSIDE),249.96,2020
,2020 REPUBLICAN CONFERENCE,4,GENERAL EXPENDITURES,SUPPLIES AND MATERIALS,DETAIL,2020-12-22,AP,1362725,CITI PCARD-AMZN Mktp US 2040A7LZ0,2020-11-11,2020-11-11,OFFICE SUPPLIES (OUTSIDE),50.22,2020
,2020 REPUBLICAN CONFERENCE,4,GENERAL EXPENDITURES,SUPPLIES AND MATERIALS,DETAIL,2020-12-22,AP,1362725,CITI PCARD-AMZN Mktp US 205VR1LW1,2020-11-11,2020-11-11,OFFICE SUPPLIES (OUTSIDE),397.9,2020
,2020 REPUBLICAN CONFERENCE,4,GENERAL EXPENDITURES,SUPPLIES AND MATERIALS,DETAIL,2020-12-22,AP,1362725,CITI PCARD-AMZN Mktp US 205WQ4002,2020-11-17,2020-11-17,OFFICE SUPPLIES (OUTSIDE),74.95,2020
,2020 REPUBLICAN CONFERENCE,4,GENERAL EXPENDITURES,SUPPLIES AND MATERIALS,DETAIL,2020-12-22,AP,1362725,CITI PCARD-AMZN Mktp US 2T2SA8YS2,2020-10-28,2020-10-28,OFFICE SUPPLIES (OUTSIDE),299.95,2020
,2020 REPUBLICAN CONFERENCE,4,GENERAL EXPENDITURES,SUPPLIES AND MATERIALS,DETAIL,2020-12-22,AP,1362725,CITI PCARD-APG ROCKIES CIRCULATION,2020-11-16,2020-12-13,PUBLICATIONS/REFERENCE MAT'L,15,2020
,2020 REPUBLICAN CONFERENCE,4,GENERAL EXPENDITURES,SUPPLIES AND MATERIALS,DETAIL,2020-12-22,AP,1362725,CITI PCARD-Amazon.com HU1TO7M63,2020-11-17,2020-11-17,OFFICE SUPPLIES (OUTSIDE),178,2020
,2020 REPUBLICAN CONFERENCE,4,GENERAL EXPENDITURES,SUPPLIES AND MATERIALS,DETAIL,2020-12-22,AP,1362725,CITI PCARD-Ball Chain Mfg Co,2020-11-23,2020-11-23,OFFICE SUPPLIES (OUTSIDE),190,2020
,2020 REPUBLICAN CONFERENCE,4,GENERAL EXPENDITURES,SUPPLIES AND MATERIALS,DETAIL,2020-12-22,AP,1362725,CITI PCARD-CASPER STAR TRIBUNE,2020-11-12,2020-12-12,PUBLICATIONS/REFERENCE MAT'L,9.99,2020
,2020 REPUBLICAN CONFERENCE,4,GENERAL EXPENDITURES,SUPPLIES AND MATERIALS,DETAIL,2020-12-22,AP,1362725,CITI PCARD-D J WALL-ST-JOURNAL,2020-11-02,2020-12-02,PUBLICATIONS/REFERENCE MAT'L,41.33,2020
,2020 REPUBLICAN CONFERENCE,4,GENERAL EXPENDITURES,SUPPLIES AND MATERIALS,DETAIL,2020-12-22,AP,1362725,CITI PCARD-ENVATO,2020-11-24,2020-12-24,SOFTWARE  LESS THAN  $500,33,2020
,2020 REPUBLICAN CONFERENCE,4,GENERAL EXPENDITURES,SUPPLIES AND MATERIALS,DETAIL,2020-12-22,AP,1362725,CITI PCARD-FPMFOREIGNPOLICYMAG,2020-10-31,2021-10-31,PUBLICATIONS/REFERENCE MAT'L,99.99,2020
,2020 REPUBLICAN CONFERENCE,4,GENERAL EXPENDITURES,SUPPLIES AND MATERIALS,DETAIL,2020-12-22,AP,1362725,CITI PCARD-Google,2020-11-17,2020-12-17,SOFTWARE  LESS THAN  $500,10.59,2020
,2020 REPUBLICAN CONFERENCE,4,GENERAL EXPENDITURES,SUPPLIES AND MATERIALS,DETAIL,2020-12-22,AP,1362725,CITI PCARD-LEGISTORM LLC,2020-11-01,2020-12-01,PUBLICATIONS/REFERENCE MAT'L,11.61,2020
,2020 REPUBLICAN CONFERENCE,4,GENERAL EXPENDITURES,SUPPLIES AND MATERIALS,DETAIL,2020-12-22,AP,1362725,CITI PCARD-NOUNPROJECT.COM,2020-11-21,2020-12-21,PUBLICATIONS/REFERENCE MAT'L,9.99,2020
,2020 REPUBLICAN CONFERENCE,4,GENERAL EXPENDITURES,SUPPLIES AND MATERIALS,DETAIL,2020-12-22,AP,1362725,CITI PCARD-NYTimes NYTimes,2020-11-20,2020-12-18,PUBLICATIONS/REFERENCE MAT'L,15.9,2020
,2020 REPUBLICAN CONFERENCE,4,GENERAL EXPENDITURES,SUPPLIES AND MATERIALS,DETAIL,2020-12-22,AP,1362725,CITI PCARD-SoundCloud Inc,2020-11-14,2020-12-14,SOFTWARE  LESS THAN  $500,16,2020
,2020 REPUBLICAN CONFERENCE,4,GENERAL EXPENDITURES,SUPPLIES AND MATERIALS,DETAIL,2020-12-22,AP,1362725,CITI PCARD-TARGET        00010769,2020-11-19,2020-11-19,OFFICE SUPPLIES (OUTSIDE),67.84,2020
,2020 REPUBLICAN CONFERENCE,4,GENERAL EXPENDITURES,SUPPLIES AND MATERIALS,DETAIL,2020-12-22,AP,1362725,CITI PCARD-THEDAILYBEASONLINE,2020-11-01,2020-12-01,PUBLICATIONS/REFERENCE MAT'L,4.99,2020
,2020 REPUBLICAN CONFERENCE,4,GENERAL EXPENDITURES,SUPPLIES AND MATERIALS,DETAIL,2020-12-22,AP,1362725,CITI PCARD-TRIAL   TRIAL BUS INS,2020-11-13,2020-12-13,PUBLICATIONS/REFERENCE MAT'L,1,2020
,2020 REPUBLICAN CONFERENCE,4,GENERAL EXPENDITURES,SUPPLIES AND MATERIALS,DETAIL,2020-12-22,AP,1362725,CITI PCARD-WAVVE SUBSCRIPTION,2020-11-04,2020-12-04,PUBLICATIONS/REFERENCE MAT'L,10,2020
,2020 REPUBLICAN CONFERENCE,4,GENERAL EXPENDITURES,SUPPLIES AND MATERIALS,DETAIL,2020-12-22,AP,1362725,CITI PCARD-ZOOM.US,2020-10-28,2020-11-27,SOFTWARE  LESS THAN  $500,104.94,2020
,2020 REPUBLICAN CONFERENCE,4,GENERAL EXPENDITURES,SUPPLIES AND MATERIALS,DETAIL,2020-12-31,AP,1369653,POLITICO LLC,2021-02-06,2022-02-05,PUBLICATIONS/REFERENCE MAT'L,7450,2020
,2020 REPUBLICAN CONFERENCE,4,GENERAL EXPENDITURES,SUPPLIES AND MATERIALS,DETAIL,2020-12-31,GL,RMS0103333, ,2020-12-01,2020-12-31,OFFICE SUPPLY (TRANSFER),408.04,2020
,2020 REPUBLICAN CONFERENCE,4,GENERAL EXPENDITURES,SUPPLIES AND MATERIALS,SUBTOTAL,   ,   ,   ,   ,   ,   ,SUPPLIES AND MATERIALS TOTALS:,25646.65,2020
,2020 REPUBLICAN CONFERENCE,4,GENERAL EXPENDITURES,EQUIPMENT,DETAIL,2020-10-08,AP,1341278,CDW GOVERNMENT LLC,2020-06-12,2020-06-12,COMPUTER HARDW PURCH  LESS THAN $25 000,2646.24,2020
,2020 REPUBLICAN CONFERENCE,4,GENERAL EXPENDITURES,EQUIPMENT,DETAIL,2020-10-30,GL,MNT0101914, ,2020-10-01,2020-10-31,MAINTENANCE / REPAIRS,647.75,2020
,2020 REPUBLICAN CONFERENCE,4,GENERAL EXPENDITURES,EQUIPMENT,DETAIL,2020-11-30,GL,MNT0102510, ,2020-11-01,2020-11-30,MAINTENANCE / REPAIRS,647.75,2020
,2020 REPUBLICAN CONFERENCE,4,GENERAL EXPENDITURES,EQUIPMENT,DETAIL,2020-12-21,AP,1368097,BERMAN DATABASE SYSTEMS,2021-01-01,2022-12-31,MAINTENANCE / REPAIRS,4800,2020
,2020 REPUBLICAN CONFERENCE,4,GENERAL EXPENDITURES,EQUIPMENT,DETAIL,2020-12-22,AP,1368907,WHITAKER BROTHERS BUSINESS MACHINES,2020-11-12,2020-11-12,MAINTENANCE / REPAIRS,680,2020
,2020 REPUBLICAN CONFERENCE,4,GENERAL EXPENDITURES,EQUIPMENT,DETAIL,2020-12-31,GL,MNT0103285, ,2020-12-01,2020-12-31,MAINTENANCE / REPAIRS,647.75,2020
,2020 REPUBLICAN CONFERENCE,4,GENERAL EXPENDITURES,EQUIPMENT,SUBTOTAL,   ,   ,   ,   ,   ,   ,EQUIPMENT TOTALS:,10069.49,2020
,2020 REPUBLICAN CONFERENCE,4,GENERAL EXPENDITURES,EQUIPMENT,SUBTOTAL,   ,   ,   ,   ,   ,   ,GENERAL EXPENDITURES TOTALS:,455368.08,2020
,2020 REPUBLICAN CONFERENCE,4,GENERAL EXPENDITURES,EQUIPMENT,GRAND TOTAL FOR ORGANIZATION,   ,   ,   ,   ,   ,   ,OFFICE TOTALS: ,455368.08,2020
,2020 REPUBLICAN CONFERENCE,4,INTERN ALLOWANCES,PERSONNEL COMPENSATION,DETAIL,   ,   ,   ,PADILLA TRUDE R.,2020-10-01,2020-12-16,REPUB CONF PAID INTERN - HOUSE,3800,2020
,2020 REPUBLICAN CONFERENCE,4,INTERN ALLOWANCES,PERSONNEL COMPENSATION,DETAIL,   ,   ,   ,SANCHEZ TREJO CARLA A,2020-12-11,2020-12-31,REPUB CONF PAID INTERN - HOUSE,1200,2020
,2020 REPUBLICAN CONFERENCE,4,INTERN ALLOWANCES,PERSONNEL COMPENSATION,SUBTOTAL,   ,   ,   ,   ,   ,   ,PERSONNEL COMPENSATION TOTALS:,5000,2020
,2020 REPUBLICAN CONFERENCE,4,INTERN ALLOWANCES,PERSONNEL COMPENSATION,SUBTOTAL,   ,   ,   ,   ,   ,   ,INTERN ALLOWANCES TOTALS:,5000,2020
,2020 REPUBLICAN CONFERENCE,4,INTERN ALLOWANCES,PERSONNEL COMPENSATION,GRAND TOTAL FOR ORGANIZATION,   ,   ,   ,   ,   ,   ,OFFICE TOTALS: ,5000,2020
,FISCAL YEAR 2021 CHIEF ADMIN OFCR OF THE HOUSE,4,SALARIES  OFFICERS & EMPLOYEES,PERSONNEL COMPENSATION,DETAIL,   ,   ,   ,ABBOTT JESSICA A.,2020-10-01,2020-12-31,WORKFORCE ANALYST,38253.24,2020
,FISCAL YEAR 2021 CHIEF ADMIN OFCR OF THE HOUSE,4,SALARIES  OFFICERS & EMPLOYEES,PERSONNEL COMPENSATION,DETAIL,   ,   ,   ,ABEL TIMOTHY,2020-10-01,2020-12-31,SR TECHNICAL SUPPORT REP (A),28571.01,2020
,FISCAL YEAR 2021 CHIEF ADMIN OFCR OF THE HOUSE,4,SALARIES  OFFICERS & EMPLOYEES,PERSONNEL COMPENSATION,DETAIL,   ,   ,   ,ACUESTA JULY J,2020-10-01,2020-12-31,SENIOR SYSTEMS ENGINEER,32811,2020
,FISCAL YEAR 2021 CHIEF ADMIN OFCR OF THE HOUSE,4,SALARIES  OFFICERS & EMPLOYEES,PERSONNEL COMPENSATION,DETAIL,   ,   ,   ,ADELAKUN DEEN A.,2020-10-01,2020-12-31,SR TECH SOLUTIONS ENGINEER,27034.74,2020
,FISCAL YEAR 2021 CHIEF ADMIN OFCR OF THE HOUSE,4,SALARIES  OFFICERS & EMPLOYEES,PERSONNEL COMPENSATION,DETAIL,   ,   ,   ,ADENIJI ADERONKE F,2020-10-01,2020-12-31,DIRECTOR  INFORMATION ASSURANC,43475.01,2020
,FISCAL YEAR 2021 CHIEF ADMIN OFCR OF THE HOUSE,4,SALARIES  OFFICERS & EMPLOYEES,PERSONNEL COMPENSATION,DETAIL,   ,   ,   ,ADEYEMI OLUWATOYIN J,2020-10-01,2020-12-31,COMPUTER FACILITIES OP MGR (A),33148.74,2020
,FISCAL YEAR 2021 CHIEF ADMIN OFCR OF THE HOUSE,4,SALARIES  OFFICERS & EMPLOYEES,PERSONNEL COMPENSATION,DETAIL,   ,   ,   ,AFRAM AMANDA A,2020-10-01,2020-12-31,SR INFO SYST. SECURITY ANALYST,26816.76,2020
,FISCAL YEAR 2021 CHIEF ADMIN OFCR OF THE HOUSE,4,SALARIES  OFFICERS & EMPLOYEES,PERSONNEL COMPENSATION,DETAIL,   ,   ,   ,AGNEW ROSE M.,2020-10-01,2020-12-31,SR PAYROLL & BENS GENERALIST,24980.25,2020
,FISCAL YEAR 2021 CHIEF ADMIN OFCR OF THE HOUSE,4,SALARIES  OFFICERS & EMPLOYEES,PERSONNEL COMPENSATION,DETAIL,   ,   ,   ,AHMAD VIQUAR,2020-10-01,2020-12-31,ASSISTANT CAO,43475.01,2020
,FISCAL YEAR 2021 CHIEF ADMIN OFCR OF THE HOUSE,4,SALARIES  OFFICERS & EMPLOYEES,PERSONNEL COMPENSATION,DETAIL,   ,   ,   ,AHMED MUNEER,2020-10-01,2020-12-31,APPLICATION SYSTEMS ADMINISTRA,36337.74,2020
,FISCAL YEAR 2021 CHIEF ADMIN OFCR OF THE HOUSE,4,SALARIES  OFFICERS & EMPLOYEES,PERSONNEL COMPENSATION,DETAIL,   ,   ,   ,AHUJA KALPANA A.,2020-10-01,2020-12-31,DIRECTOR WEB SYSTEMS,39837.24,2020
,FISCAL YEAR 2021 CHIEF ADMIN OFCR OF THE HOUSE,4,SALARIES  OFFICERS & EMPLOYEES,PERSONNEL COMPENSATION,DETAIL,   ,   ,   ,AKULA MALLIKARJUNA R,2020-10-01,2020-12-31,SENIOR SOFTWARE SPECIALIST,39135,2020
,FISCAL YEAR 2021 CHIEF ADMIN OFCR OF THE HOUSE,4,SALARIES  OFFICERS & EMPLOYEES,PERSONNEL COMPENSATION,DETAIL,   ,   ,   ,ALEXANDER GORDON,2020-10-01,2020-12-31,TEAM COORDINATOR,26816.76,2020
,FISCAL YEAR 2021 CHIEF ADMIN OFCR OF THE HOUSE,4,SALARIES  OFFICERS & EMPLOYEES,PERSONNEL COMPENSATION,DETAIL,   ,   ,   ,ALLEN KEITH L,2020-10-01,2020-12-31,JOURNEYMAN CABINET MAKER,17088.51,2020
,FISCAL YEAR 2021 CHIEF ADMIN OFCR OF THE HOUSE,4,SALARIES  OFFICERS & EMPLOYEES,PERSONNEL COMPENSATION,DETAIL,   ,   ,   ,ALLISON KEVIN M.,2020-10-01,2020-12-31,LOGISTICS & DIST SPEC (A),16248.51,2020
,FISCAL YEAR 2021 CHIEF ADMIN OFCR OF THE HOUSE,4,SALARIES  OFFICERS & EMPLOYEES,PERSONNEL COMPENSATION,DETAIL,   ,   ,   ,ALSTON JR FELIX E.,2020-10-01,2020-12-31,SR NETWORK COMM SPECIALIST (A),33148.74,2020
,FISCAL YEAR 2021 CHIEF ADMIN OFCR OF THE HOUSE,4,SALARIES  OFFICERS & EMPLOYEES,PERSONNEL COMPENSATION,DETAIL,   ,   ,   ,ALSTON MARK A,2020-10-01,2020-12-31,TECH SOLUTIONS ENGINEER,22036.74,2020
,FISCAL YEAR 2021 CHIEF ADMIN OFCR OF THE HOUSE,4,SALARIES  OFFICERS & EMPLOYEES,PERSONNEL COMPENSATION,DETAIL,   ,   ,   ,ALVEY LISA M.,2020-10-01,2020-12-31,FINANCIAL COUNSELOR,24296.25,2020
,FISCAL YEAR 2021 CHIEF ADMIN OFCR OF THE HOUSE,4,SALARIES  OFFICERS & EMPLOYEES,PERSONNEL COMPENSATION,DETAIL,   ,   ,   ,AMES KENNETH S,2020-10-01,2020-12-31,CUSTOMER ADVOCATE,21135.51,2020
,FISCAL YEAR 2021 CHIEF ADMIN OFCR OF THE HOUSE,4,SALARIES  OFFICERS & EMPLOYEES,PERSONNEL COMPENSATION,DETAIL,   ,   ,   ,AMINZADAH ROUHULLAH,2020-10-01,2020-12-31,TECHNOLOGY PARTNER,24462.99,2020
,FISCAL YEAR 2021 CHIEF ADMIN OFCR OF THE HOUSE,4,SALARIES  OFFICERS & EMPLOYEES,PERSONNEL COMPENSATION,DETAIL,   ,   ,   ,AMIS ANNA M,2020-10-01,2020-12-31,EXECUTIVE ASSISTANT,20985.26,2020
,FISCAL YEAR 2021 CHIEF ADMIN OFCR OF THE HOUSE,4,SALARIES  OFFICERS & EMPLOYEES,PERSONNEL COMPENSATION,DETAIL,   ,   ,   ,ANDERSEN FREDERIC E.,2020-10-01,2020-12-31,ASSISTANT DIRECTOR,27034.74,2020
,FISCAL YEAR 2021 CHIEF ADMIN OFCR OF THE HOUSE,4,SALARIES  OFFICERS & EMPLOYEES,PERSONNEL COMPENSATION,DETAIL,   ,   ,   ,ANDERSON DENINE,2020-10-01,2020-12-31,SPECIAL ASSISTANT,29911.5,2020
,FISCAL YEAR 2021 CHIEF ADMIN OFCR OF THE HOUSE,4,SALARIES  OFFICERS & EMPLOYEES,PERSONNEL COMPENSATION,DETAIL,   ,   ,   ,ANDERSON DONTRELL,2020-10-01,2020-12-31,FINANCIAL COUNSELOR,20000.01,2020
,FISCAL YEAR 2021 CHIEF ADMIN OFCR OF THE HOUSE,4,SALARIES  OFFICERS & EMPLOYEES,PERSONNEL COMPENSATION,DETAIL,   ,   ,   ,ANDERSON KYLE D.,2020-10-01,2020-12-31,DIRECTOR  MARKETING,40544.25,2020
,FISCAL YEAR 2021 CHIEF ADMIN OFCR OF THE HOUSE,4,SALARIES  OFFICERS & EMPLOYEES,PERSONNEL COMPENSATION,DETAIL,   ,   ,   ,ANDERSON TIARA S,2020-10-01,2020-12-31,EMPLOYEE ASSISTANCE COUNSELOR,21135.51,2020
,FISCAL YEAR 2021 CHIEF ADMIN OFCR OF THE HOUSE,4,SALARIES  OFFICERS & EMPLOYEES,PERSONNEL COMPENSATION,DETAIL,   ,   ,   ,ANDREWS THOMAS,2020-10-01,2020-12-31,DIRECTOR  ENTERPRISE INFRASTRU,42666.75,2020
,FISCAL YEAR 2021 CHIEF ADMIN OFCR OF THE HOUSE,4,SALARIES  OFFICERS & EMPLOYEES,PERSONNEL COMPENSATION,DETAIL,   ,   ,   ,ANTHONY TONY,2020-10-01,2020-12-31,BROADCAST ENGINEER/PROD SPEC.,23607.84,2020
,FISCAL YEAR 2021 CHIEF ADMIN OFCR OF THE HOUSE,4,SALARIES  OFFICERS & EMPLOYEES,PERSONNEL COMPENSATION,DETAIL,   ,   ,   ,ANTHONY TONY,2020-10-01,2020-11-30,BROADCAST ENGINEER/PROD SPEC. (OVERTIME),540.81,2020
,FISCAL YEAR 2021 CHIEF ADMIN OFCR OF THE HOUSE,4,SALARIES  OFFICERS & EMPLOYEES,PERSONNEL COMPENSATION,DETAIL,   ,   ,   ,APARICIO LUIS A.,2020-10-01,2020-12-31,REC/WAREHOUSE SPEC (A),13581,2020
,FISCAL YEAR 2021 CHIEF ADMIN OFCR OF THE HOUSE,4,SALARIES  OFFICERS & EMPLOYEES,PERSONNEL COMPENSATION,DETAIL,   ,   ,   ,APPIAH JOYCE S,2020-10-01,2020-12-31,SENIOR BENEFITS SPECIALIST,30424.26,2020
,FISCAL YEAR 2021 CHIEF ADMIN OFCR OF THE HOUSE,4,SALARIES  OFFICERS & EMPLOYEES,PERSONNEL COMPENSATION,DETAIL,   ,   ,   ,ARJEV MICHAEL,2020-10-01,2020-12-31,PROGRAM MANAGER,33998.67,2020
,FISCAL YEAR 2021 CHIEF ADMIN OFCR OF THE HOUSE,4,SALARIES  OFFICERS & EMPLOYEES,PERSONNEL COMPENSATION,DETAIL,   ,   ,   ,ARMOUR TIANA C,2020-10-01,2020-12-31,PAYROLL & BENEFITS ASSISTANT,13970.76,2020
,FISCAL YEAR 2021 CHIEF ADMIN OFCR OF THE HOUSE,4,SALARIES  OFFICERS & EMPLOYEES,PERSONNEL COMPENSATION,DETAIL,   ,   ,   ,ARMSTRONG JANCIERA C,2020-10-01,2020-12-31,DEPUTY CHIEF CUSTOMER OFFICER,43230.33,2020
,FISCAL YEAR 2021 CHIEF ADMIN OFCR OF THE HOUSE,4,SALARIES  OFFICERS & EMPLOYEES,PERSONNEL COMPENSATION,DETAIL,   ,   ,   ,ARNESON JEFFERY L,2020-10-01,2020-12-31,DRAPERY INSTALLER,14360.25,2020
,FISCAL YEAR 2021 CHIEF ADMIN OFCR OF THE HOUSE,4,SALARIES  OFFICERS & EMPLOYEES,PERSONNEL COMPENSATION,DETAIL,   ,   ,   ,ARNESON JEFFERY L,2020-10-01,2020-10-31,DRAPERY INSTALLER (OVERTIME),124.27,2020
,FISCAL YEAR 2021 CHIEF ADMIN OFCR OF THE HOUSE,4,SALARIES  OFFICERS & EMPLOYEES,PERSONNEL COMPENSATION,DETAIL,   ,   ,   ,ATCHISON DARRYL A.,2020-10-01,2020-12-31,CHIEF MAINTENANCE ENGINEER,37616.01,2020
,FISCAL YEAR 2021 CHIEF ADMIN OFCR OF THE HOUSE,4,SALARIES  OFFICERS & EMPLOYEES,PERSONNEL COMPENSATION,DETAIL,   ,   ,   ,AWAN OMAR,2020-10-01,2020-12-31,DIRECTOR OF STRATEGY,43373.01,2020
,FISCAL YEAR 2021 CHIEF ADMIN OFCR OF THE HOUSE,4,SALARIES  OFFICERS & EMPLOYEES,PERSONNEL COMPENSATION,DETAIL,   ,   ,   ,BAHAM TODD,2020-10-01,2020-12-31,TECHNICAL DIRECTOR (A),26301.51,2020
,FISCAL YEAR 2021 CHIEF ADMIN OFCR OF THE HOUSE,4,SALARIES  OFFICERS & EMPLOYEES,PERSONNEL COMPENSATION,DETAIL,   ,   ,   ,BAHAM TODD,2020-10-01,2020-11-30,TECHNICAL DIRECTOR (A) (OVERTIME),569.01,2020
,FISCAL YEAR 2021 CHIEF ADMIN OFCR OF THE HOUSE,4,SALARIES  OFFICERS & EMPLOYEES,PERSONNEL COMPENSATION,DETAIL,   ,   ,   ,BAILEY DAVID E.,2020-10-01,2020-11-23,SR TECHNICAL SUPPORT REP (A),17431.26,2020
,FISCAL YEAR 2021 CHIEF ADMIN OFCR OF THE HOUSE,4,SALARIES  OFFICERS & EMPLOYEES,PERSONNEL COMPENSATION,DETAIL,   ,   ,   ,BAKER DARRELL F.,2020-10-01,2020-12-31,SR NETWORK COMM SPEC,31637.76,2020
,FISCAL YEAR 2021 CHIEF ADMIN OFCR OF THE HOUSE,4,SALARIES  OFFICERS & EMPLOYEES,PERSONNEL COMPENSATION,DETAIL,   ,   ,   ,BANFIELD KELLI C,2020-10-01,2020-12-31,BROADCAST ENGINEER/PROD SPEC.,26004,2020
,FISCAL YEAR 2021 CHIEF ADMIN OFCR OF THE HOUSE,4,SALARIES  OFFICERS & EMPLOYEES,PERSONNEL COMPENSATION,DETAIL,   ,   ,   ,BANFIELD KELLI C,2020-10-01,2020-11-30,BROADCAST ENGINEER/PROD SPEC. (OVERTIME),862.62,2020
,FISCAL YEAR 2021 CHIEF ADMIN OFCR OF THE HOUSE,4,SALARIES  OFFICERS & EMPLOYEES,PERSONNEL COMPENSATION,DETAIL,   ,   ,   ,BANKS BIANCA N,2020-10-01,2020-12-31,MANAGER,25784.01,2020
,FISCAL YEAR 2021 CHIEF ADMIN OFCR OF THE HOUSE,4,SALARIES  OFFICERS & EMPLOYEES,PERSONNEL COMPENSATION,DETAIL,   ,   ,   ,BANKS DAVID A,2020-10-01,2020-12-31,SENIOR MULTIMEDIA SPECIALIST,25150.75,2020
,FISCAL YEAR 2021 CHIEF ADMIN OFCR OF THE HOUSE,4,SALARIES  OFFICERS & EMPLOYEES,PERSONNEL COMPENSATION,DETAIL,   ,   ,   ,BARBEE GLENN,2020-10-01,2020-12-31,SENIOR NETWORK TECHNICIAN,27333.99,2020
,FISCAL YEAR 2021 CHIEF ADMIN OFCR OF THE HOUSE,4,SALARIES  OFFICERS & EMPLOYEES,PERSONNEL COMPENSATION,DETAIL,   ,   ,   ,BARBEE DONELL G,2020-10-01,2020-12-31,RETAIL INVENTORY SPECIALIST,12661.26,2020
,FISCAL YEAR 2021 CHIEF ADMIN OFCR OF THE HOUSE,4,SALARIES  OFFICERS & EMPLOYEES,PERSONNEL COMPENSATION,DETAIL,   ,   ,   ,BARBER CRAIG,2020-10-01,2020-11-30,TEAM COORDINATOR,17534.34,2020
,FISCAL YEAR 2021 CHIEF ADMIN OFCR OF THE HOUSE,4,SALARIES  OFFICERS & EMPLOYEES,PERSONNEL COMPENSATION,DETAIL,   ,   ,   ,BARBER CRAIG,2020-12-01,2020-12-31,SUPERVISOR,8767.17,2020
,FISCAL YEAR 2021 CHIEF ADMIN OFCR OF THE HOUSE,4,SALARIES  OFFICERS & EMPLOYEES,PERSONNEL COMPENSATION,DETAIL,   ,   ,   ,BARCINIAK DANA L.,2020-10-01,2020-12-31,OFFICE MANAGER,27333.99,2020
,FISCAL YEAR 2021 CHIEF ADMIN OFCR OF THE HOUSE,4,SALARIES  OFFICERS & EMPLOYEES,PERSONNEL COMPENSATION,DETAIL,   ,   ,   ,BAREFOOT JEFFREY,2020-10-01,2020-12-31,BROADCAST ENGINEER/PROD SPEC.,24980.25,2020
,FISCAL YEAR 2021 CHIEF ADMIN OFCR OF THE HOUSE,4,SALARIES  OFFICERS & EMPLOYEES,PERSONNEL COMPENSATION,DETAIL,   ,   ,   ,BARR PAUL,2020-10-01,2020-12-31,SUPERVISOR LOGISTICS & DIST (A,19106.49,2020
,FISCAL YEAR 2021 CHIEF ADMIN OFCR OF THE HOUSE,4,SALARIES  OFFICERS & EMPLOYEES,PERSONNEL COMPENSATION,DETAIL,   ,   ,   ,BARRETT ROBERT R.,2020-10-01,2020-12-31,DIRECTOR  ENTERPRISE APPLICATI,43475.01,2020
,FISCAL YEAR 2021 CHIEF ADMIN OFCR OF THE HOUSE,4,SALARIES  OFFICERS & EMPLOYEES,PERSONNEL COMPENSATION,DETAIL,   ,   ,   ,BARTON TISHA R,2020-10-01,2020-12-31,SPECIAL ASSISTANT,24980.25,2020
,FISCAL YEAR 2021 CHIEF ADMIN OFCR OF THE HOUSE,4,SALARIES  OFFICERS & EMPLOYEES,PERSONNEL COMPENSATION,DETAIL,   ,   ,   ,BASILIO TYRONE A.,2020-10-01,2020-11-30,TECHNICAL SUPPORT REP,15595.16,2020
,FISCAL YEAR 2021 CHIEF ADMIN OFCR OF THE HOUSE,4,SALARIES  OFFICERS & EMPLOYEES,PERSONNEL COMPENSATION,DETAIL,   ,   ,   ,BASILIO TYRONE A.,2020-12-01,2020-12-31,SENIOR TECHNOLOGY PARTNER,7797.58,2020
,FISCAL YEAR 2021 CHIEF ADMIN OFCR OF THE HOUSE,4,SALARIES  OFFICERS & EMPLOYEES,PERSONNEL COMPENSATION,DETAIL,   ,   ,   ,BATES DEBORAH A.,2020-10-01,2020-12-31,BROADCAST PRODUCTION TECHNICIA,21135.51,2020
,FISCAL YEAR 2021 CHIEF ADMIN OFCR OF THE HOUSE,4,SALARIES  OFFICERS & EMPLOYEES,PERSONNEL COMPENSATION,DETAIL,   ,   ,   ,BATSON DENISE D,2020-10-01,2020-12-31,PAYROLL & BENEFITS GENERALIST,16828.83,2020
,FISCAL YEAR 2021 CHIEF ADMIN OFCR OF THE HOUSE,4,SALARIES  OFFICERS & EMPLOYEES,PERSONNEL COMPENSATION,DETAIL,   ,   ,   ,BAUTISTA YAMILETTE,2020-10-01,2020-12-31,PROGRAM COORDINATOR  CONGRESSI,21435.51,2020
,FISCAL YEAR 2021 CHIEF ADMIN OFCR OF THE HOUSE,4,SALARIES  OFFICERS & EMPLOYEES,PERSONNEL COMPENSATION,DETAIL,   ,   ,   ,BAXTER KRISTIE N.,2020-10-01,2020-12-31,PHOTOGRAPHER,16314.51,2020
,FISCAL YEAR 2021 CHIEF ADMIN OFCR OF THE HOUSE,4,SALARIES  OFFICERS & EMPLOYEES,PERSONNEL COMPENSATION,DETAIL,   ,   ,   ,BAXTER KRISTIE N.,2020-10-01,2020-11-30,PHOTOGRAPHER (OVERTIME),1921.63,2020
,FISCAL YEAR 2021 CHIEF ADMIN OFCR OF THE HOUSE,4,SALARIES  OFFICERS & EMPLOYEES,PERSONNEL COMPENSATION,DETAIL,   ,   ,   ,BEATTY PAIGE,2020-10-01,2020-12-31,DIRECTOR-HOUSE CHILD CARE CNTR,34425.51,2020
,FISCAL YEAR 2021 CHIEF ADMIN OFCR OF THE HOUSE,4,SALARIES  OFFICERS & EMPLOYEES,PERSONNEL COMPENSATION,DETAIL,   ,   ,   ,BENJAMIN ALTHEA,2020-10-01,2020-12-31,FINANCIAL COUNSELOR,17760,2020
,FISCAL YEAR 2021 CHIEF ADMIN OFCR OF THE HOUSE,4,SALARIES  OFFICERS & EMPLOYEES,PERSONNEL COMPENSATION,DETAIL,   ,   ,   ,BENN PHILLIP F.,2020-10-01,2020-10-31,ELECTRONICS TECHNICIAN (A),9182.08,2020
,FISCAL YEAR 2021 CHIEF ADMIN OFCR OF THE HOUSE,4,SALARIES  OFFICERS & EMPLOYEES,PERSONNEL COMPENSATION,DETAIL,   ,   ,   ,BENN PHILLIP F.,2020-11-01,2020-12-31,SR BROADCAST ENG/PROD SPECLST,19253,2020
,FISCAL YEAR 2021 CHIEF ADMIN OFCR OF THE HOUSE,4,SALARIES  OFFICERS & EMPLOYEES,PERSONNEL COMPENSATION,DETAIL,   ,   ,   ,BESSAHA NABIL,2020-10-01,2020-12-31,SR INFO SYS SEC ANALYST,31051.5,2020
,FISCAL YEAR 2021 CHIEF ADMIN OFCR OF THE HOUSE,4,SALARIES  OFFICERS & EMPLOYEES,PERSONNEL COMPENSATION,DETAIL,   ,   ,   ,BEST CHARLENE,2020-10-01,2020-12-31,MANAGER (HOUSE ASSET SERVICES),28879.5,2020
,FISCAL YEAR 2021 CHIEF ADMIN OFCR OF THE HOUSE,4,SALARIES  OFFICERS & EMPLOYEES,PERSONNEL COMPENSATION,DETAIL,   ,   ,   ,BICKHAM ANDREW J.,2020-10-01,2020-12-31,BUSINESS PROCESS ANALYST,24462.99,2020
,FISCAL YEAR 2021 CHIEF ADMIN OFCR OF THE HOUSE,4,SALARIES  OFFICERS & EMPLOYEES,PERSONNEL COMPENSATION,DETAIL,   ,   ,   ,BILINSKI JOHN E,2020-10-01,2020-12-31,SR BUSINESS  PROCESS APPL SPEC,38898.5,2020
,FISCAL YEAR 2021 CHIEF ADMIN OFCR OF THE HOUSE,4,SALARIES  OFFICERS & EMPLOYEES,PERSONNEL COMPENSATION,DETAIL,   ,   ,   ,BILLARD MICHAEL A.,2020-10-01,2020-12-31,COMMUNICATIONS SPEC,29911.5,2020
,FISCAL YEAR 2021 CHIEF ADMIN OFCR OF THE HOUSE,4,SALARIES  OFFICERS & EMPLOYEES,PERSONNEL COMPENSATION,DETAIL,   ,   ,   ,BILLUPS BRIAN E.,2020-10-01,2020-12-31,NETWORK TECHNICIAN (A),23392.74,2020
,FISCAL YEAR 2021 CHIEF ADMIN OFCR OF THE HOUSE,4,SALARIES  OFFICERS & EMPLOYEES,PERSONNEL COMPENSATION,DETAIL,   ,   ,   ,BINSTED ANNE M,2020-10-01,2020-12-31,CHIEF OF STAFF,43475.01,2020
,FISCAL YEAR 2021 CHIEF ADMIN OFCR OF THE HOUSE,4,SALARIES  OFFICERS & EMPLOYEES,PERSONNEL COMPENSATION,DETAIL,   ,   ,   ,BLACK JUSTIN A,2020-10-01,2020-12-31,CHIEF TECHNOLOGY OFFICER,43475.01,2020
,FISCAL YEAR 2021 CHIEF ADMIN OFCR OF THE HOUSE,4,SALARIES  OFFICERS & EMPLOYEES,PERSONNEL COMPENSATION,DETAIL,   ,   ,   ,BLACKERBY BRUCE A,2020-10-01,2020-12-31,FORENSIC MANAGER,35060.76,2020
,FISCAL YEAR 2021 CHIEF ADMIN OFCR OF THE HOUSE,4,SALARIES  OFFICERS & EMPLOYEES,PERSONNEL COMPENSATION,DETAIL,   ,   ,   ,BLAKLEY JEFFREY S,2020-10-01,2020-12-31,DIRECTOR DIGITAL MEDIA SERVICE,35060.76,2020
,FISCAL YEAR 2021 CHIEF ADMIN OFCR OF THE HOUSE,4,SALARIES  OFFICERS & EMPLOYEES,PERSONNEL COMPENSATION,DETAIL,   ,   ,   ,BOGAN DAVID S.,2020-10-01,2020-12-31,SUPERVISOR  RETAIL INVENTORY,23392.74,2020
,FISCAL YEAR 2021 CHIEF ADMIN OFCR OF THE HOUSE,4,SALARIES  OFFICERS & EMPLOYEES,PERSONNEL COMPENSATION,DETAIL,   ,   ,   ,BOGER KELLY M.,2020-10-01,2020-12-31,SUPERVISOR  ASSET/INVENTORY,26004,2020
,FISCAL YEAR 2021 CHIEF ADMIN OFCR OF THE HOUSE,4,SALARIES  OFFICERS & EMPLOYEES,PERSONNEL COMPENSATION,DETAIL,   ,   ,   ,BOLDIG CHRISTOPHER R.,2020-10-01,2020-12-31,DEPUTY ADMINISTRATIVE COUNSEL,37724.01,2020
,FISCAL YEAR 2021 CHIEF ADMIN OFCR OF THE HOUSE,4,SALARIES  OFFICERS & EMPLOYEES,PERSONNEL COMPENSATION,DETAIL,   ,   ,   ,BOOKER CARLOS,2020-10-01,2020-12-31,SALES SPECIALIST,12661.26,2020
,FISCAL YEAR 2021 CHIEF ADMIN OFCR OF THE HOUSE,4,SALARIES  OFFICERS & EMPLOYEES,PERSONNEL COMPENSATION,DETAIL,   ,   ,   ,BOONE RUSSELL,2020-10-01,2020-12-31,SR TECHNICAL SUPPORT REP,27333.99,2020
,FISCAL YEAR 2021 CHIEF ADMIN OFCR OF THE HOUSE,4,SALARIES  OFFICERS & EMPLOYEES,PERSONNEL COMPENSATION,DETAIL,   ,   ,   ,BOUCHOT ENRIQUE,2020-10-01,2020-12-31,SENIOR SOFTWARE SPECIALIST,39135,2020
,FISCAL YEAR 2021 CHIEF ADMIN OFCR OF THE HOUSE,4,SALARIES  OFFICERS & EMPLOYEES,PERSONNEL COMPENSATION,DETAIL,   ,   ,   ,BOUNDS JAZMINE R.,2020-10-01,2020-12-31,FINANCIAL COUNSELOR,15534.75,2020
,FISCAL YEAR 2021 CHIEF ADMIN OFCR OF THE HOUSE,4,SALARIES  OFFICERS & EMPLOYEES,PERSONNEL COMPENSATION,DETAIL,   ,   ,   ,BOWLDING SONIA R.,2020-10-01,2020-12-31,REC/WAREHOUSE SPEC (A),13338.51,2020
,FISCAL YEAR 2021 CHIEF ADMIN OFCR OF THE HOUSE,4,SALARIES  OFFICERS & EMPLOYEES,PERSONNEL COMPENSATION,DETAIL,   ,   ,   ,BOWLING-STOKES CHAUNETTE L,2020-10-01,2020-12-31,MANAGEMENT ANALYST,28879.5,2020
,FISCAL YEAR 2021 CHIEF ADMIN OFCR OF THE HOUSE,4,SALARIES  OFFICERS & EMPLOYEES,PERSONNEL COMPENSATION,DETAIL,   ,   ,   ,BOWMAN SHELIA,2020-10-01,2020-12-31,FINANCIAL COUNSELOR,20451.75,2020
,FISCAL YEAR 2021 CHIEF ADMIN OFCR OF THE HOUSE,4,SALARIES  OFFICERS & EMPLOYEES,PERSONNEL COMPENSATION,DETAIL,   ,   ,   ,BOYD PETRINA,2020-10-01,2020-12-31,SALES SPECIALIST,14212.5,2020
,FISCAL YEAR 2021 CHIEF ADMIN OFCR OF THE HOUSE,4,SALARIES  OFFICERS & EMPLOYEES,PERSONNEL COMPENSATION,DETAIL,   ,   ,   ,BOYD KENETRIS J,2020-10-01,2020-12-31,PAYROLL & BENEFITS GENERALIST,17760,2020
,FISCAL YEAR 2021 CHIEF ADMIN OFCR OF THE HOUSE,4,SALARIES  OFFICERS & EMPLOYEES,PERSONNEL COMPENSATION,DETAIL,   ,   ,   ,BOYLE KEVIN J.,2020-10-01,2020-12-31,MANAGER  FINANCIAL SYSTEMS,43475.01,2020
,FISCAL YEAR 2021 CHIEF ADMIN OFCR OF THE HOUSE,4,SALARIES  OFFICERS & EMPLOYEES,PERSONNEL COMPENSATION,DETAIL,   ,   ,   ,BRACKENS ROBERT,2020-10-01,2020-12-31,BROADCAST PRODUCTION TECHNICIA,26004,2020
,FISCAL YEAR 2021 CHIEF ADMIN OFCR OF THE HOUSE,4,SALARIES  OFFICERS & EMPLOYEES,PERSONNEL COMPENSATION,DETAIL,   ,   ,   ,BRADLEY NATHANIEL R,2020-10-01,2020-12-31,DIRECTOR  HELP DESK OPERATIONS,39603.16,2020
,FISCAL YEAR 2021 CHIEF ADMIN OFCR OF THE HOUSE,4,SALARIES  OFFICERS & EMPLOYEES,PERSONNEL COMPENSATION,DETAIL,   ,   ,   ,BRADY JOHN R,2020-10-01,2020-12-31,APPRENTICE UPHOLSTERER,15911.25,2020
,FISCAL YEAR 2021 CHIEF ADMIN OFCR OF THE HOUSE,4,SALARIES  OFFICERS & EMPLOYEES,PERSONNEL COMPENSATION,DETAIL,   ,   ,   ,BRADY JOHN R,2020-10-01,2020-10-31,APPRENTICE UPHOLSTERER (OVERTIME),359.53,2020
